{"text_format":"1","workbook":"xlsx","n_sheets":13,"sheets":["Source","Instructions","Facesheet","Authorized Body of 5","Project Ledger","Planning","Organization","Equipment","Training","Exercise","M&A","Consultant-Contractor","Auth. Agent"],"not_rendered":{"charts":0,"images":0,"macros":1,"external_links":0,"defined_names":389,"comments":8,"pivot_tables":0},"unopened":[],"bounds":{"document_bytes":16777216,"sheet_cells":100000,"rows_first":2000,"rows_last":500,"rows_between":2000,"halvings":0,"cell_chars":16384,"cell_head_chars":4096},"cells_cut":0,"cells_raw":0,"read":"whole","date_system":"1900"}

{"sheet":"Source","index":0,"n_rows":399,"n_cols":80,"rows_kept":399,"cut":false,"hidden":true,"merged":[]}
["(Cal OES Use Only)"]
[]
[]
[null,null,null,null,null,null,null,null,null,null,null,null,null,null,null,null,null,null,null,null,null,null,null,null,null,null,null,null,null,null,null,null,null,null,null,null,null,null,null,null,null,null,null,null,null,null,null,null,null,null,null,null,null,null,null,null,null,null,null,null,null,null,null,null,null,null,null,"SOURCE_FundingSourceGAFS_All","SOURCE_FundingSourceGAFS","source_GrantYearGAFS","STATE INVESTMENT JUSTIFICATION"]
[null,null,null,null,null,null,null,null,null,null,null,null,null,null,null,null,null,null,null,null,null,null,null,null,null,null,null,null,null,null,null,null,null,null,null,null,null,null,null,null,null,null,null,null,null,null,null,null,null,null,null,null,null,null,null,null,null,null,null,null,null,null,null,null,null,null,null,"Select","Select","Select","IJ 1: Information Sharing, Collaboration Capabilities, and Law Enforcement Investigations","Investment_1_Information_Sharing_Collaboration_Capabilities_and_Law_Enforcement_Investigations"]
[null,null,null,null,null,null,null,null,null,null,null,null,null,null,null,null,null,null,null,null,null,null,null,null,null,null,null,null,null,null,null,null,null,null,null,null,null,null,null,null,null,null,null,null,null,null,null,null,null,null,null,null,null,null,null,null,null,null,null,null,null,null,null,null,null,null,null,"BVPP","AGIC",2016,"IJ 2: Protect Critical Infrastructure and Key Resources","Investment_2_Enhance_Critical_Infrastructure_Protection"]
[null,null,null,"M&A",null,null,"SOURCE_DetailMA",null,null,null,null,null,null,null,null,null,null,null,null,null,null,null,null,null,null,null,null,null,null,null,null,null,null,null,null,null,null,null,null,null,null,null,null,null,null,null,null,null,null,null,null,null,null,null,null,null,null,null,null,null,null,null,null,null,null,null,null,"BZPD","AGIE",2017,"IJ 3: Enhance Cybersecurity","Investment_3_Strengthen_Communications_Capabilities"]
[null,null,null,"SOURCE_SolutionAreaSubCategoryMA",null,null,"Staffing",null,null,null,null,null,null,null,null,null,null,null,null,null,null,null,null,null,null,null,null,null,null,null,null,null,null,null,null,null,null,null,null,null,null,null,null,null,null,null,null,null,null,null,null,null,null,null,null,null,null,null,null,null,null,null,null,null,null,null,null,"CASV","AGIN",2018,"IJ 4: Strengthen Communications Capabilities","Investment_4_Enhance_Community_Resilience"]
[null,null,null,"Grant Admin","Grant_Admin","Grant_Admin","Backfill",null,null,null,null,null,null,null,null,null,null,null,null,null,null,null,null,null,null,null,null,null,null,null,null,null,null,null,null,null,null,null,null,null,null,null,null,null,null,null,null,null,null,null,null,null,null,null,null,null,null,null,null,null,null,null,null,null,null,null,null,"CDVV","AGIS",2019,"IJ 5: Enhance Medical and Public Health Preparedness","Investment_5_Enhance_Catastrophic_Incident_Planning_Response_and_Recovery"]
[null,null,null,null,null,"Communications Services","Overtime","Communications Services","Staff ","Contractors",null,null,null,null,null,null,null,null,null,null,null,null,null,null,null,null,null,null,null,null,null,null,null,null,null,null,null,null,null,null,null,null,null,null,null,null,null,null,null,null,null,null,null,null,null,null,null,null,null,null,null,null,null,null,null,null,null,"CSNSGP","BVPP",2020,"IJ 6: Countering Homegrown Violent Extremism","Investment_6_Enhance_Medical_and_Public_Health_Preparedness"]
[null,null,null,null,null,"Contractor",null,"Contractor","Contractors","Materials",null,null,null,null,null,null,null,null,null,null,null,null,null,null,null,null,null,null,null,null,null,null,null,null,null,null,null,null,null,null,null,null,null,null,null,null,null,null,null,null,null,null,null,null,null,null,null,null,null,null,null,null,null,null,null,null,null,"CJA0","CJA0",2021,"IJ 7: Enhance Community Resilience","Investment_7_Strengthen_Food_and_Agriculture_Preparedness"]
[null,null,null,null,null,"Facility Costs",null,"Facility Costs","Travel","Rental Costs",null,null,null,null,null,null,null,null,null,null,null,null,null,null,null,null,null,null,null,null,null,null,null,null,null,null,null,null,null,null,null,null,null,null,null,null,null,null,null,null,null,null,null,null,null,null,null,null,null,null,null,null,null,null,null,null,null,"CSAE","CJA1",2022,"IJ 8: Strengthen Food and Agriculture Security","Investment_8_Homeland_Security_Exercise_Evaluation_and_Training_Programs"]
[null,null,null,null,null,"Non AEL Equipment (w/ prior approval)",null,"Non AEL Equipment (w/ prior approval)","Materials","Staff",null,null,null,null,null,null,null,null,null,null,null,null,null,null,null,null,null,null,null,null,null,null,null,null,null,null,null,null,null,null,null,null,null,null,null,null,null,null,null,null,null,null,null,null,null,null,null,null,null,null,null,null,null,null,null,null,null,"CSAP","CNSG",2023,"IJ 9: Enhance Catastrophic Incident Planning, Response & Revovery Capabilities"]
[null,null,null,null,null,"Staff Salaries",null,"Staff Salaries","Rental Costs","Travel",null,null,null,null,null,null,null,null,null,null,null,null,null,null,null,null,null,null,null,null,null,null,null,null,null,null,null,null,null,null,null,null,null,null,null,null,null,null,null,null,null,null,null,null,null,null,null,null,null,null,null,null,null,null,null,null,null,"CSP1","CSAP",2024,"IJ 10: Homeland Security Exercise, Evaluation and Training Programs"]
[null,null,null,null,null,"Supplies",null,"Supplies",null,null,null,null,null,null,null,null,null,null,null,null,null,null,null,null,null,null,null,null,null,null,null,null,null,null,null,null,null,null,null,null,null,null,null,null,null,null,null,null,null,null,null,null,null,null,null,null,null,null,null,null,null,null,null,null,null,null,null,"CVHT","CSP1",2025,"STRATEGIC GOALS AND OBJECTIVES"]
[null,null,null,null,null,"Training",null,"Training",null,null,null,null,null,null,null,null,null,null,null,null,null,null,null,null,null,null,null,null,null,null,null,null,null,null,null,null,null,null,null,null,null,null,null,null,null,null,null,null,null,null,null,null,null,null,null,null,null,null,null,null,null,null,null,null,null,null,null,"DNAE","DVP0",2026,"SOURCE_StrategicGoalsandObjectives"]
[null,null,null,null,null,"Travel",null,"Travel",null,null,null,null,null,null,null,null,null,null,null,null,null,null,null,null,null,null,null,null,null,null,null,null,null,null,null,null,null,null,null,null,null,null,null,null,null,null,null,null,null,null,null,null,null,null,null,null,null,null,null,null,null,null,null,null,null,null,null,"DNAP","EHRSA",null,"Goal 1: Enhance Information Analysis and Law Enforcement Capabilities","Goal_1_Enhance_Information_Analysis_and_Law_Enforcement_Capabilities","Goal_1_Enhance_Information_Analysis_and_Law_Enforcement_Capabilities","Goal_2_Protect_Critical_Infrastructure_and_Key_Resources","Goal_3_Strengthen_Communications_Capabilities","Goal_4_Enhance_Planning_and_Community_Preparedness_Capabilities","Goal_5_Strengthen_Catastrophic_CBRNE_and_All_Hazards_Incident_Planning_Detection_and_Response_Capabilities","Goal_6_Improve_Medical_and_Health_Capabilities","Goal_7_Strengthen_Food_and_Agriculture_Preparedness","Goal_8_Enhance_Homeland_Security_Exercise_Evaluation_and_Training_Programs"]
[null,null,null,null,null,null,null,null,null,null,null,null,null,null,null,null,null,null,null,null,null,null,null,null,null,null,null,null,null,null,null,null,null,null,null,null,null,null,null,null,null,null,null,null,null,null,null,null,null,null,null,null,null,null,null,null,null,null,null,null,null,null,null,null,null,null,null,"DVP0","EMPG",null,"Goal 2: Protect Critical Infrastructure and Key Resources","Goal_2_Protect_Critical_Infrastructure_and_Key_Resources","Objective 1.1: Strengthen Information Sharing and Collaboration Among All Levels of Government, Private Industry, Non-Government and Community Based Organizations","Objective 2.1: Implement the California Critical Infrastructure Protection Program","Objective 3.1: Implement the California Statewide Communications Interoperability Plan","Objective 4.1: Enhance Citizen Preparedness While Integrating the Needs of Vulnerable Populations","Objective 5.1: Strengthen All Hazards Incident Management Capabilities Across California","Objective 6.1: Enhance Health and Public Health Preparedness and Disaster Response Capabilities for All Hazards","Objective 7.1: Enhance Agriculture Food Systems and Animal Health Preparedness","Objective 8.1: Expand Statewide Training Across All Mission Areas, While Enhancing Professional Training For Emergency Management and Homeland Security Disciplines"]
[null,null,null,null,null,null,null,null,null,null,null,null,null,null,null,null,null,null,null,null,null,null,null,null,null,null,null,null,null,null,null,null,null,null,null,null,null,null,null,null,null,null,null,null,null,null,null,null,null,null,null,null,null,null,null,null,null,null,null,null,null,null,null,null,null,null,null,"EHAF","EMT1",null,"Goal 3: Strengthen Communications Capabilities","Goal_3_Strengthen_Communications_Capabilities","Objective 1.2: Strengthen California's Ability to Identify and Counter Emerging Threats",null,"Objective 3.2: Strengthen Alert and Warning Systems to Ensure the Delivery of Clear and Consistent Public Information","Objective 4.2: Strengthen Volunteer Management and Donations","Objective 5.2: Enhance Resource Management Through Implementation of the California Metrics Project","Objective 6.2: Enhance Medical Preparedness and Disaster Response Capabilities for All Hazards",null,"Objective 8.2: Expand Statewide Exercises Across All Mission Areas"]
[null,null,null,null,null,null,null,null,null,null,null,null,null,null,null,null,null,null,null,null,null,null,null,null,null,null,null,null,null,null,null,null,null,null,null,null,null,null,null,null,null,null,null,null,null,null,null,null,null,null,null,null,null,null,null,null,null,null,null,null,null,null,null,null,null,null,null,"EHRSA","EOC",null,"Goal 4: Enhance Planning and Community Preparedness Capabilities","Goal_4_Enhance_Planning_and_Community_Preparedness_Capabilities",null,null,null,null,"Objective 5.3: Implement the California Preventative Radiological and Nuclear Detection Program"]
[null,null,null,"Organization Roster",null,null,null,null,null,null,null,null,null,null,null,null,null,null,null,null,null,null,null,null,null,null,null,null,null,null,null,null,null,null,null,null,null,null,null,null,null,null,null,null,null,null,null,null,null,null,null,null,null,null,null,null,null,null,null,null,null,null,null,null,null,null,null,"EMPG","EPSD",null,"Goal 5: Strengthen Catastrophic CBRNE and All Hazards Incident Planning, Detection and Response Capabilities","Goal_5_Strengthen_Catastrophic_CBRNE_and_All_Hazards_Incident_Planning_Detection_and_Response_Capabilities",null,null,null,null,"Objective 5.4: Implement a California Disaster Recovery Framework"]
[null,null,null,"SOURCE_SolutionAreaSubCategoryOrganization",null,null,null,null,null,null,null,null,null,null,null,null,null,null,null,null,null,null,null,null,null,null,null,null,null,null,null,null,null,null,null,null,null,null,null,null,null,null,null,null,null,null,null,null,null,null,null,null,null,null,null,null,null,null,null,null,null,null,null,null,null,null,null,"EMT1","FMA",null,"Goal 6: Improve Medical and Health Capabilities","Goal_6_Improve_Medical_and_Health_Capabilities"]
[null,null,null,"Info-Intel Analysis & Sharing / Fusion Center Activities","Info_Intel_analysis_and_sharing_fusion_center_activities","Info_Intel_analysis_and_sharing_fusion_center_activities","Equip_Resource_Project_Mgt","Increased_Threat_Level","Border_Security","Public_Private_Partnership",null,null,null,null,null,null,null,null,null,null,null,null,null,null,null,null,null,null,null,null,null,null,null,null,null,null,null,null,null,null,null,null,null,null,null,null,null,null,null,null,null,null,null,null,null,null,null,null,null,null,null,null,null,null,null,null,null,"EOC","FSIA",null,"Goal 7: Strengthen Food and Agriculture Preparedness","Goal_7_Strengthen_Food_and_Agriculture_Preparedness"]
[null,null,null,"Equip / Resource / Project Mgt","Equip_Resource_Project_Mgt","Contractors","Contractors","Contractors","Backfill","Conferences",null,null,null,null,null,null,null,null,null,null,null,null,null,null,null,null,null,null,null,null,null,null,null,null,null,null,null,null,null,null,null,null,null,null,null,null,null,null,null,null,null,null,null,null,null,null,null,null,null,null,null,null,null,null,null,null,null,"EPSD","FV00",null,"Goal 8: Enhance Homeland Security Exercise, Evaluation and Training Programs","Goal_8_Enhance_Homeland_Security_Exercise_Evaluation_and_Training_Programs"]
[null,null,null,"Increased Threat Level ","Increased_Threat_Level","Intelligence Analysts > Contractor","Staff","OT > Border / Maritime Security","OT","Consultants",null,null,null,null,null,null,null,null,null,null,null,null,null,null,null,null,null,null,null,null,null,null,null,null,null,null,null,null,null,null,null,null,null,null,null,null,null,null,null,null,null,null,null,null,null,null,null,null,null,null,null,null,null,null,null,null,null,"FJC0","FVPS"]
[null,null,null,"Border Security","Border_Security","Intelligence Analysts > Staff",null,"OT > National Guard",null,"Facility Costs > Meeting Space Rental",null,null,null,null,null,null,null,null,null,null,null,null,null,null,null,null,null,null,null,null,null,null,null,null,null,null,null,null,null,null,null,null,null,null,null,null,null,null,null,null,null,null,null,null,null,null,null,null,null,null,null,null,null,null,null,null,null,"FMA","HMEP",null,"MISSION AREAS"]
[null,null,null,"Public-Private Partnership","Public_Private_Partnership","Project Mgt Staff Costs",null,"OT > Public Safety Staff",null,"Materials / Supplies",null,null,null,null,null,null,null,null,null,null,null,null,null,null,null,null,null,null,null,null,null,null,null,null,null,null,null,null,null,null,null,null,null,null,null,null,null,null,null,null,null,null,null,null,null,null,null,null,null,null,null,null,null,null,null,null,null,"FSIA","HMGP",null,"Prevention","Prevention","Prevention"]
[null,null,null,null,null,null,null,"Staff Salaries",null,"Meals (w/ prior approval)",null,null,null,null,null,null,null,null,null,null,null,null,null,null,null,null,null,null,null,null,null,null,null,null,null,null,null,null,null,null,null,null,null,null,null,null,null,null,null,null,null,null,null,null,null,null,null,null,null,null,null,null,null,null,null,null,null,"FV00","HSGP-OPSG",null,"Protection","Protection","Planning","Protection","Mitigation","Response","Recovery"]
[null,null,null,null,null,null,null,"Staff OT / Backfill",null,"Outreach",null,null,null,null,null,null,null,null,null,null,null,null,null,null,null,null,null,null,null,null,null,null,null,null,null,null,null,null,null,null,null,null,null,null,null,null,null,null,null,null,null,null,null,null,null,null,null,null,null,null,null,null,null,null,null,null,null,"FVPS","HSGP-SHSP",null,"Mitigation","Mitigation","Public Information and Warning","Planning","Planning","Planning","Planning"]
[null,null,null,null,null,null,null,null,null,"Staff",null,null,null,null,null,null,null,null,null,null,null,null,null,null,null,null,null,null,null,null,null,null,null,null,null,null,null,null,null,null,null,null,null,null,null,null,null,null,null,null,null,null,null,null,null,null,null,null,null,null,null,null,null,null,null,null,null,"HMEP","HSGP-UASI",null,"Response","Response","Operational Coordination","Public Information and Warning","Public Information and Warning","Public Information and Warning","Public Information and Warning"]
[null,null,null,null,null,null,null,null,null,"Travel",null,null,null,null,null,null,null,null,null,null,null,null,null,null,null,null,null,null,null,null,null,null,null,null,null,null,null,null,null,null,null,null,null,null,null,null,null,null,null,null,null,null,null,null,null,null,null,null,null,null,null,null,null,null,null,null,null,"HMGP","HY00",null,"Recovery","Recovery","Intelligence and Information Sharing","Operational Coordination","Operational Coordination","Operational Coordination","Operational Coordination"]
[null,null,null,null,null,null,null,null,null,null,null,null,null,null,null,null,null,null,null,null,null,null,null,null,null,null,null,null,null,null,null,null,null,null,null,null,null,null,null,null,null,null,null,null,null,null,null,null,null,null,null,null,null,null,null,null,null,null,null,null,null,null,null,null,null,null,null,"HSGP-OPSG","JAG",null,null,null,"Interdiction and Disruption","Intelligence and Information Sharing","Community Resilience","Infrastructure Systems","Infrastructure Systems"]
[null,null,null,null,null,null,null,null,null,null,null,null,null,null,null,null,null,null,null,null,null,null,null,null,null,null,null,null,null,null,null,null,null,null,null,null,null,null,null,null,null,null,null,null,null,null,null,null,null,null,null,null,null,null,null,null,null,null,null,null,null,null,null,null,null,null,null,"HSGP-SHSP","LPDM",null,null,null,"Screening, Search, and Detection","Interdiction and Disruption","Long-term Vulnerability Reduction","Critical Transportation","Economic Recovery"]
[null,null,null,null,null,null,null,null,null,null,null,null,null,null,null,null,null,null,null,null,null,null,null,null,null,null,null,null,null,null,null,null,null,null,null,null,null,null,null,null,null,null,null,null,null,null,null,null,null,null,null,null,null,null,null,null,null,null,null,null,null,null,null,null,null,null,null,"HSGP-UASI","LSPA",null,null,null,"Forensics and Attribution","Screening, Search, and Detection","Risk and Disaster Resilience Assessment","Environmental Response/Health and Safety","Health and Social Services"]
[null,null,null,null,null,null,null,null,null,null,null,null,null,null,null,null,null,null,null,null,null,null,null,null,null,null,null,null,null,null,null,null,null,null,null,null,null,null,null,null,null,null,null,null,null,null,null,null,null,null,null,null,null,null,null,null,null,null,null,null,null,null,null,null,null,null,null,"HTVA","NEHRP",null,null,null,null,"Access Control and Identity Verification","Threats and Hazards Identification","Fatality Management Services","Housing"]
[null,null,null,"Planning Roster",null,null,null,null,null,null,null,null,null,null,null,null,null,null,null,null,null,null,null,null,null,null,null,null,null,null,null,null,null,null,null,null,null,null,null,null,null,null,null,null,null,null,null,null,null,null,null,null,null,null,null,null,null,null,null,null,null,null,null,null,null,null,null,"HY00","NOAA",null,null,null,null,"Cybersecurity",null,"Fire Management and Suppression","Natural and Cultural Resources"]
[null,null,null,"SOURCE_SolutionAreaSubCategoryPlanning",null,null,null,null,null,null,null,null,null,null,null,null,null,null,null,null,null,null,null,null,null,null,null,null,null,null,null,null,null,null,null,null,null,null,null,null,null,null,null,null,null,null,null,null,null,null,null,null,null,null,null,null,null,null,null,null,null,null,null,null,null,null,null,"HY05","NSGP-S",null,null,null,null,"Physical Protective Measures",null,"Logistics and Supply Chain Management"]
[null,null,null,"Conferences","Conferences","Conferences","Law_Enforcement_Anti_Terrorism_Planning","Develop_and_Enhance_Plans_Protocols_and_Systems","Community_Outreach",null,null,null,null,null,null,null,null,null,null,null,null,null,null,null,null,null,null,null,"Equipment Roster",null,null,null,null,null,null,null,null,null,null,null,null,null,null,null,null,null,null,null,null,null,null,null,null,null,null,null,null,null,null,null,null,null,null,null,null,null,null,"ICAC","NSGP-U",null,null,null,null,"Risk Management for Protection Programs and Activities",null,"Mass Care Services"]
[null,null,null,"Law Enforcement / Anti-Terrorism Planning","Law_Enforcement_Anti_Terrorism_Planning","Conference Fees","Contractors","Consultants","Consultants",null,null,null,null,null,null,null,null,null,null,null,null,null,null,null,null,null,null,null,"SOURCE_EquipmentSolutionAreaSubCategoryProjectLedger",null,null,null,null,null,null,null,null,null,null,null,null,null,null,null,null,null,null,null,null,null,null,null,null,null,null,null,null,null,null,null,null,null,null,null,null,null,null,"IOCV","PDM",null,null,null,null,"Supply Chain Integrity and Security",null,"Mass Search and Rescue Operations"]
[null,null,null,"Develop and Enhance Plans, Protocols and Systems","Develop_and_Enhance_Plans_Protocols_and_Systems","Contractors","Materials","Materials / Supplies","Materials / Supplies",null,null,null,null,null,null,null,null,null,null,null,null,null,null,null,null,null,null,null,"-----EQUIPMENT-----",null,null,null,null,null,null,null,null,null,null,null,null,null,null,null,null,null,null,null,null,null,null,null,null,null,null,null,null,null,null,null,null,null,null,null,null,null,null,"LPDM","PPPD",null,null,null,null,null,null,"On-scene Security, Protection, and Law Enforcement"]
[null,null,null,"Community Outreach","Community_Outreach","Materials / Supplies","Facility Costs > Meeting Space Rental","Facility Costs > Meeting Space Rental","Facility Costs > Meeting Space Rental",null,null,null,null,null,null,null,null,null,"Project",null,null,null,null,null,null,null,null,null,"Agricultural Terrorism Prevention, Response and Mitigation Equipment",null,null,null,null,null,null,null,null,null,null,null,null,null,null,null,null,null,null,null,null,null,null,null,null,null,null,null,null,null,null,null,null,null,null,null,null,null,null,"NEHRP","PREA",null,null,null,null,null,null,"Operational Communications"]
[null,null,null,null,null,"Meals (w/ prior approval)","Staff","Staff","Staff",null,null,null,null,null,null,null,null,null,"SOURCE_SolutionAreaSubCategoryProjectLedger",null,null,null,null,null,null,null,null,null,"CBRNE Aviation Equipment",null,null,null,null,null,null,null,null,null,null,null,null,null,null,null,null,null,null,null,null,null,null,null,null,null,null,null,null,null,null,null,null,null,null,null,null,null,null,"NOAA","PROP 1B",null,null,null,null,null,null,"Public Health, Healthcare, and Emergency Medical Services"]
[null,null,null,null,null,"Facility Costs > Meeting Space Rental","Travel","Travel","Travel",null,null,null,null,null,null,null,null,null,"-----PLANNING-----",null,null,null,null,null,null,null,null,null,"CBRNE Incident Response Vehicle",null,null,null,null,null,null,null,null,null,null,null,null,null,null,null,null,null,null,null,null,null,null,null,null,null,null,null,null,null,null,null,null,null,null,null,null,null,null,"NSGP-UA","PSNC",null,null,null,null,null,null,"Situational Assessment"]
[null,null,null,null,null,"Travel",null,null,null,null,null,null,"SOURCE_SolutionAreaSubCategoryExercise",null,null,null,null,null,"Develop, Coordinate, Implement or Evaluate Programs, Groups, Councils or Teams",null,null,null,null,null,null,null,null,null,"CBRNE Logistical Support Equipment",null,null,null,null,null,null,null,null,null,null,null,null,null,null,null,null,null,null,null,null,null,null,null,null,null,null,null,null,null,null,null,null,null,null,null,null,null,null,"NSGP-S","PSNE"]
[null,null,null,null,null,null,null,null,null,null,null,null,"---EXERCISE---",null,null,null,null,null,"Develop and Enhance Plans and Protocols",null,null,null,null,null,null,null,null,null,"CBRNE Prevention and Response Watercraft",null,null,null,null,null,null,null,null,null,null,null,null,null,null,null,null,null,null,null,null,null,null,null,null,null,null,null,null,null,null,null,null,null,null,null,null,null,null,"PDM","PSNN"]
[null,null,null,null,null,null,null,null,null,null,null,null,"Design / Develop","Design_Develop","Design_Develop","Conduct_Evaluate","Supplies_Materials_Production_Costs",null,"Develop or Conduct Assessments",null,null,null,null,null,null,null,null,null,"CBRNE Reference Materials",null,null,null,null,null,null,null,null,null,null,null,null,null,null,null,null,null,null,null,null,null,null,null,null,null,null,null,null,null,null,null,null,null,null,null,null,null,null,"PESC","RCP0"]
[null,null,null,null,null,null,null,null,null,null,null,null,"Conduct / Evaluate","Conduct_Evaluate","Consultant","Consultant","Materials / Supplies",null,"EOC-Ensuring EOC continuity of operations",null,null,null,null,null,null,null,null,null,"CBRNE Search and Rescue Equipment",null,null,null,null,null,null,null,null,null,null,null,null,null,null,null,null,null,null,null,null,null,null,null,null,null,null,null,null,null,null,null,null,null,null,null,null,null,null,"PPP0","RILP"]
[null,null,null,null,null,null,null,null,null,null,null,null,"Supplies / Materials / Production Costs","Supplies_Materials_Production_Costs","Staff Salaries","Travel","Non AEL equipment (w/ prior approval)",null,"EOC-Analyzing constructed/renovated space to support design/implementation of protection systems",null,null,null,null,null,null,null,null,null,"Cyber Security Enhancement Equipment ",null,null,null,null,null,null,null,null,null,null,null,null,null,null,null,"source_CFDA",null,null,"Match Roster",null,null,null,null,null,null,null,null,null,null,null,null,null,null,null,null,null,null,null,"PPPD","RSAT"]
[null,null,null,null,null,null,null,null,null,null,null,null,null,null,"OT / Backfill","OT / Backfill","Facility Costs > Meeting Space Rental",null,"EMPG-Public education and awareness",null,null,null,null,null,null,null,null,null,"Decontamination",null,null,null,null,null,null,null,null,null,null,null,null,null,null,null,"97.078 BZPP",null,null,"SOURCE_MatchType",null,null,null,null,null,null,null,null,null,null,null,null,null,null,null,null,null,null,null,"PREA","SASP"]
[null,null,null,null,null,null,null,null,null,null,null,null,null,null,null,"Meals (w/ prior approval)","Meals (w/ prior approval)",null,"EMPG-Supply preparation",null,null,null,null,null,null,null,null,null,"Detection ",null,null,null,null,null,null,null,null,null,null,null,null,null,null,null,"97.056 CPMSGP",null,null,"Cash Match",null,null,null,null,null,null,null,null,null,null,null,null,null,null,null,null,null,null,null,"PROP 1B","SRL",null,"Project Ledger"]
[null,null,null,null,null,null,null,null,null,null,null,null,null,null,null,"Staff",null,null,"EMPG-Other emergency management related planning activities",null,null,null,null,null,null,null,null,null,"Explosive Device Mitigation and Remediation Equipment",null,null,null,null,null,null,null,null,null,null,null,null,null,null,null,"97.042 EMPG",null,null,"In-kind Match",null,null,null,null,null,null,null,null,null,null,null,null,null,null,null,null,null,null,null,"PSNC","VAWA",null,"SOURCE_CoreCapabilities"]
[null,null,null,null,null,null,null,null,null,null,null,null,null,null,null,null,null,null,"EMPG-Community-based planning to advance \"Whole Community\" security and emergency management",null,null,null,null,null,null,null,null,null,"Information Technology",null,null,null,null,null,null,null,null,null,null,null,null,null,null,null,"97.067 HSGP",null,null,null,null,null,null,null,null,null,null,null,null,null,null,null,null,null,null,null,null,null,null,"PSNE","VAWR",null,"Access Control and Identity Verification"]
[null,null,null,"Training Roster",null,null,null,null,null,null,null,null,null,null,null,null,null,null,"EMPG-Development of THIRA",null,null,null,null,null,null,null,null,null,"Inspection and Screening Equipmnet ",null,null,null,null,null,null,null,null,null,null,null,null,null,null,null,"97.055 IECGP",null,null,null,null,null,null,null,null,null,null,null,null,null,null,null,null,null,null,null,null,null,null,"PSNN","VLCR",null,"Community Resilience"]
[null,null,null,"SOURCE_SolutionAreaSubCategoryTraining",null,null,null,null,null,null,null,null,null,null,null,null,null,null,"EMPG-Critical emergency supplies",null,null,null,null,null,null,null,null,null,"Interoperable Communications Equipment",null,null,null,null,null,null,null,null,null,null,null,null,null,null,null,"97.008 NSGP",null,null,null,null,null,null,null,null,null,null,null,null,null,null,null,null,null,null,null,null,null,null,"RCASD","VOCA",null,"Critical Transportation"]
[null,null,null,"Staff Expenses","Staff_Expenses","Staff_Expenses","Course_Development","Course_Delivery_and_Evaluation",null,null,null,null,"Exercise",null,null,null,null,null,"EMPG-Public-Private sector partnerships",null,null,null,null,null,null,null,null,null,"Intervention Equipment",null,null,null,null,null,null,null,null,null,null,null,null,null,null,null,"11.555 PSIC",null,null,null,null,null,null,null,null,null,null,null,null,null,null,null,null,null,null,null,null,null,null,"RCP0","VOCR",null,"Cybersecurity"]
[null,null,null,"Course Development ","Course_Development","Certificatoin & Re-certification","Consultant > Design / Conduct / Evaluate Training","Consultant",null,null,null,null,"SOURCE_ExerciseType",null,null,null,null,null,"-----ORGANIZATION-----",null,null,null,null,null,null,null,null,null,"Maintenance & Sustainment",null,null,null,null,null,null,null,null,null,null,null,null,null,null,null,"11.468 RCASP",null,null,null,null,null,null,null,null,null,null,null,null,null,null,null,null,null,null,null,null,null,null,"RCP5","VWA0",null,"Economic Recovery"]
[null,null,null,"Course Delivery and Evaluation","Course_Delivery_and_Evaluation","OT / Backfill","Staff > Design / Conduct / Evaluate Training","Facility > Metting Space Rental",null,null,null,null,"Workshop",null,null,null,null,null,"Orange Alert Costs",null,null,null,null,null,null,null,null,null,"Medical ",null,null,null,null,null,null,null,null,null,null,null,null,null,null,null,"97.111 RCPGP",null,null,null,null,null,null,null,null,null,null,null,null,null,null,null,null,null,null,null,null,null,null,"RILP","YET0",null,"Environmental Response / Health and Safety"]
[null,null,null,null,null,"Travel",null,"Materials / Supplies",null,null,null,null,"Seminar",null,null,null,null,null,"Overtime for Information, Investigative, and Intelligence Sharing Activities",null,null,null,null,null,null,null,null,null,"Other Authorized Equipment",null,null,null,null,null,null,null,null,null,null,null,null,null,null,null,"97.075 TSGP",null,null,null,null,null,null,null,null,null,null,null,null,null,null,null,null,null,null,null,null,null,null,"RSAT",null,null,"Fatality Management Services"]
[null,null,null,null,null,"Tuition",null,"Meals (w/ prior approval)",null,null,null,null,"Tabletop",null,null,null,null,null,"Hiring of new staff/contractors for info/intel anaysis and sharing/fusion center activites",null,null,null,null,null,null,null,null,null,"Personal Protective Equipment",null,null,null,null,null,null,null,null,null,null,null,null,null,null,null,null,null,null,null,null,null,null,null,null,null,null,null,null,null,null,null,null,null,null,null,null,null,null,"RTAC",null,null,"Fire Management and Suppression"]
[null,null,null,null,null,null,null,"Non-AEL Equipment (w/ prior approval)",null,null,null,null,"Functional",null,null,null,null,null,"EMPG-Operations",null,null,null,null,null,null,null,null,null,"Physical Security Enhancement Equipment",null,null,null,null,null,null,null,null,null,null,null,null,null,null,null,null,null,null,null,"2019-09-17",null,null,null,null,null,null,null,null,null,null,null,null,null,null,null,null,null,null,"SASP",null,null,"Forensics and Attribution"]
[null,null,null,null,null,null,null,"Staff",null,null,null,null,"Full Scale",null,null,null,null,null,"EMPG-Staffing",null,null,null,null,null,null,null,null,null,"Power",null,null,null,null,null,null,null,null,null,null,null,null,null,null,null,null,null,null,null,"Personnel_SourceList",null,null,null,null,null,null,null,null,null,null,null,null,null,null,null,null,null,null,"SRL",null,null,"Health and Social Services"]
[null,null,null,null,null,null,null,"Travel",null,null,null,null,null,null,null,null,null,null,"EMPG-Day to day activities that support emergency management",null,null,null,null,null,null,null,null,null,"Terrorism Incident Prevention Equipment",null,null,null,null,null,null,null,null,null,null,null,null,null,null,null,null,null,null,null,"Planning","Personnel_Planning","<== Personnel_SourceLookup",null,null,null,null,null,null,null,null,null,null,null,null,null,null,null,null,"SSV0",null,null,"Housing"]
[null,null,null,null,null,null,null,null,null,null,null,null,"SOURCE_ExerciseRole",null,null,null,null,null,"-----EQUIPMENT-----",null,null,null,null,null,null,null,null,null,null,null,null,null,null,null,null,null,null,null,null,null,null,null,null,null,"source_fundingsourcecfda",null,null,null,"Organization","Personnel_Organization",null,null,null,null,null,null,null,null,null,null,null,null,null,null,null,null,null,"VAWA",null,null,"Infrastructure Systems"]
[null,null,null,"Equipment Roster",null,null,null,null,null,null,null,null,"Develop",null,null,null,null,null,"Personal Protective Equipment",null,null,null,null,null,null,null,null,null,null,null,null,null,null,null,null,null,null,null,null,null,null,null,null,null,"BIDP",null,null,null,"Training","Personnel_Training",null,null,null,null,null,null,null,null,null,null,null,null,null,null,null,null,null,"VLCR",null,null,"Intelligence and Information Sharing"]
[null,null,null,"SOURCE_EquipmentCondition","SOURCE_DeployableShareable",null,null,null,null,null,null,null,"Control",null,null,null,null,null,"Explosive Device Mitigation and Remediation Equipment",null,null,null,null,null,null,null,null,null,null,null,null,null,null,null,null,null,null,null,null,null,null,null,null,null,"BZPP   ",null,null,null,"Exercise","Personnel_Exercise",null,null,null,null,null,null,null,null,null,null,null,null,null,null,null,null,null,"VOCA",null,null,"Interdiction and Disruption"]
[null,null,null,"New-In Use","Deployable",null,null,null,null,null,null,null,"Participate",null,null,null,null,null,"CBRNE Search and Rescue Equipment",null,null,null,null,null,null,null,null,null,null,null,null,null,null,null,null,null,null,null,null,null,null,null,null,null,"EMPG   ",null,null,null,"M&A","Personnel_MA",null,null,null,null,null,null,null,null,null,null,null,null,null,null,null,null,null,"VWA0",null,null,"Logistics and Supply Chain Management"]
[null,null,null,"New-Not In Use","Shareable",null,null,null,null,null,null,null,"Evaluate",null,null,null,null,null,"Information Technology",null,null,null,null,null,null,null,null,null,null,null,null,null,null,null,null,null,null,null,null,null,null,null,null,null,"EOC   ",null,null,null,null,null,null,null,null,null,null,null,null,null,null,null,null,null,null,null,null,null,null,"VWR0",null,null,"Long-term Vulnerability Reduction"]
[null,null,null,"Used-In Use","Both",null,null,null,null,null,null,null,"Observe",null,null,null,null,null,"Cyber Security Enhancement Equipment ",null,null,null,null,null,null,null,null,null,null,null,null,null,null,null,null,null,null,null,null,null,null,null,null,null,"HSGP-SHSP",null,null,null,"Personnel_Planning",null,null,null,null,null,null,null,null,null,null,null,null,null,null,null,null,null,null,"WSGP",null,null,"Mass Care Services"]
[null,null,null,"Used-Not In Use","N/A",null,null,null,null,null,null,null,"Produce",null,null,null,null,null,"Interoperable Communications Equipment",null,null,null,null,null,null,null,null,null,null,null,null,null,null,null,null,null,null,null,null,null,null,null,null,null,"HSGP-UASI",null,null,null,"Law Enforcement / Anti - Terrorism Planning",null,null,null,null,null,null,null,null,null,null,null,null,null,null,null,null,null,null,"YETO",null,null,"Mass Search and Rescue Operations"]
[null,null,null,"Damaged",null,null,null,null,null,null,null,null,null,null,null,null,null,null,"Detection ",null,null,null,null,null,null,null,null,null,null,null,null,null,null,null,null,null,null,null,null,null,null,null,null,null,"IECGP   ",null,null,null,"Develop / Enhance > Plans, Protocols, & Systems",null,null,null,null,null,null,null,null,null,null,null,null,null,null,null,null,null,null,null,null,null,"Natural and Cultural Resources"]
["All Ledgers",null,null,"All Ledgers",null,null,null,"All Ledgers",null,"SOURCE_PreviousAward",null,null,"Grant Management Roster",null,null,null,null,null,"Decontamination",null,null,null,null,null,null,null,null,null,null,null,null,null,null,null,null,null,null,null,null,null,null,null,null,null,"NSGP   ",null,null,null,"Community Outreach",null,null,null,null,null,null,null,null,null,null,null,null,null,null,null,null,null,null,null,null,null,"On-scene Security, Protection, and Law Enforcement"]
["SOURCE_Discipline",null,null,"SOURCE_FundingSource",null,null,null,"SOURCE_SolutionArea",null,"No",null,null,"SOURCE_GrantManagementTitle",null,null,null,null,null,"Medical ",null,null,null,null,null,null,null,null,null,"-----TRAINING-----",null,null,null,null,null,null,null,null,null,null,null,null,null,null,null,"OPSG   ",null,null,null,null,null,null,null,null,null,null,null,null,null,null,null,null,null,null,null,null,null,null,null,null,null,"Operational Communications"]
["AG",null,null,"CSNSGP",null,null,null,"Plan",null,"FY19; IJ#1",null,null,"Administrator",null,null,null,null,null,"Power",null,null,null,null,null,null,null,null,null,"Design/Develop/Conduct/Evaluate",null,null,null,null,null,null,null,null,null,null,null,null,null,null,null,"PROP 1B",null,null,null,"Personnel_Organization",null,null,null,null,null,null,null,null,null,null,null,null,null,null,null,null,null,null,null,null,null,"Operational Coordination"]
["CS",null,null,"CHCSGP",null,null,null,"Org",null,"FY19; IJ#2",null,null,"Management",null,null,null,null,null,"CBRNE Reference Materials",null,null,null,null,null,null,null,null,null,"-----EXERCISE-----",null,null,null,null,null,null,null,null,null,null,null,null,null,null,null,"PSIC   ",null,null,null,"Info - Intel Analysis & Sharing / Fusion Center Activities",null,null,null,null,null,null,null,null,null,null,null,null,null,null,null,null,null,null,null,null,null,"Physical Protective Measures"]
["EMG",null,null,"SCIGP",null,null,null,"Equip",null,"FY19; IJ#3",null,null,"Supervisor",null,null,null,null,null,"CBRNE Incident Response Vehicle",null,null,null,null,null,null,null,null,null,"Design/Develop/Conduct/Evaluate",null,null,null,null,null,null,null,null,null,null,null,null,null,null,null,"RCASP ",null,null,null,"Increased Threat Level > Staff Salaries",null,null,null,null,null,null,null,null,null,null,null,null,null,null,null,null,null,null,null,null,null,"Planning"]
["EMS-F",null,null,null,null,null,null,"Train",null,"FY19; IJ#4",null,null,"Analyst",null,null,null,null,null,"Terrorism Incident Prevention Equipment",null,null,null,null,null,null,null,null,null,"Supplies/Materials",null,null,null,null,null,null,null,null,null,null,null,null,null,null,null,"RCPGP-C   ",null,null,null,"Increased Threat Level > Staff OT / Backfill",null,null,null,null,null,null,null,null,null,null,null,null,null,null,null,null,null,null,null,null,null,"Public Health, Healthcare, and Emergency Medical Services"]
["EMS ",null,null,null,null,null,null,"Exerc",null,"FY19; IJ#5",null,null,"Support Staff",null,null,null,null,null,"Physical Security Enhancement Equipment",null,null,null,null,null,null,null,null,null,"-----M & A-----",null,null,null,null,null,null,null,null,null,null,null,null,null,null,null,"RCPGP-NC  ",null,null,null,"Public-Private Partnership",null,null,null,null,null,null,null,null,null,null,null,null,null,null,null,null,null,null,null,null,null,"Public Information and Warning"]
["FS",null,null,null,null,null,null,"M & A",null,"FY19; IJ#6",null,null,"Clerical",null,null,null,null,null,"Inspection and Screening Equipment ",null,null,null,null,null,null,null,null,null,"All Other M&A Expenses",null,null,null,null,null,null,null,null,null,null,null,null,null,null,null,"TSGP   ",null,null,null,"Staff / Contractor",null,null,null,null,null,null,null,null,null,null,null,null,null,null,null,null,null,null,null,null,null,"Risk and Disaster Resilience Assessment"]
["GA",null,null,null,null,null,null,"EMPG/EOC-Construction & Renovation ",null,"FY19; IJ#7",null,null,"Subject Matter Expert",null,null,null,null,null,"Agricultural Terrorism Prevention, Response and Mitigation Equipment",null,null,null,null,null,null,null,null,null,null,null,null,null,null,null,null,null,null,null,null,null,null,null,null,null,"TSGPF   ",null,null,null,null,null,null,null,null,null,null,null,null,null,null,null,null,null,null,null,null,null,null,null,null,null,"Risk Management for Protection Programs and Activities"]
["HM",null,null,"PROP 1B",null,null,null,"EMPG-Maintenance & Sustainment ",null,"FY19; IJ#8",null,null,"Instructor",null,null,null,null,null,"CBRNE Prevention and Response Watercraft",null,null,null,null,null,null,null,null,null,"Exercise",null,null,null,null,null,null,null,null,null,null,null,null,null,null,null,"WCMP   ",null,null,null,"Personnel_Training",null,null,null,null,null,null,null,null,null,null,null,null,null,null,null,null,null,null,null,null,null,"Screening, Search, and Detection"]
["HC",null,null,null,null,null,null,"EMPG-Passthrough to Local",null,"FY19; IJ#9",null,null,"Accountant",null,null,null,null,null,"CBRNE Aviation Equipment",null,null,null,null,null,null,null,null,null,"SOURCE_ExerciseType2",null,null,null,null,null,null,null,null,null,null,null,null,null,null,null,null,null,null,null,"Course Delivery & Evaluation",null,null,null,null,null,null,null,null,null,null,null,null,null,null,null,null,null,null,null,null,null,"Situational Assessment"]
["LE",null,null,null,null,null,null,null,null,"FY19; IJ#10",null,null,"Bookkeeper",null,null,null,null,null,"CBRNE Logistical Support Equipment",null,null,null,null,null,null,null,null,null,"Workshop / Seminar",null,null,null,null,null,null,null,null,null,null,null,null,null,null,null,null,null,null,null,"Course Development",null,null,null,null,null,null,null,null,null,null,null,null,null,null,null,null,null,null,null,null,null,"Supply Chain Integrity and Security"]
["PNP",null,null,null,null,null,null,"SOURCE_SolutionAreaFull",null,"FY18; IJ#1",null,null,null,null,null,null,null,null,"Intervention Equipment",null,null,null,null,null,null,null,null,null,"Tabletop / Games",null,null,null,null,null,null,null,null,null,null,null,null,null,null,null,null,null,null,null,"Staff Overtime / Backfill",null,null,null,null,null,null,null,null,null,null,null,null,null,null,null,null,null,null,null,null,null,"Threats and Hazards Identification"]
["PH",null,null,null,null,null,null,"Planning",null,"FY18; IJ#2",null,null,"SOURCE_GrantManagementArea",null,null,null,null,null,"Other Authorized Equipment",null,null,null,null,null,null,null,null,null,"Drill Attendee"]
["PSC",null,null,null,null,null,null,"Organization",null,"FY18; IJ#3",null,null,"Grant Administration",null,null,null,null,null,"-----TRAINING-----",null,null,null,null,null,null,null,null,null,"Drill Host",null,null,null,null,null,null,null,null,null,null,null,null,null,null,null,null,null,null,null,"Personnel_Exercise",null,null,null,null,null,null,null,null,null,null,null,null,null,null,null,null,null,null,null,null,null,"Investment Justifications"]
["PW",null,null,null,null,null,null,"Equipment",null,"FY18; IJ#4",null,null,"Grant Management",null,null,null,null,null,"Backfill",null,null,null,null,null,null,null,null,null,"Functional Attendee",null,null,null,null,null,null,null,null,null,null,null,null,null,null,null,null,null,null,null,"Conduct / Attend / Evaluate > OT / Backfill",null,null,null,null,null,null,null,null,null,null,null,null,null,null,null,null,null,null,null,null,null,"IJ #01 / Goal #1"]
[null,null,null,null,null,null,null,"Training",null,"FY18; IJ#5",null,null,"Fiscal ",null,null,null,null,null,"Overtime",null,null,null,null,null,null,null,null,null,"Functional Host",null,null,null,null,null,null,null,null,null,null,null,null,null,null,null,null,null,null,null,"Design / Develop",null,null,null,null,null,null,null,null,null,null,null,null,null,null,null,null,null,null,null,null,null,"IJ #02 / Goal #2"]
[null,null,null,null,null,null,null,"Exercise",null,"FY18; IJ#6",null,null,"Recordkeeping",null,null,null,null,null,"Training Counsultant",null,null,null,null,null,null,null,null,null,"Full Scale Attendee",null,null,null,null,null,null,null,null,null,null,null,null,null,null,null,null,null,null,null,null,null,null,null,null,null,null,null,null,null,null,null,null,null,null,null,null,null,null,null,null,null,"IJ #02 / Goal #9"]
[null,null,null,null,null,null,null,"M & A",null,"FY18; IJ#7",null,null,"Monitoring - Audits",null,null,null,null,null,"Desgin/Develop/Conduct/Evaluate",null,null,null,null,null,null,null,null,null,"Full Scale Host",null,null,null,null,null,null,null,null,null,null,null,null,null,null,null,null,null,null,null,"Personnel_MA",null,null,null,null,null,null,null,null,null,null,null,null,null,null,null,null,null,null,null,null,null,"IJ #03 / Goal #3"]
[null,null,null,null,null,null,null,null,null,"FY18; IJ#8",null,null,"Training",null,null,null,null,null,"Travel",null,null,null,null,null,null,null,null,null,"Equipment Inventory",null,null,null,null,null,null,null,null,null,null,null,"source_FundSource",null,null,null,null,null,null,null,"Grant Admin",null,null,null,null,null,null,null,null,null,null,null,null,null,null,null,null,null,null,null,null,null,"IJ #04 / Goal #4"]
[null,null,null,null,null,null,null,null,null,"FY18; IJ#9",null,null,"Exercise",null,null,null,null,null,"Supplies/Materials",null,null,null,null,null,null,null,null,null,"SOURCE_EquipmentHoldTrigger",null,null,null,null,null,null,null,null,null,null,null,"CCP",null,null,null,null,null,null,null,null,null,null,null,null,null,null,null,null,null,null,null,null,null,null,null,null,null,null,null,null,null,"IJ #05 / Goal #7"]
[null,null,null,null,null,null,null,null,null,"FY18; IJ#10",null,null,"Logistics",null,null,null,null,null,"Training Equipment ",null,null,null,null,null,null,null,null,null,"ARL",null,null,null,null,null,null,null,null,null,null,null,"SHSGP",null,null,null,null,null,null,null,null,null,null,null,null,null,null,null,null,null,null,null,null,null,null,null,null,null,null,null,null,null,"IJ #06 / Goal #10"]
[null,null,null,null,null,null,null,null,null,"FY17; IJ#1",null,null,null,null,null,null,null,null,"EMPG-Certification/Recertification of instructors",null,null,null,null,null,null,null,null,null,"Aviation or Watercraft",null,null,null,null,null,null,null,null,null,null,null,"UASI",null,null,null,null,null,null,null,"2017-10-09",null,null,null,null,null,null,null,null,null,null,null,null,null,null,null,null,null,null,null,null,null,"IJ #07 / Goal #5"]
[null,null,null,null,null,null,null,null,null,"FY17; IJ#2",null,null,"SOURCE_GrantManagementType",null,null,null,null,null,"EMPG-Other emergency management related training activities",null,null,null,null,null,null,null,null,null,"EHP",null,null,null,null,null,null,null,null,null,null,null,"MMRS",null,null,null,null,null,null,null,"Consultant_SourceList",null,null,"ConferenceList","LawList","DevelopList","CommunityList",null,null,null,null,null,null,null,null,null,null,null,null,null,null,null,"IJ #08 / Goal #1"]
[null,null,null,null,null,null,null,null,null,"FY17; IJ#3",null,null,"Employee",null,null,null,null,null,"-----EXERCISE-----",null,null,null,null,null,null,null,null,null,"EHP / Aviation or Watercraft",null,null,null,null,null,null,null,null,null,null,null,"BZPP",null,null,null,null,null,null,null,"Planning","Planning","<== Consultant_SourceLookup","Consultant / Contractor Fee","Consultant / Contractor Fee","Consultant / Contractor Fee","Consultant / Contractor Fee",null,null,null,null,null,null,null,null,null,null,null,null,null,null,null,"IJ #09 / Goal #6"]
[null,null,null,null,null,null,null,null,null,"FY17; IJ #4",null,null,"Contractor",null,null,null,null,null,"Backfill",null,null,null,null,null,null,null,null,null,"Performance Bond",null,null,null,null,null,null,null,null,null,null,null,"TSGP",null,null,null,null,null,null,null,"Organization","Organization",null,"Facility Costs > Meeting Space Rental",null,null,"Travel",null,null,null,null,null,null,null,null,null,null,null,null,null,null,null,"IJ #09 / Goal #8"]
[null,null,null,null,null,null,null,null,null,"FY17; IJ #5",null,null,null,null,null,null,null,null,"Overtime",null,null,null,null,null,null,null,null,null,"Performance Bond / Aviation or Watercraft",null,null,null,null,null,null,null,null,null,null,null,"TSGPF",null,null,null,null,null,null,null,"Training","Training",null,"Meals (w/ prior approval)",null,null,"Materials / Supplies",null,null,null,null,null,null,null,null,null,null,null,null,null,null,null,"IJ #10 / Goal #11"]
[1,"Statement of Certification - County Authorized Agent - By signing below, I hereby certify I am the duly appointed Authorized Agent and have the authority to apply for ","this Grant Program and the Operational Area's application represents the needs for this Grant Program.","OA",null,null,null,null,null,"FY17; IJ #6",null,null,null,null,null,null,null,null,"Exercise Consultant",null,null,null,null,null,null,null,null,null,"No Hold Indicated",null,null,null,null,null,null,null,null,null,null,null,"PROP1B",null,null,null,null,null,null,null,"Exercise","Exercise",null,"Travel"]
[1,"OA","Statement of Certification - County Authorized Agent - By signing below, I hereby certify I am the duly appointed Authorized Agent and have the authority to apply for ","this Grant Program and the Operational Area's application represents the needs for this Grant Program.",null,null,null,null,null,"FY17; IJ #7",null,null,null,null,null,null,null,null,"Design/Develop/Conduct/Evaluate",null,null,null,null,null,null,null,null,null,null,null,null,null,null,null,null,null,null,null,null,null,"RCPGP-C",null,null,null,null,null,null,null,"M&A","M_A",null,null,null,null,null,null,null,null,null,null,null,null,null,null,null,null,null,null,null,null,"State Strategy Goals"]
[2,"UASI","Statement of Certification - UASI Authorized Agent - By signing below, I hereby certify I am the duly appointed Authorized Agent and have the authority to apply for ","this Grant Program and the UASI's application represents the needs for this Grant Program.",null,null,null,null,null,"FY17; IJ #8",null,null,null,null,null,null,null,null,"Travel",null,null,null,null,null,null,null,null,null,null,null,null,null,null,null,null,null,null,null,null,null,"RCPGP-NC",null,null,null,null,null,null,null,null,null,null,"InfoList","IncrList","PublicList",null,null,null,null,null,null,null,null,null,null,null,null,null,null,null,1,"Goal #1"]
[3,"SA","Statement of Certification - State Agency Authorized Agent - By signing below, I hereby certify I am the duly appointed Authorized Agent and have the authority to apply for ","this Grant Program and the Agency's application represents the needs for this Grant Program.",null,null,null,null,null,"FY17; IJ #9",null,null,null,null,null,null,null,null,"Supplies/Materials",null,null,null,null,null,null,null,null,null,null,null,null,null,null,null,null,null,null,null,null,null,"IEC",null,null,null,null,null,null,null,"Consultant_PlanningList",null,null,"Consultant / Contractor Fee","Consultant / Contractor Fee","Consultant / Contractor Fee",null,null,null,null,null,null,null,null,null,null,null,null,null,null,null,2,"Goal #2"]
[4,"TA","Statement of Certification - Transit Agency Authorized Agent - By signing below, I hereby certify I am the duly appointed Authorized Agent and have the authority to apply for ","this Grant Program and the Agency's application represents the needs for this Grant Program.",null,null,null,null,null,"FY17; IJ #10",null,null,null,null,null,null,null,null,"Exercise Equipment",null,null,null,null,null,null,null,null,null,null,null,null,null,null,null,null,null,null,null,null,null,"NSGP",null,null,null,null,null,null,null,"Conference","Conference","<== Consultant_PlanningLookup",null,null,"Conferences",null,null,null,null,null,null,null,null,null,null,null,null,null,null,null,3,"Goal #3"]
[5,"Non-Profit","Statement of Certification - Non-Profit Authorized Agent - By signing below, I hereby certify I am the duly appointed Authorized Agent and have the authority to apply for ","this Grant Program and the Non-Profit's application represents the needs for this Grant Program.",null,null,null,null,null,"FY16; IJ #1",null,null,null,null,null,null,null,null,"EMPG-Implementation of HSEEP",null,null,null,null,null,null,null,null,null,"Training",null,null,null,null,null,null,null,null,null,null,null,"RTTAC",null,null,null,null,null,null,null,"Develop & Enhance Plans","Develop",null,null,null,"Facility Costs > Meeting Space Rental",null,null,null,null,null,null,null,null,null,null,null,null,null,null,null,4,"Goal #4"]
["By signing below, I hereby certify I am the duly appointed Authorized Agent and have the authority to apply for the _ , and the _ application represents the needs for the _.",null,null,null,null,null,null,null,null,"FY16; IJ #2",null,null,null,null,null,null,null,null,"EMPG-Other items",null,null,null,null,null,null,null,null,null,"SOURCE_TrainingActivity ",null,null,null,null,null,null,null,null,null,null,null,"OPSG",null,null,null,null,null,null,null,"Law Enforcement","Law",null,null,null,"Materials / Supplies",null,null,null,null,null,null,null,null,null,null,null,null,null,null,null,5,"Goal #5"]
["Y",null,null,null,null,null,null,null,null,"FY16; IJ #3",null,null,null,null,null,null,null,null,"-----M & A-----",null,null,null,null,null,null,null,null,null,"Classroom",null,null,null,null,null,null,null,null,null,null,null,"PSIC",null,null,null,null,null,null,null,"Outreach","Community",null,null,null,"Meals (w/ prior approval)",null,null,null,null,null,null,null,null,null,null,null,null,null,null,null,6,"Goal #6"]
["N",null,null,null,null,null,null,null,null,"FY16; IJ #4",null,null,null,null,null,null,null,null,"M&A Hiring Contractors/Consultants",null,null,null,null,null,null,null,null,null,"Field-Based Attendee",null,null,null,null,null,null,null,null,null,null,null,"EMPG",null,null,null,null,null,null,null,null,null,null,null,null,"Outreach",null,null,null,null,null,null,null,null,null,null,null,null,null,null,null,7,"Goal #7"]
[null,null,null,"Indirect Cost",null,null,"SOURCE_DetailIndirectCost",null,null,"FY16; IJ #5",null,null,null,null,null,null,null,null,"Hiring of Full or Part-Time Staff",null,null,null,null,null,null,null,null,null,"Field-Based Host",null,null,null,null,null,null,null,null,null,null,null,"EOC",null,null,null,null,null,null,null,"Consultant_OrganizationList",null,null,null,null,"Travel",null,null,null,null,null,null,null,null,null,null,null,null,null,null,null,8,"Goal #8"]
[null,null,null,"SOURCE_SolutionAreaSubCategoryIndirectCost",null,null,"General & Admin",null,null,"FY16; IJ #6",null,null,null,null,null,null,null,null,"All Other M&A Expenses",null,null,null,null,null,null,null,null,null,null,null,null,null,null,null,null,null,null,null,null,null,"RCASP",null,null,null,null,null,null,null,"Info-Intel Analysis & Sharing / Fusion Center Activities","Info","<== Consultant_OrganizationLookup",null,null,null,null,null,null,null,null,null,null,null,null,null,null,null,null,null,null,9,"Goal #9"]
[null,null,null,"Facilities & Administration","Facilities_Administration","Facilities_Administration","Facilities & Admin",null,null,"FY16; IJ #7",null,null,null,null,null,null,null,null,"-----PASSTHROUGH TO LOCAL-----",null,null,null,null,null,null,null,null,null,null,null,null,null,null,null,null,null,null,null,null,null,"WCMP",null,null,null,null,null,null,null,"Increased Threat Levels","Incr",null,"DevelopmentList","DeliveryList",null,null,null,null,null,null,null,null,null,null,null,null,null,null,null,null,10,"Goal #10"]
[null,null,null,null,null,"Staff Salaries","Overhead Costs",null,null,"FY16; IJ #8",null,null,null,null,null,null,null,null,"EMPG-Funds being passed through to cities and/or political entities",null,null,null,null,null,null,null,null,null,null,null,null,null,null,null,null,null,null,null,null,null,null,null,null,null,null,null,null,null,"Public-Private Partnership","Public",null,"Consultant / Contractor Fee","Consultant / Contractor Fee",null,null,null,null,null,null,null,null,null,null,null,null,null,null,null,null,11,"Goal #11"]
[null,null,null,null,null,"Facility Costs",null,null,null,"FY16; IJ #9",null,null,null,null,null,null,null,null,"-----CONSTRUCTION & RENOVATION-----",null,null,null,null,null,null,null,null,null,null,null,null,null,null,null,null,null,null,null,null,null,null,null,null,null,null,null,null,null,null,null,null,null,"Facility Costs > Meeting Space Rental"]
[null,null,null,null,null,"Supplies",null,null,null,"FY16; IJ #10",null,null,null,null,null,null,null,null,"EMPG/EOC-Construction",null,null,null,null,null,null,null,null,null,null,null,null,null,null,null,null,null,null,null,null,null,null,null,null,null,null,null,null,null,"Consultant_TrainingList",null,null,null,"Materials / Supplies"]
[null,null,null,null,null,"Communications Svcs",null,null,null,"FY15; IJ #1",null,null,null,null,null,null,null,null,"EMPG/EOC-Renovation",null,null,null,null,null,null,null,null,null,null,null,null,null,null,null,null,null,null,null,null,null,null,null,null,null,null,null,null,null,"Course Development","Development","<== Consultant_TrainingLookup",null,"Meals (w/ prior approval)"]
[null,null,null,null,null,"Training",null,null,null,"FY15; IJ #2",null,null,null,null,null,null,null,null,"-----MAINTENANCE & SUSTAINMENT-----",null,null,null,null,null,null,null,null,null,null,null,null,null,null,null,null,null,null,null,null,null,null,null,null,null,null,null,null,null,"Course Delivery & Evaluation","Delivery",null,null,"Training Equipment"]
[null,null,null,null,null,"Travel",null,null,null,"FY15; IJ #3",null,null,null,null,null,null,null,null,"EMPG-Maintenance Contracts & Warranties",null,null,null,null,null,null,null,null,null,null,null,null,null,null,null,null,null,null,null,null,null,null,null,null,null,null,null,null,null,null,null,null,null,"Travel"]
[null,null,null,null,null,"Non AEL equipment (w/ prior approval)",null,null,null,"FY15; IJ #4",null,null,null,null,null,null,null,null,"EMPG-Repair & Replacement Costs",null,null,null,null,null,null,null,null,null,null,null,null,null,null,null,null,null,null,null,null,null,null,null,null,null,null,null,null,null,"Consultant_ExerciseList"]
[null,null,null,null,null,"Contractor",null,null,null,"FY15; IJ #5",null,null,null,null,null,null,null,null,"EMPG-Upgrades",null,null,null,null,null,null,null,null,null,null,null,null,null,null,null,null,null,null,null,null,null,null,null,null,null,null,null,null,null,"Design / Develop","Design","<== Consultant_ExerciseLookup","DesignList","ConductList","SuppliesList"]
[null,null,null,null,null,null,null,null,null,"FY15; IJ #6",null,null,null,null,null,null,null,null,"EMPG-User fees",null,null,null,null,null,null,null,null,null,null,null,null,null,null,null,null,null,null,null,null,null,null,null,null,null,null,null,null,null,"Conduct / Attend / Evaluate","Conduct",null,"Consultant / Contractor Fee","Consultant / Contractor Fee","Facility Costs > Meeting Space Rental"]
[null,null,null,"Indirect Cost",null,null,null,null,null,"FY15; IJ #7",null,null,null,null,null,null,null,null,null,null,null,null,null,null,null,null,null,null,null,null,null,null,null,null,null,null,null,null,null,null,null,null,null,null,null,null,null,null,"Supplies / Materials / Production Costs","Supplies",null,null,"Meals (w/ prior approval)","Materials / Supplies"]
[null,null,null,"SOURCE_SolutionAreaSubCategoryICRRate",null,null,null,null,null,"FY15; IJ #8",null,null,null,null,null,null,null,null,null,null,null,null,null,null,null,null,null,null,null,null,null,null,null,null,null,null,null,null,null,null,null,null,null,null,null,null,null,null,null,null,null,null,"Travel","Meals (w/ prior approval)"]
[null,null,null,"Indirect Cost Rate","Indirect_Cost_Rate","Indirect_Cost_Rate","_10_De_Minimis",null,null,null,null,null,null,null,null,null,null,null,null,null,null,null,null,null,null,null,null,null,null,null,null,null,null,null,null,null,null,null,null,null,null,null,null,null,null,null,null,null,"Consultant_M_and_AList",null,null,null,null,"Training Equipment"]
[null,null,null,null,null,"10% De Minimis",0.1,null,null,null,null,null,null,null,null,null,null,null,null,null,null,null,null,null,null,null,null,null,null,null,null,null,null,null,null,null,null,null,null,null,null,null,null,null,null,null,null,null,"Grant Admin","Admin","<== Consultant_MALookup"]
[null,null,null,null,null,"S/W",null,null,null,null,null,null,null,null,null,null,null,null,null,null,null,null,null,null,null,null,null,null,null,null,null,null,null,null,null,null,null,null,null,null,null,null,null,null,null,null,null,null,null,null,null,"AdminList"]
[null,null,null,null,null,"SW&B",null,null,null,null,null,null,null,null,null,null,null,null,null,null,null,null,null,null,null,null,null,null,null,null,null,null,null,null,null,null,null,null,null,null,null,null,null,null,null,null,null,null,null,null,null,"Consultant / Contractor Fee"]
[null,null,null,null,null,"TDC"]
[null,null,null,null,null,"MTDC",null,null,null,null,null,null,null,null,null,null,null,null,null,null,null,null,null,null,null,null,null,null,null,null,null,null,null,null,null,null,null,null,null,null,null,null,null,null,null,null,null,null,"MATCH"]
[null,null,null,null,null,"Other",null,null,null,null,null,null,null,null,null,null,null,null,null,null,null,null,null,null,null,null,null,null,null,null,null,null,null,null,null,null,null,null,null,null,null,null,null,null,"SolutionAreas",null,null,null,"SourceLists","SourceLookups"]
[null,null,null,"Today's  Date:",null,null,null,null,null,null,null,null,null,null,null,null,null,null,null,null,null,null,null,null,null,null,null,null,null,null,null,null,null,null,null,null,null,null,null,null,null,null,null,null,"Planning",null,null,null,"Planning","Planning"]
[null,null,null,"Initial Application",null,null,null,null,null,null,null,null,null,null,null,null,null,null,null,null,null,null,null,null,null,null,null,null,null,null,null,null,null,null,null,null,null,null,null,null,null,null,null,null,"Organization",null,null,null,"Organization","Organization"]
[null,null,null,"Reimbursement Request",null,null,null,null,null,null,null,null,null,null,null,null,null,null,null,null,null,null,null,null,null,null,null,null,null,null,null,null,null,null,null,null,null,null,null,null,null,null,null,null,"Equipment",null,null,null,"Equipment","Equipment"]
[null,null,null,"Advance",null,null,null,null,null,null,null,null,null,null,null,null,null,null,null,null,null,null,null,null,null,null,null,null,null,null,null,null,null,null,null,null,null,null,null,null,null,null,null,null,"Training",null,null,null,"Training","Training"]
[null,null,null,"Expenditure Period:",null,null,null,null,null,null,null,null,null,null,null,null,null,null,null,null,null,null,null,null,null,null,null,null,null,null,null,null,null,null,null,null,null,null,null,null,null,null,null,null,"M&A",null,null,null,"Exercise","Exercise"]
[null,null,null,"Request #",null,null,null,null,null,null,null,null,null,null,null,null,null,null,null,null,null,null,null,null,null,null,null,null,null,null,null,null,null,null,null,null,null,null,null,null,null,null,null,null,"Construction / Renovation",null,null,null,"M&A","M_A"]
[null,null,null,"(Date) From:",null,null,null,null,null,null,null,null,null,null,null,null,null,null,null,null,null,null,null,null,null,null,null,null,null,null,null,null,null,null,null,null,null,null,null,null,null,null,null,null,null,null,null,null,"Indirect","Indirect"]
[null,null,null,"(Date) To:"]
[null,null,null,"Approval: Cal OES ONLY",null,null,null,null,null,null,null,null,null,null,null,null,null,null,null,null,null,null,null,null,null,null,null,null,null,null,null,null,null,null,null,null,null,null,null,null,null,null,null,null,null,null,null,null,"PlanningLists","PlanningLookups",null,"ConferenceLists","LawLists","DevelopLists","CommunityLists"]
[null,null,null,"Modification",null,null,null,null,null,null,null,null,null,null,null,null,null,null,null,null,null,null,null,null,null,null,null,null,null,null,null,null,null,null,null,null,null,null,null,null,null,null,null,null,null,null,null,null,"Conference","Conference",null,"Conference Fees","Contractors","Consultants","Consultants"]
[null,null,null,null,null,null,null,null,null,null,null,null,null,null,null,null,null,null,null,null,null,null,null,null,null,null,null,null,null,null,null,null,null,null,null,null,null,null,null,null,null,null,null,null,null,null,null,null,"Law Enforcement","Law",null,"Contractors","Materials","Materials","Materials"]
[null,null,null,null,null,null,null,null,null,null,null,null,null,null,null,null,null,null,null,null,null,null,null,null,null,null,null,null,null,null,null,null,null,null,null,null,null,null,null,null,null,null,null,null,null,null,null,null,"Develop & Enhance Plans","Develop",null,"Materials","Rental Costs","Rental Costs","Rental Costs"]
[null,null,null,null,null,null,null,null,null,null,null,null,null,null,null,null,null,null,null,null,null,null,null,null,null,null,null,null,null,null,null,null,null,null,null,null,null,null,null,null,null,null,null,null,null,null,null,null,"Community Outreach","Community",null,"Meals (w/ prior approval)","Staff Salaries","Staff Salaries","Staff Salaries"]
[null,null,null,null,null,null,null,null,null,null,null,null,null,null,null,null,null,null,null,null,null,null,null,null,null,null,null,null,null,null,null,null,null,null,null,null,null,null,null,null,null,null,null,null,null,null,null,null,null,null,null,"Rental Costs","Travel","Travel","Travel"]
[null,null,null,null,null,null,null,null,null,null,null,null,null,null,null,null,null,null,null,null,null,null,null,null,null,null,null,null,null,null,null,null,null,null,null,null,null,null,null,null,null,null,null,null,null,null,null,null,"OrganizationLists","OrganizationLookups",null,"Travel"]
[null,null,null,null,null,null,null,null,null,null,null,null,null,null,null,null,null,null,null,null,null,null,null,null,null,null,null,null,null,null,null,null,null,null,null,null,null,null,null,null,null,null,null,null,null,null,null,null,"Info-Intel Analysis & Sharing / Fusion Center activities","Info"]
[null,null,null,"initial application","The expenditure period for an Initial Application is the complete life of the grant. For example: 7/1/2008 - 6/31/09.",null,null,null,null,null,null,null,null,null,null,null,null,null,null,null,null,null,null,null,null,null,null,null,null,null,null,null,null,null,null,null,null,null,null,null,null,null,null,null,null,null,null,null,"Equipment / Resource / Project Management","Equip",null,"InfoLists","EquipLists","IncreasedLists","BorderLists","PublicLists"]
[null,null,null,"Reimbursement request","Expenditure period is based on Subgrantee reimbursement cycle and may differ. Limited to one cash request per month. Examples: 1/1/2009 - 1/31/2009 or 2/1/2009 - 4/30/2009.",null,null,null,null,null,null,null,null,null,null,null,null,null,null,null,null,null,null,null,null,null,null,null,null,null,null,null,null,null,null,null,null,null,null,null,null,null,null,null,null,null,null,null,"Increased Threat Level ","Increased",null,"Contractors ","Contractors","Border / Maritime Security > OT","Overtime","Conferences"]
[null,null,null,"modification","Expenditure periods for Modifications are based on quarter dates. Subgrantees are limited to one Mod. Per Quarter. Example: 1/1/2009 - 3/31/2009 or 9/1/2009 - 12/31/2009.",null,null,null,null,null,null,null,null,null,null,null,null,null,null,null,null,null,null,null,null,null,null,null,null,null,null,null,null,null,null,null,null,null,null,null,null,null,null,null,null,null,null,null,"Border Security","Border",null,"Intelligence Analysts > Contractors","Staff","Contractors ","Backfill","Consultants"]
[null,null,null,"advance",null,null,null,null,null,null,null,null,null,null,null,null,null,null,null,null,null,null,null,null,null,null,null,null,null,null,null,null,null,null,null,null,null,null,null,null,null,null,null,null,null,null,null,null,"Public-Private Partnership","Public",null,"Intelligence Analysts > Staff",null,"Nat'l Guard > OT",null,"Facility Costs > Meeting Space Rental"]
[null,null,null,null,null,null,null,null,null,null,null,null,null,null,null,null,null,null,null,null,null,null,null,null,null,null,null,null,null,null,null,null,null,null,null,null,null,null,null,null,null,null,null,null,null,null,null,null,null,null,null,"Project Mangement Staff Costs",null,"Public Safety Staff > Overtime",null,"Materials / Supplies"]
[null,null,null,"SOURCE_FIPSMsg",null,null,null,null,null,null,null,null,null,null,null,null,null,null,null,null,null,null,null,null,null,null,null,null,null,null,null,null,null,null,null,null,null,null,null,null,null,null,null,null,null,null,null,null,"EquipmentLists","EquipmentLookups",null,null,null,"Staff > Salaries",null,"Meals (w/ prior approval)"]
[null,null,null,"Enter manually here",null,null,null,null,null,null,null,null,null,null,null,null,null,null,null,null,null,null,null,null,null,null,null,null,null,null,null,null,null,null,null,null,null,null,null,null,null,null,null,null,null,null,null,null,"Agricultural Terrorism Prevention, Response and Mitigation Equipment","Agricultural",null,null,null,"Staff > OT / Backfill",null,"Outreach"]
[null,null,null,null,null,null,null,null,null,null,null,null,null,null,null,null,null,null,null,null,null,null,null,null,null,null,null,null,null,null,null,null,null,null,null,null,null,null,null,null,null,null,null,null,null,null,null,null,"CBRNE Aviation Equipment","Aviation",null,null,null,null,null,"Staff Salaries"]
[null,null,null,null,null,null,null,null,null,null,null,null,null,null,null,null,null,null,null,null,null,null,null,null,null,null,null,null,null,null,null,null,null,null,null,null,null,null,null,null,null,null,null,null,null,null,null,null,"CBRNE Incident Response Vehicle","Incident",null,null,null,null,null,"Travel"]
[null,null,null,null,null,null,null,null,null,null,null,null,null,null,null,null,null,null,null,null,null,null,null,null,null,null,null,null,null,null,null,null,null,null,null,null,null,null,null,null,null,null,null,null,null,null,null,null,"CBRNE Logistical Support Equipment","Logistical"]
[null,null,null,null,null,null,null,null,null,null,null,null,null,null,null,null,null,null,null,null,null,null,null,null,null,null,null,null,null,null,null,null,null,null,null,null,null,null,null,null,null,null,null,null,null,null,null,null,"CBRNE Prevention and Response Watercraft","Preventation",null,"StaffLists","DevelopmentLists","DeliveryLists"]
[null,null,null,null,null,null,null,null,null,null,null,null,null,null,null,null,null,null,null,null,null,null,null,null,null,null,null,null,null,null,null,null,null,null,null,null,null,null,null,null,null,null,null,null,null,null,null,null,"CBRNE Reference Materials","Reference",null,"OT / Backfill","Consultant> Design / Conduct / Evaluate Training","Consultant"]
[null,null,null,null,null,null,null,null,null,null,null,null,null,null,null,null,null,null,null,null,null,null,null,null,null,null,null,null,null,null,null,null,null,null,null,null,null,null,null,null,null,null,null,null,null,null,null,null,"CBRNE Search and Rescue Equipment","Search",null,"Tuition","Staff > Design / Conduct / Evaluate Training","Facility Costs - Management Space Rental"]
[null,null,null,null,null,null,null,null,null,null,null,null,null,null,null,null,null,null,null,null,null,null,null,null,null,null,null,null,null,null,null,null,null,null,null,null,null,null,null,null,null,null,null,null,null,null,null,null,"Cyber Security Enhancement Equipment ","Cyber",null,"Travel",null,"Materials / Supplies"]
[null,null,null,null,null,null,null,null,null,null,null,null,null,null,null,null,null,null,null,null,null,null,null,null,null,null,null,null,null,null,null,null,null,null,null,null,null,null,null,null,null,null,null,null,null,null,null,null,"Decontamination","Decontamination",null,"Certification / Re-Certification",null,"Meals (w/ prior approval)"]
[null,null,null,null,null,null,null,null,null,null,null,null,null,null,null,null,null,null,null,null,null,null,null,null,null,null,null,null,null,null,null,null,null,null,null,null,null,null,null,null,null,null,null,null,null,null,null,null,"Detection ","Detection",null,null,null,"Non AEL equipment (w/ prior approval)"]
[null,null,null,null,null,null,null,null,null,null,null,null,null,null,null,null,null,null,null,null,null,null,null,null,null,null,null,null,null,null,null,null,null,null,null,null,null,null,null,null,null,null,null,null,null,null,null,null,"Explosive Device Mitigation and Remediation Equipment","Explosive",null,null,null,"Staff Salaries"]
[1,"Transit Security Grant Program (TSGP)",null,null,null,null,null,"Statement of Certification-Approval Authority Body - TSGP","By signing below, I hereby certify that the Transit Agency's application represents the Approval Authority's consensus and needs for the Transit Security Grant Program.",null,null,null,null,null,null,null,null,null,null,null,null,null,null,null,null,null,null,null,null,null,null,null,null,null,null,null,null,null,null,null,null,null,null,null,null,null,null,null,"Information Technology","Information ",null,null,null,"Travel"]
[2,"Homeland Security Grant Program (HSGP)",null,null,null,null,null,"Statement of Certification-Approval Authority Body - HSGP only","By signing below, I hereby certify that the Operational Area's application represents the Approval Authority's consensus on the Operational Area's Homeland Security ",null,null,null,null,null,null,null,null,null,null,null,null,null,null,null,null,null,null,null,null,null,null,null,null,null,null,null,null,null,null,null,null,null,null,null,null,null,null,null,"Inspection and Screening Equipmnet ","Inspection"]
[3,"Regional Catastrophic Preparedness Grant Program (RCPGP) NON-COMPETITIVE",null,null,null,null,null,"Statement of Certification-Approval Authority Body - RCPGP NON-Comp.","By signing below, I hereby certify I am the duly appointed Authorized Agent and have the authority to apply for the Non-Competitive Regional Catastrophic Preparedness ",null,null,null,null,null,null,null,null,null,null,null,null,null,null,null,null,null,null,null,null,null,null,null,null,null,null,null,null,null,null,null,null,null,null,null,null,null,null,null,"Interoperable Communications Equipment","Interoperable",null,"DesignLists","ConductLists","SuppliesLists"]
[4,"Regional Catastrophic Preparedness Grant Program (RCPGP) COMPETITIVE",null,null,null,null,null,"Statement of Certification-Approval Authority Body - RCPGP COMP.","By signing below, I hereby certify I am the duly appointed Authorized Agent and have the authority to apply for the Competitive Regional Catastrophic Preparedness ",null,null,null,null,null,null,null,null,null,null,null,null,null,null,null,null,null,null,null,null,null,null,null,null,null,null,null,null,null,null,null,null,null,null,null,null,null,null,null,"Intervention Equipment","Intervention",null,"Consultant","Consultant","Facility Costs - Meeting Space Rental"]
[5,"Public Safety Interoperable Communications (PSIC)",null,null,null,null,null,"Statement of Certification-Approval Authority Body - PSIC","By signing below, I hereby certify I am the duly appointed Authorized Agent and have the authority to apply for the Public Safety Interoperable Communications grant ",null,null,null,null,null,null,null,null,null,null,null,null,null,null,null,null,null,null,null,null,null,null,null,null,null,null,null,null,null,null,null,null,null,null,null,null,null,null,null,"Maintenance & Sustainment","Maintenance",null,"OT / Backfill","Meals (w/ prior approval)","Materials / Supplies"]
[6,"PROPOSITION 1B- Waterborne Transit",null,null,null,null,null,"Statement of Certification-Approval Authority Body - PROP 1B Waterborne Transit","By signing below, I hereby certify I am the duly appointed Authorized Agent and have the authority to apply for the Proposition 1B Waterborne Transit Grant Program, and ",null,null,null,null,null,null,null,null,null,null,null,null,null,null,null,null,null,null,null,null,null,null,null,null,null,null,null,null,null,null,null,null,null,null,null,null,null,null,null,"Medical ","Medical",null,"Staff Salaries","OT / Backfill","Meals (w/ prior approval)"]
[7,"PROPOSITION 1B- Ports",null,null,null,null,null,"Statement of Certification-Approval Authority Body - PROP 1B Ports","By signing below, I hereby certify I am the duly appointed Authorized Agent and have the authority to apply for the Proposition 1B Port Security Grant Program, and the ",null,null,null,null,null,null,null,null,null,null,null,null,null,null,null,null,null,null,null,null,null,null,null,null,null,null,null,null,null,null,null,null,null,null,null,null,null,null,null,"Other Authorized Equipment","Other",null,null,"Staff Salaries","Non AEL equipment (w/ prior approval)"]
[8,"PROPOSITION 1B- Intracity Transit",null,null,null,null,null,"Statement of Certification-Approval Authority Body - PROP 1B Intracity Transit","By signing below, I hereby certify I am the duly appointed Authorized Agent and have the authority to apply for the Proposition 1B Intracity Grant Program, and the City's ",null,null,null,null,null,null,null,null,null,null,null,null,null,null,null,null,null,null,null,null,null,null,null,null,null,null,null,null,null,null,null,null,null,null,null,null,null,null,null,"Personal Protective Equipment","Personal",null,null,"Travel"]
[9,"PROPOSITION 1B- Heavy Rail Transit",null,null,null,null,null,"Statement of Certification-Approval Authority Body - PROP 1B Heavy Rail Transit","By signing below, I hereby certify I am the duly appointed Authorized Agent and have the authority to apply for the Proposition 1B Heavy Rail Grant Program, and the Transit ",null,null,null,null,null,null,null,null,null,null,null,null,null,null,null,null,null,null,null,null,null,null,null,null,null,null,null,null,null,null,null,null,null,null,null,null,null,null,null,"Physical Security Enhancement Equipment","Physical"]
[10,"Operation Stonegarden",null,null,null,null,null,"Statement of Certification-Approval Authority Body - Operation Stonegarden","By signing below, I hereby certify I am the duly appointed Authorized Agent and have the authority to apply for the Operation Stonegarden Grant Program, and the",null,null,null,null,null,null,null,null,null,null,null,null,null,null,null,null,null,null,null,null,null,null,null,null,null,null,null,null,null,null,null,null,null,null,null,null,null,null,null,"Power","Power",null,"AdminLists"]
[11,"Nonprofit Security Grant Program (NSGP)",null,null,null,null,null,"Statement of Certification-Approval Authority Body - NSGP","By signing below, I hereby certify I am the duly appointed Authorized Agent as described in the Governing Body Resolution and have the authority to apply for the",null,null,null,null,null,null,null,null,null,null,null,null,null,null,null,null,null,null,null,null,null,null,null,null,null,null,null,null,null,null,null,null,null,null,null,null,null,null,null,"Terrorism Incident Prevention Equipment","Terrorism",null,"Communication Services"]
[12,"Metropolitan Medical Response System (MMRS)",null,null,null,null,null,"Statement of Certification-Approval Authority Body - HSGP and MMRS","By signing below, I hereby certify that the Operational Area's application represents the Approval Authority's consensus on the Operational Area's Homeland ","Grant Program needs for the Homeland Security Grant Program.",null,null,null,null,null,null,null,null,null,null,null,null,null,null,null,null,null,null,null,null,null,null,null,null,null,null,null,null,null,null,null,null,null,null,null,null,null,null,null,null,null,"Contractor"]
[14,"Chemical Sector Buffer Zone Protection Plan (Chem-BZPP)",null,null,null,null,null,"Statement of Certification-Approval Authority Body - CHEM BZPP","By signing below, I hereby certify I am the duly appointed Authorized Agent and have the authority to apply for the Chemical Sector Buffer Zone Protection Program, ","Grant Program, and the urban area's application represents the needs for the Regional Catastrophic Preparedness Grant Program. ",null,null,null,null,null,null,null,null,null,null,null,null,null,null,null,null,null,null,null,null,null,null,null,null,null,null,null,null,null,null,null,null,null,null,null,null,null,null,"TrainingLists","TrainingLookups",null,"Facility Costs > Meeting Space Rental"]
[15,"California Port & Maritime Security Grant Program (CPMSGP)",null,null,null,null,null,"Statement of Certification-Approval Authority Body - CPMSGP","By signing below, I hereby certify I am the duly appointed Authorized Agent and have the authority to apply for the California Port and Maritime Security Grant Program, ","Grant Program, and the urban area's application represents the needs for the Regional Catastrophic Preparedness Grant Program. ",null,null,null,null,null,null,null,null,null,null,null,null,null,null,null,null,null,null,null,null,null,null,null,null,null,null,null,null,null,null,null,null,null,null,null,null,null,null,"Course Development","Development",null,"Non AEL Equipment (w/ prior approval)"]
[16,"Buffer Zone Protection Program (BZPP)",null,null,null,null,null,"Statement of Certification-Approval Authority Body - BZPP","By signing below, I hereby certify I am the duly appointed Authorized Agent and have the authority to apply for the Buffer Zone Protection Program, and the Operational ","as described in the Governing Body Resolution, and the entity's application represents the needs for the Public Safety Interoperable Communications grant.",null,null,null,null,null,null,null,null,null,null,null,null,null,null,null,null,null,null,null,null,null,null,null,null,null,null,null,null,null,null,null,null,null,null,null,null,null,null,"Course Delivery & Evaluation","Delivery",null,"Staff Salaries"]
[null,null,null,null,null,null,null,null,null,"the Waterborne Transit Authority's application represents the needs for the Proposition 1B Waterborne Transit Grant Program.",null,null,null,null,null,null,null,null,null,null,null,null,null,null,null,null,null,null,null,null,null,null,null,null,null,null,null,null,null,null,null,null,null,null,null,null,null,null,"Staff Expenses","Staff",null,"Supplies"]
[null,null,null,null,null,null,null,null,null,"Port Authority's application represents the needs for the Proposition 1B Port Security Grant Program.",null,null,null,null,null,null,null,null,null,null,null,null,null,null,null,null,null,null,null,null,null,null,null,null,null,null,null,null,null,null,null,null,null,null,null,null,null,null,null,null,null,"Training"]
[null,"Match Type",null,null,null,null,null,null,null,"application represents the needs for the Proposition 1B Intracity Grant Program.",null,null,null,null,null,null,null,null,null,null,null,null,null,null,null,null,null,null,null,null,null,null,null,null,null,null,null,null,null,null,null,null,null,null,null,null,null,null,"ExerciseLists","ExerciseLookups",null,"Travel"]
[null,"Cash Match",null,null,null,null,null,null,null,"Authority's application represents the needs for the Proposition 1B Heavy Rail Grant Program.",null,null,null,null,null,null,null,null,null,null,null,null,null,null,null,null,null,null,null,null,null,null,null,null,null,null,null,null,null,null,null,null,null,null,null,null,null,null,"Design / Develop","Design"]
[null,"In-Kind Match",null,null,null,null,null,null,null,"Operational Area's application represents the needs for the Operation Stonegarden Grant Program.",null,null,null,null,null,null,null,null,null,null,null,null,null,null,null,null,null,null,null,null,null,null,null,null,null,null,null,null,null,null,null,null,null,null,null,null,null,null,"Conduct / Evaluate","Conduct",null,"Facilities_AdministrationLists"]
[null,null,null,null,null,null,null,null,null,"Nonprofit Security Grant Program, and the organization's application represents the needs for the Nonprofit Security Grant Program.",null,null,null,null,null,null,null,null,null,null,null,null,null,null,null,null,null,null,null,null,null,null,null,null,null,null,null,null,null,null,null,null,null,null,null,null,null,null,"Supplies / Materials / Production Costs","Supplies",null,"Communications Services"]
[null,null,null,null,null,null,null,null,null,"Security Grant Program needs for the State Homeland Security Grant Program, and Metropolitan Medical Response System.",null,null,null,null,null,null,null,null,null,null,null,null,null,null,null,null,null,null,null,null,null,null,null,null,null,null,null,null,null,null,null,null,null,null,null,null,null,null,null,null,null,"Contractor"]
[null,null,null,null,null,null,null,null,null,"and the Operational Area's application represents the needs for the Chemical Sector Buffer Zone Protection Program.",null,null,null,null,null,null,null,null,null,null,null,null,null,null,null,null,null,null,null,null,null,null,null,null,null,null,null,null,null,null,null,null,null,null,null,null,null,null,"M_ALists","M_Alookups",null,"Facility Costs > Meeting Space Rental"]
[null,null,null,null,null,null,null,null,null,"and this port authority's application represents the needs for the California Port and Maritime Security Grant Program, as applicable.",null,null,null,null,null,null,null,null,null,null,null,null,null,null,null,null,null,null,null,null,null,null,null,null,null,null,null,null,null,null,null,null,null,null,null,null,null,null,"Grant Admin","Admin",null,"Non AEL Equipment (w/ prior approval)"]
[null,null,null,null,null,null,null,null,null,"Area's application represents the needs for the Buffer Zone Protection Program.",null,null,null,null,null,null,null,null,null,null,null,null,null,null,null,null,null,null,null,null,null,null,null,null,null,null,null,null,null,null,null,null,null,null,null,null,null,null,null,null,null,"Staff Salaries"]
[null,null,null,null,null,null,null,null,null,null,null,null,null,null,null,null,null,null,null,null,null,null,null,null,null,null,null,null,null,null,null,null,null,null,null,null,null,null,null,null,null,null,null,null,null,null,null,null,"IndirectLists","IndirectLookups",null,"Supplies"]
[null,null,null,null,null,null,null,null,null,null,null,null,null,null,null,null,null,null,null,null,null,null,null,null,null,null,null,null,null,null,null,null,null,null,null,null,null,null,null,null,null,null,null,null,null,null,null,null,"Facilities & Administration","Facilities_Administration",null,"Training"]
[null,null,null,null,null,null,null,null,null,null,null,null,null,null,null,null,null,null,null,null,null,null,null,null,null,null,null,null,null,null,null,null,null,null,null,null,null,null,null,null,null,null,null,null,null,null,null,null,null,null,null,"Travel"]
[]
[]
[]
[]
[]
[]
[]
[]
[]
[]
[]
[]
[]
[]
[]
[]
[]
[]
[]
[]
[]
[]
[]
[]
[]
[]
[]
[]
[]
[]
[]
[]
[]
[]
[]
[]
[]
[]
[]
[]
[]
[]
[]
[]
[]
[]
[]
[]
[]
[]
[]
[]
[]
[]
[]
[]
[]
[]
[]
[]
[]
[]
[]
[]
[]
[]
[]
[]
[]
[]
[]
[]
[]
[]
[]
[]
[]
[]
[]
[]
[]
[]
[]
[]
[]
[]
[]
[]
[]
[]
[]
[]
[]
[]
[]
[]
[]
[]
[]
[]
[]
[]
[]
[]
[]
["+/-"]
["OA","OPERATIONAL AREA"]
["OA","Approval Authority & POC Contact Information"]
["OA","Authorized Agent(s) Information Form"]
["OA","Governing Body Resolution (Certified)"]
["OA","Grant Assurances (Signed Originals)"]
["OA","FMFW- Application Cover Sheet"]
["OA","FMFW- Grant Management Roster"]
["OA","FMFW- Project Description"]
["OA","FMFW- Project Ledger"]
["OA","FMFW- Equipment Inventory Ledger"]
["OA","FMFW- Training Roster"]
["OA","FMFW- Exercise Roster"]
["OA","FMFW- Planning Roster"]
["OA","FMFW- Authorized Agent Sheet"]
["OA","Narrative Attachments- TLO Roster"]
["OA","Narrative Attachments- CAL JRIES Access"]
["OA","Narrative Attachments- 25% Law Enforcement - Minimum"]
["OA","Narrative Attachments- Training w/AAR/Exercise Detail"]
["OA","Narrative Attachments- Special Needs Populations"]
["OA","Narrative Attachements- 5% M & A Cap"]
["OA","Narrative Attachements- 50% Personnel Cap (UASI & SHSP only)"]
[]
["SA","STATE AGENCY"]
["SA","Signature Authority- Authorized Agent"]
["SA","Project Narrative Form"]
["SA","Grant Assurances (Signed Originals)"]
["SA","FMFW- Application Cover Sheet"]
["SA","FMFW- Grant Management Roster"]
["SA","FMFW- Project Description"]
["SA","FMFW- Project Ledger"]
["SA","FMFW- Equipment Inventory Ledger"]
["SA","FMFW- Training Roster"]
["SA","FMFW- Exercise Roster"]
["SA","FMFW- Planning Roster"]
["SA","FMFW- Authorized Agent Form"]
["SA","Narrative Attachments- TLO Roster"]
["SA","Narrative Attachments- CAL JRIES Access"]
["SA","Narrative Attachments- 25% Law Enforcement"]
["SA","Narrative Attachments- Training w/AAR/Exercise Detail"]
["SA","Narrative Attachments- Special Needs Populations"]
["SA","Narrative Attachements- 5% M & A Cap"]
["SA","Narrative Attachements- 50% Personnel Cap (UASI & SHSP only)"]
["UASI","URBAN AREA SECURITY INITIATIVE"]
["UASI","Approval Authority & POC Contact Information"]
["UASI","Authorized Agent(s) Information Form"]
["UASI","Governing Body Resolution (Certified)"]
["UASI","Grant Assurances (Signed Originals)"]
["UASI","FMFW- Application Cover Sheet"]
["UASI","FMFW- Grant Management Roster"]
["UASI","FMFW- Project Description"]
["UASI","FMFW- Project Ledger"]
["UASI","FMFW- Equipment Inventory Ledger"]
["UASI","FMFW- Training Roster"]
["UASI","FMFW- Exercise Roster"]
["UASI","FMFW- Planning Roster"]
["UASI","FMFW- Authorized Agent Form"]
["UASI","Narrative Attachments- TLO Roster"]
["UASI","Narrative Attachments- CAL JRIES Access"]
["UASI","Narrative Attachments- 25% Law Enforcement"]
["UASI","Narrative Attachments- Training w/AAR/Exercise Detail"]
["UASI","Narrative Attachments- Special Needs Populations"]
["UASI","Narrative Attachements- 5% M & A Cap"]
["UASI","Narrative Attachements- 50% Personnel Cap (UASI & SHSP only)"]
["TA","TRANSIT AGENCY"]
["TA","APPLICATION FORMS- IJ"]
["TA","Coversheet"]
["TA","Governing Body Resolution- Authorized Agent/MOU"]
["TA","Approval Authority & POC Contact Information"]
["TA","Grant Assurances"]
["TA","Financial Management Forms Workbook"]
["TA","Project Ledger"]
["TA","Project Descriptions"]
["TA","Planning Roster- As needed/If Applicable"]
["TA","Equipment Inventory – Ledger"]
["TA","Training Roster"]
["TA","Exercise Roster"]
["TA","Grant Mgt Capacity/Roster"]
["TA","Authorized Agent Signature"]
["TA","NEPA"]
["TA"]
["TA"]
["TA"]
["TA"]
["TA"]
["NSGP","NON-PROFIT"]
["NSGP","501(3)c"]
["NSGP","STD 204"]
["NSGP","Grant Assurances"]
["NSGP","Resolution"]
["NSGP","Signature Authority"]
["NSGP","FMFW- Cover Sheet"]
["NSGP","FMFW- Grant Management Roster"]
["NSGP","FMFW- Project Description"]
["NSGP","FMFW- Project Ledger"]
["NSGP","FMFW- Equipment Inventory Ledger"]
["NSGP","FMFW- Training Roster"]
["NSGP","FMFW- Authorized Agent Form"]
["NSGP"]
["NSGP"]
["NSGP"]
["NSGP"]
["NSGP"]
["NSGP"]
["NSGP"]
["NSGP"]

{"sheet":"Instructions","index":1,"n_rows":195,"n_cols":2,"rows_kept":195,"cut":false,"hidden":false,"merged":[[116,0,116,1],[48,0,48,1],[0,0,0,1],[1,0,1,1],[2,0,2,1],[3,0,3,1],[8,0,8,1],[23,0,23,1],[28,0,28,1],[29,0,29,1],[45,0,45,1],[46,0,46,1],[47,0,47,1],[82,0,82,1],[83,0,83,1],[96,0,96,1],[97,0,97,1],[98,0,98,1],[49,0,49,1],[65,0,65,1],[66,0,66,1],[67,0,67,1],[81,0,81,1],[9,0,9,1],[194,0,194,1],[170,0,170,1],[186,0,186,1],[187,0,187,1],[169,0,169,1],[153,0,153,1],[154,0,154,1],[167,0,167,1],[168,0,168,1],[117,0,117,1],[118,0,118,1],[134,0,134,1],[135,0,135,1],[136,0,136,1],[152,0,152,1]]}
["WORKBOOK INSTRUCTIONS"]
["This worksheet provides instructions on how to complete the Financial Management Forms Workbook (FMFW) v1.19.  It is divided into sections that correspond to each of the worksheets within this workbook.  The first section describes the macros used in this workbook and can be ignored if you are using the non-macro version of this FMFW.  For further guidance, contact your Program Representative.  Mail completed FMFW to:\n\nCalifornia Governor's Office of Emergency Services\nAttn: Program Specialist's Name\n3650 Schriever Avenue\nMather, CA  95655"]
["Section 1:  MACROS"]
["Below is a table with instructions on how to enable macros in Microsoft Excel, depending on the version.  \n\nNote: Some computers may not run Macros correctly even when enabled in Excel.  A Non-Macro version of the workbook is available under such circumstances."]
["Version","Instructions"]
["Excel 2003","1) From the menu bar, click on TOOLS > MACRO > SECURITY.\n\n2) From SECURITY LEVEL tab, select the MEDIUM or LOW. \n\n3) Save, Close, and Re-open the workbook. \n\nNOTE: The MEDIUM setting will prompt you to enable or disable macros each time the file is opened. This will prevent potentially unsafe macros from running. The LOW setting will enable macros without prompt. It is recommended that you have virus software installed and updated if other files."]
["Excel 2007","1) Click the round \"Office\" button in upper left corner of the window.\n\n2) Click \"Excel Options\"  button near lower-right corner.\n\n3) From \"Excel Options\" window, select \"Trust Center\" on left pane.\n\n4) Click on the \"Trust Center Settings\" button on the right pane, which will open a new \"Trust Center\" window.\n\n5) From the new \"Trust Center\" window, pick \"Macro Settings\" on left pane.\n\n6) Choose \"Disable all macros with notification\" radio button on the right pane, then click OK.\n\nNOTE: Each time a workbook with macros is opened, a security alert will appear.  This alert may be a pop-up window or a banner across the top of the window.  You must  choose to enable for macros to function."]
["Excel 2010 / 2013 / 2016","1) Click on the File tab, then choose Options, which will then open a new \"Excel Options\" window.\n\n2) From the new window, click \"Trust Center\" on the left pane.\n\n3) Click \"Trust Center Settings...\" button on the right pane, which will then open a new \"Trust Center\" window.\n\n4) From the \"Trust Center\" window, pick \"Macro Settings\" on left pane.\n\n5) Choose \"Disable all macros with notification\" radio button on the right pane, then click OK.\n\n6) Save, Close, and Re-open the workbook.  \n\nNOTE: Each time a workbook with macros is opened, a security alert will appear.  This alert may be a pop-up window or a banner across the top of the window.  You must choose to enable for macros to function."]
["Section 1:  MACROS"]
["Below is a table of macro buttons available on many of the worksheets in this workbook.  Buttons can only be clicked with a mouse.  To activate a macro with a keyboard, hold Alt + F8 to open a list of macros and scroll through the list.  "]
["Button","Function"]
["Black Font","Selects the entire row(s) of the selected cell(s) and changes the font color to black.  Any strikethroughs will be removed."]
["Red Strikethru","Selects the entire row(s) of the selected cell(s) and changes the font color to red.  A red strikethrough will be added."]
["Blue Font","Selects the entire row(s) of the selected cell(s) and changes the font color to blue.  Any strikethroughs will be removed."]
["Add Row","Adds a single row in the table, below the selected cell.  A prompt will appear asking to choose a cell before a row is added.  Only one row can be added at a time."]
["Delete Row","Select the cells of the rows to be deleted, then press button.  Deletes the entire row of the selected cell.  Multiple rows can be deleted, if the selected cells are contiguous."]
["Formula Reset","Restores formulas to default values in the appropriate cells.  Use this if formulas are missing or are not calculating correctly.  This button also adjusts the table row height to auto-fit the contents."]
["New Request","Duplicates the active worksheet for modification and cash requests, placing it immediately after the original worksheet.  An input box will appear to name the new worksheet.  Remember to use the most current approved worksheet when creating a new request. "]
["New Mod Item","Copies the selected line and inserts it immediately below.  The font color of the selected row will change to red with a red strikethrough indicating that this line item has been changed.  The duplicated line will have blue font color, without a strikethrough, indicating the modified line item."]
["Application","Populates the Ledger Type field with \"Application\" and the Date field with today's date. "]
["Advance","Populates the Ledger Type field with \"Advance\" and the Date field with today's date."]
["Reimbursement","Populates the Ledger Type field with \"Reimbursement\" and the Date field with today's date. "]
["Modification","Populates the Ledger Type field with \"Modification\" and the Date field with today's date."]
["Below is a table that lists macros that can be activated by using a keyboard shortcut.  A shortcut requires the user to press 2 keys simultaneously: the control button and a letter."]
["Keyboard Shortcut","Function"]
["CTRL + s","Spell checks active worksheet."]
["CTRL + k","Sorts projects by Project Number, from 0-999."]
[]
["Section 2:   GRANT SUBAWARD FACE SHEET"]
["Use the Grant Subaward Face Sheet to apply for grant programs. Each grant program requires its own separate Grant Subaward Face Sheet.  Please print the Grant Subaward Face Sheet in portrait format and provide an original signature from the authorized agent. The use of white out (liquid or tape) is prohibited and will invalidate the signature on the Grant Subaward Face Sheet.\n\nCal OES Section: The top portion of the form contains blocks for four (4) important numbers. Please do not fill in these blocks. These numbers will be entered by Cal OES. "]
["Form Field","Instructions"]
["1.  Subrecipient","The Subrecipient is the unit of government, community based organization (CBO), or other organizations that will have legal responsibility for these grant funds (e.g. County of Alameda, City of Fresno or Women’s Place of Merced). Enter the legal name of the Subrecipient that is registered with the Internal Revenue Service (IRS).  \n\nNOTE: that all CBOs must be registered, active, and current with the IRS, Department of Justice (DOJ), and Secretary of State (SOS) websites. Failure to be current will result in funds being withheld from Cal OES.  "]
["1a.  Federal DUNS Number (Subrecipient)","Enter the full 9-digit Federal Data Universal Numbering System (DUNS) ID number for the Subrecipient. If the Subrecipient does not yet have a DUNS number assigned, one may be obtained by contacting Dun & Bradstreet at 866-705-5711 or at www.dnb.com.  Your DUNS # must be current and active in the System for Award Management (SAM) at the time of your Award. "]
["2.    Implementing Agency","Enter the complete name of the organization responsible for the day-to-day operation of the grant.  If the Implementing Agency is the same as the Subrecipient, enter the same title again."]
["2a.  Federal DUNS Number (Implementing Agency)","Enter the full 9-digit Federal Data Universal Numbering System (DUNS) ID number for the Implementing Agency. If the Implementing Agency does not yet have a DUNS number assigned, one may be obtained by contacting Dun & Bradstreet at 866-705-5711 or at www.dnb.com.  Your DUNS # must be current and active in the System for Award Management at the time of your Award."]
["3.    Implementing Agency Address","Enter the address of the Implementing Agency. Provide the complete nine digit zip code (Zip+4)."]
["4.    Location of Project","Enter the City and Count where the project is located. Provide the complete nine digit zip code (Zip+4)."]
["5.    Disaster/Program Title","Enter the name of the Program providing the funds for this Grant Subaward.  Program titles should be complete without the use of acronyms."]
["6.    Performance Period","Enter beginning and ending dates of the performance period for the Grant Subaward, using mm/dd/yyyy format."]
["7.    Indirect Cost Rate","N/A for all California State Grant Programs."]
["8A-13G. Fund Allocations and Total Project Cost","For each fund source used in the program, select the correct grant year and acronym from the drop down lists, and enter the amount of state funds requested.  Block 12G should correspond to the total project cost specified in the budget."]
["14.  Certification Paragraph","Review the Certification Paragraph."]
["15.  CA Public Records Act","Review, and if applicable, provide the necessary documentation."]
["16.  Official Authorized to sign for the Subrecipient","Enter the name and title of the official authorized to enter into the Grant Subaward for the Subrecipient as stated in Block 1 of the Grant Subaward Face Sheet (Cal OES 2-101). Enter the Payment Mailing Address where grant funds should be sent. Provide the complete nine digit zip code (Zip+4)."]
["17.  Federal Employer ID Number","Enter the 9-digit Federal Employer Identification Number for the Subrecipient."]
["Blank Cell"]
["Section 3:  AUTHORIZED BODY OF FIVE"]
["Provide the contact information of all Authorized Agents (AA). It is recommended that more than one person be designated as an AA, so that if one AA is not available, a second AA can sign cash requests and modifications.  Complete the bottom section titled Authorized Agents and Contacts Information.  Do not complete the section titled Authorized Body of 5 Signatures and Contact Information. "]
["Section 4:  PROJECT LEDGER"]
["Use this ledger to submit funding information for projects, as well as submitting Advance, Reimbursement, Final Reimbursement, and Modification Requests. "]
["Column Name","Instructions"]
["State Goals","Select the State Goal from the drop-down list that best fits the project on this line."]
["Project No.","Enter a three (3) digit Project Number associated with each project. Project numbers must be assigned sequentially and must be unique for each Project."]
["Direct/Subaward","Use the drop-down list to identify whether the Project is DIRECT or a SUBAWARD."]
["Project Title","Enter a short, but descriptive name for the project. "]
["Project Description","Enter the project description, citing specific and measurable objectives."]
["Funding Source","Enter the Funding Scource abbreviation from the drop-down list.  The abbreviation key is in the comment of the first cell of this column."]
["Solution Area","Select one of:  PLANNING, ORGANIZATION, EQUIPMENT, TRAINING, M&A, or CONSTRUCTION/RENOVATION."]
["Total Budgeted Cost","Enter the total amount obligated for the project."]
["Previously Approved Amount","This field auto-populates with the cumulative requested cash amount for this line item.  This does not include the amount requested in this cash request."]
["Amount This Request","This field is for Cash Requests only.  Enter the requested dollar amount for this line item."]
["Match Amount","This field auto-populates with the cumulative match amount expended for this line item."]
["Total Approved","This field auto-populates with the total requested cash amount to-date for this line item."]
["Remaining Balance","This field auto-populates with the remaining balance allowed for this line item."]
["Percent Expended","This field auto-populates with the amount expended, to-date, as a percentage of the budgeted amount."]
["Blank Cell"]
["Section 5:  PLANNING"]
["Provide detailed information on Planning activities.  \n\nNOTE: Consultants and Contractors are used interchangeably and changes for either require the completion of the Consultant/Contractor tab."]
["Column Name","Instructions"]
["Project No.","Enter the project number that corresponds with the Project Ledger."]
["Direct/Subaward","Use the drop-down list to identify whether the Project is DIRECT or a SUBAWARD."]
["Planning Activity","Enter the planning activity."]
["Funding Source","Enter the Funding Scource abbreviation from the drop-down list.  The abbreviation key is in the comment of the first cell of this column."]
["Expenditure Category","Select one of:  CONSULTANT/CONTRACTOR or MATERIALS & SUPPLIES."]
["Final Product","Enter a description of the final product of this planning activity. This must be a tangible item such as a manual, procedure, etc.  Contact your Program Representative for further examples of final products."]
["Budgeted Cost","Enter the total amount of grant funding budgeted for this line item."]
["Previously Approved Amount","This field auto-populates with the cumulative requested cash amount for this line item.  This does not include the amount requested in this cash request."]
["Amount This Request","This field is for Reimbursement Requests only.  Enter the requested dollar amount for this line item."]
["Cash Request #","Enter the Cash Request number for this Planning activity."]
["Total Approved","This field auto-populates with the total requested cash amount to-date for this line item."]
["Remaining Balance","This field auto-populates with the remaining balance allowed for this line item."]
["Blank cell"]
["Section 6:  ORGANIZATION"]
["Provide detailed information on Organizational components funded with the grant.\n\nNOTE: Consultants and Contractors are used interchangeably and changes for either require the completion of the Consultant/Contractor tab."]
["Column Name","Instructions"]
["Project No.","Enter the project number that corresponds with the Project Ledger."]
["Direct/Subaward","Use the drop-down list to identify whether the Project is DIRECT or a SUBAWARD."]
["Organization","Enter the organization that will benefit from this activity."]
["Funding Source","Enter the Funding Scource abbreviation from the drop-down list.  The abbreviation key is in the comment of the first cell of this column."]
["Expenditure Category","Select CONSULTANT/CONTRACTOR."]
["Budgeted Cost","Enter the total amount of grant funding budgeted for this line item."]
["Previously Approved Amount","This field auto-populates with the cumulative requested cash amount for this line item.  This does not include the amount requested in this cash request."]
["Amount This Request","This field is for Cash Requests only:  Enter the requested dollar amount for this line item."]
["Cash Request #","Enter the Cash Request number."]
["Total Approved","This field auto-populates with the total requested cash amount to-date for this line item."]
["Remaining Balance","This field auto-populates with the remaining balance allowed for this line item."]
["Blank Cell"]
["Section 7:  EQUIPMENT"]
["Provide detailed information on any Equipment that is purchased with grant funding."]
["Column Name","Instructions"]
["Project No.","Enter the project number that corresponds with the Project Ledger."]
["Direct/Subaward","Use the drop-down list to identify whether the Project is DIRECT or a SUBAWARD."]
["Equipment Description & Quantity","Provide a description of equipment and quantity."]
["Funding Source","Enter the Funding Scource abbreviation from the drop-down list.  The abbreviation key is in the comment of the first cell of this column."]
["Invoice Number","Enter the Invoice Number for the equipment."]
["Vendor","Enter the name of vendor from whom the equipment was purchased."]
["ID Tag Number","Enter the ID Tag Number used to identify this equipment.  ID Tag Number must be available during monitoring visits.  Subrecipient may use their own internal numbering format to tag equipment.  Use of serial numbers is acceptable."]
["Condition and Disposition","Select one of: NEW-IN USE or USED-IN USE."]
["Deployed Location","Enter the equipment's current location."]
["Acquisition Date","Enter the date that this equipment was acquired from vendor."]
["Budgeted Cost","Enter the total amount of grant funding budgeted for this line item."]
["Previously Approved Amount","This field auto-populates with the cumulative requested cash amount for this line item.  This does not include the amount requested in this cash request."]
["Amount This Request","This field is for Cash Requests only.  Enter the requested dollar amount for this line item."]
["Cash Request #","Enter the Cash Request number for this request."]
["Total Approved","This field auto-populates with the total requested cash amount to-date for this line item."]
["Remaining Balance","This field auto-populates with the remaining balance allowed for this line item."]
["blank cell"]
["Section 8:  TRAINING"]
["Provide detailed information on planned or attended training courses. \n\nNOTE: Consultants and Contractors are used interchangeably and changes for either require the completion of the Consultant/Contractor tab."]
["Column Name","Instructions"]
["Project No.","Enter the project number that corresponds with the Project Ledger."]
["Direct/Subaward","Use the drop-down list to identify whether the Project is DIRECT or a SUBAWARD."]
["Course Name","Enter course name."]
["Funding Source","Enter the Funding Scource abbreviation from the drop-down list.  The abbreviation key is in the comment of the first cell of this column."]
["Expenditure Category","Select one of:  TUITION, CONSULTANT/CONTRACTOR, or MATERIALS & SUPPLIES."]
["Feedback Number","Enter the Feedback Number for the Training activity.  If you do not know this number or need to request one, download the form and follow instructions on the following link: CSTI Tracking Number Request Form"]
["Total # Trainees","Enter the total number of trainee(s)."]
["Identified Host","If you are not the host, please identify who is the host.  For further guidance, refer to your Program Representative."]
["Budgeted Cost","Enter the total amount of grant funding budgeted for this line item."]
["Previously Approved Amount","This field auto-populates with the cumulative requested cash amount for this line item.  This does not include the amount requested in this cash request."]
["Amount This Request","This field is for Cash Requests only.  Enter the requested dollar amount for this line item."]
["Cash Request #","Enter the Cash Request number for this request."]
["Total Approved","This field auto-populates with the total requested cash amount to-date for this line item."]
["Remaining Balance","This field auto-populates with the remaining balance allowed for this line item."]
["blank cell"]
["Section 9:  EXERCISE"]
["Provide detailed information on Exercise activities. \n\nNOTE: Consultants and Contractors are used interchangeably and changes for either require the completion of the Consultant/Contractor tab. Staff salaries and Staff Intelligence Analyst expenditure categories require the completion of the Personnel tab."]
["Column Name","Instructions"]
["Project No.","Enter the project number that corresponds with the Project Ledger."]
["Exercise Title","Enter the title of the exercise activity."]
["Funding Source","Enter the Funding Scource abbreviation from the drop-down list.  The abbreviation key is in the comment of the first cell of this column."]
["Expenditure Category","Select an Expenditure Category from the drop-down list. This list is dependent on a selection from the Solution Area Sub-Category drop-down list."]
["Date of Exercise","Enter the date of when this exercise was conducted."]
["Date of AAR entered into HSEEP","Enter the date that the After Action Report (AAR) was e-mailed to hseep@fema.dhs.gov. "]
["Exercise Type","Please select your exercise activity from the drop-down list."]
["Identified Host","If you are not the host, please identify who the host is.  For further guidance, please refer to your Program Representative."]
["Budgeted Cost","Enter the total amount of grant funding budgeted for this line item."]
["Previously Approved Amount","This field auto-populates with the cumulative expended amount for this line item.  This does not include the amount requested in this cash request."]
["Amount This Request","This field is for Cash Requests only.  Enter the requested dollar amount for this line item."]
["Cash Request #","Enter the Cash Request number for this request."]
["Total Approved","This field auto-populates with the total expenditures to-date for this line item.  This value does not include any match amounts."]
["Remaining Balance","This field auto-populates with the remaining balance allowed for this line item.  This value does not include any match amounts."]
["blank cell"]
["Section 9:  M&A"]
["Provide detailed information on Management and Administration activities.\n\nNOTE: Consultants and Contractors are used interchangeably and changes for either require the completion of the Consultant/Contractor tab."]
["Column Name","Instructions"]
["Project No.","Enter the project number that corresponds with the Project Ledger."]
["Direct/Subaward","Use the drop-down list to identify whether the Project is DIRECT or a SUBAWARD."]
["Activity","Provide detailed information on M&A activity."]
["Funding Source","Enter the Funding Scource abbreviation from the drop-down list.  The abbreviation key is in the comment of the first cell of this column."]
["Expenditure Category","Select CONSULTANT/CONTRACTOR."]
["Budgeted Cost","Enter the total amount of grant funding budgeted for this line item."]
["Previously Approved Amount","This field auto-populates with the cumulative requested cash amount for this line item.  This does not include the amount requested in this cash request."]
["Amount This Request","This field is for Cash Requests only.  Enter the requested dollar amount for this line item."]
["Cash Request #","Enter the Cash Request number for this request."]
["Total Approved","This field auto-populates with the total requested cash amount to-date for this line item. "]
["Remaining Balance","This field auto-populates with the remaining balance allowed for this line item."]
["blank cell"]
["Blank Cell"]
["Section 10:  CONSULTANT / CONTRACTOR"]
["Provide information on who is being paid with grant funds, and what consultant/contractor costs are being charged to the grant."]
["Column Name","Instructions"]
["Project No.","Enter the project number that corresponds with the Project Ledger."]
["Direct/Subaward","Use the drop-down list to identify whether the Project is DIRECT or a SUBAWARD."]
["Consulting Firm / Consultant Name","Provide the name of the Consulting Firm and/or Consultant Name."]
["Project / Description of Services","Provide detailed information on the project and a description of services."]
["Deliverable","Describe the tangible or intangible good or service produced as a result of the project that is intended to be delivered."]
["Solution Area","Select one of:  PLANNING, ORGANIZATION, EQUIPMENT, TRAINING, M&A, or CONSTRUCTION/RENOVATION."]
["Period of Expenditure","Enter the Period of Expenditure in this column."]
["Fee for Deliverable","If your consultant/contractor invoiced you for their services using a fee for each deliverable, then fill in the cost for the product in the Fee for Deliverable column.\n(e.g.: $10,000 for conducting a training course)"]
["Total Salary & Benefits Charged for this Reporting Period","If your consultant/contractor invoiced you for their services using an hourly rate, then enter the total invoice amount for this reporting period."]
["Hourly Billing Rate","If your consultant/contractor invoiced you for their services using an hourly rate, enter the hourly rate charged."]
["Total Project Hours","If your consultant/contractor invoiced you for their services using an hourly rate, enter number of hours charged during this reporting period."]
["Cash Request #","Enter the Cash Request number."]
["Total Cost Charged to this Grant","Enter the Total Cost Charged to the Grant in this column."]
[]
["Section 11:  AUTHORIZED AGENT"]
["Authorized Agent sheet must accompany ALL Cash Requests, Modification Requests, and the Application."]
["Form Field","Instructions"]
["Request Type","Enter the type of request that is being made.  Use one of the following types:\nAPPLICATION, ADVANCE, REIMBURSEMENT, FINAL REIMBURSEMENT, or MODIFICATION."]
["Performance Period","This field is auto-populated with the grant Performance Period as described on the Face Sheet Tab."]
["Cash or Modification Request Number","Enter the cash or modification request number associated with this request."]
["Amount This Request","This field is for Cash Requests only.  Enter the requested dollar amount for this request."]
["Authorized Agent","Enter the name and title of the Authorized Agent.  Sign and date after printing.  Original signature of the Authorized Agent is required."]
["Empty Cell"]

{"sheet":"Facesheet","index":2,"n_rows":34,"n_cols":10,"rows_kept":34,"cut":false,"hidden":false,"merged":[[34,0,34,9],[30,0,30,9],[31,0,31,9],[32,0,32,4],[32,6,32,9],[33,0,33,3],[33,6,33,8],[29,0,29,9],[22,0,22,9],[23,0,23,9],[24,0,24,9],[25,1,25,4],[25,6,25,9],[26,0,26,2],[26,3,26,4],[26,6,26,7],[27,2,27,5],[27,7,27,9],[28,0,28,3],[28,4,28,5],[28,6,28,9],[7,12,7,14],[8,0,8,6],[15,12,20,14],[10,0,10,6],[10,7,10,8],[11,0,11,2],[11,3,11,5],[11,6,12,6],[11,8,12,8],[12,0,12,5],[13,0,13,2],[13,3,13,4],[13,5,13,7],[14,0,14,9],[15,10,20,10],[9,0,9,2],[9,3,9,6],[9,7,9,8],[5,0,5,1],[5,2,5,6],[5,8,5,9],[6,0,6,2],[6,3,6,6],[6,8,6,9],[7,0,7,3],[7,4,7,6],[7,7,7,8],[4,0,4,9],[0,0,0,9],[1,0,1,1],[1,2,1,3],[2,0,2,9],[3,0,3,9]]}
["(Cal OES Use Only)"]
["Cal OES # ",null,null,null,"FIPS #",null,"VS#",null,"Subaward #"]
["CALIFORNIA GOVERNOR'S OFFICE OF EMERGENCY SERVICES"]
["GRANT SUBAWARD FACE SHEET"]
["The California Governor's Office of Emergency Services (Cal OES) hereby makes a Grant Subaward of funds to the following:"]
["1.  Subrecipient:",null,null,null,null,null,null,"1a. DUNS#:"]
["2.  Implementing Agency:",null,null,null,null,null,null,"2a. DUNS#:"]
["3.  Implementing Agency Address: "]
["          (Street)",null,null,null,null,null,null,"(City)",null,"(Zip+4)"]
["4.  Location of Project:"]
["          (City)",null,null,null,null,null,null,"(County)",null,"(Zip+4)"]
["5.  Disaster/Program Title:",null,null,null,null,null,"6.  Performance Period:",null,"to"]
[null,null,null,null,null,null,null,"(Start Date)",null,"(End Date)     "]
["7.  Indirect Cost Rate:",null,null,"N/A",null,"Federally Approved ICR (if applicable):",null,null,"N/A","%"]
[]
["Item Number","Grant Year","Fund Source","A. State\n","B. Federal\n","C. Total\n","D. Cash Match","E. In-Kind Match","F. Total Match","G. Total  Cost"]
[8,"Select","Select",null,null,null,null,null,{"$f":"SUM(G17:H17)","v":0},{"$f":"SUM(I17,E17,D17)","v":0}]
[9,"Select","Select",null,null,null,null,null,{"$f":"SUM(G18:H18)","v":0},{"$f":"SUM(I18,E18,D18)","v":0}]
[10,"Select","Select",null,null,null,null,null,{"$f":"SUM(G19:H19)","v":0},{"$f":"SUM(I19,E19,D19)","v":0}]
[11,"Select","Select",null,null,null,null,null,{"$f":"SUM(G20:H20)","v":0},{"$f":"SUM(I20,E20,D20)","v":0}]
[12,"Select","Select",null,null,null,null,null,{"$f":"SUM(G21:H21)","v":0},{"$f":"SUM(I21,E21,D21)","v":0}]
["Total","Project","Cost",{"$f":"SUM(D17:D21)","v":0},{"$f":"SUM(E17:E21)","v":0},{"$f":"SUM(D22:E22)","v":0},{"$f":"SUM(G17:G21)","v":0},{"$f":"SUM(H17:H21)","v":0},{"$f":"SUM(I17:I21)","v":0},{"$f":"SUM(J17:J21)","v":0}]
["13. Certification - This Grant Subaward consists of this title page, the application for the grant, which is attached and made a part hereof, and the Assurances/Certifications. I hereby certify I am vested with the authority to enter into this Grant Subaward, and have the approval of the City/County Financial Officer, City Manager, County Administrator, Governing Board Chair, or other Approving Body. The Subrecipient certifies that all funds received pursuant to this agreement will be spent exclusively on the purposes specified in the Grant Subaward. The Subrecipient accepts this Grant Subaward and agrees to administer the grant project in accordance with the Grant Subaward as well as all applicable state and federal laws, audit requirements, federal program guidelines, and Cal OES policy and program guidance. The Subrecipient further agrees that the allocation of funds may be contingent on the enactment of the State Budget. "]
["14. CA Public Records Act - Grant applications are subject to the California Public Records Act, Government Code section 6250 et seq. Do not put any personally identifiable information or private information on this application. If you believe that any of the information you are putting on this application is exempt from the Public Records Act, please attach a statement that indicates what portions of the application and the basis for the exemption. Your statement that the information is not subject to the Public Records Act will not guarantee that the information will not be disclosed. "]
["15. Official Authorized to Sign for Subrecipient:"]
["Name:",null,null,null,null,"Title:"]
["Payment Mailing Address:",null,null,null,null,"City:",null,null,"Zip Code+4:"]
["Signature:",null,null,null,null,null,"Date:"]
["16.Federal Employer  ID Number:"]
[]
["(FOR Cal OES USE ONLY)"]
["I hereby certify upon my personal knowledge that budgeted funds are available for the period and purposes of this expenditure stated above. "]
[]
["(Cal OES Fiscal Officer)",null,null,null,"(Date)",null,"(Cal OES Director or Designee)",null,null,"(Date)"]

{"sheet":"Authorized Body of 5","index":3,"n_rows":26,"n_cols":9,"rows_kept":26,"cut":false,"hidden":false,"merged":[[13,6,13,8],[15,6,15,8],[17,0,17,8],[6,0,6,5],[16,0,16,8],[10,6,10,8],[12,6,12,8],[14,6,14,8],[11,6,11,8],[8,6,8,8],[5,0,5,8],[6,6,6,8],[7,6,7,8],[9,6,9,8],[0,0,0,8],[2,0,2,8],[3,0,3,8],[4,0,4,8],[1,0,1,8]]}
["AUTHORIZED BODY OF 5 - SIGNATURE  AND CONTACT INFORMATION"]
["NOTE:  Unauthorized alterations will delay the approval of this request."]
[{"$f":"SubrecipientName","v":0}]
[{"$f":"FIPSNumber","v":0}]
[{"$f":"SubawardNumber","v":0}]
[]
["Authorized Body of 5 Signatures and Contact Information"]
["Position","Signature","Printed Name","Title","Phone","Email"]
["County Public Health Officer"]
["County Fire Chief"]
["Municipal Fire Chief"]
["County Sheriff"]
["Chief of Police"]
["Additional Position (Optional)"]
["Additional Position (Optional)"]
["DO NOT USE","DO NOT USE","DO NOT USE","DO NOT USE","DO NOT","DO NOT USE"]
[]
["Authorized Agents and Contacts Information"]
["Salutation","Authorized Agent's Name","Title","Mailing Address","City","State","Zip","Phone","Email"]
[]
[]
[]
[]
[]
["Do Not Use","Do Not Use","Do Not Use","Do Not Use","Do Not Use","Do Not Use","Do Not Use","Do Not Use","Do Not Use"]
["Salutation","Contact's Name","Title","Mailing Address","City","State","Zip","Phone","Email"]

{"sheet":"Project Ledger","index":4,"n_rows":202,"n_cols":23,"rows_kept":202,"cut":false,"hidden":false,"merged":[[0,0,0,12],[3,10,3,12],[3,0,3,8],[1,0,1,12],[8,0,8,8],[7,10,7,12],[4,10,4,12],[5,10,5,12],[6,10,6,12],[4,0,4,8],[5,0,5,8],[6,0,6,8],[7,0,7,8]]}
["PROJECT LEDGER"]
["NOTE:  Unauthorized alterations will delay the approval of this request."]
[]
[{"$f":"SubrecipientName","v":0},null,null,null,null,null,null,null,null,"Ledger Type"]
[{"$f":"FIPSNumber","v":0},null,null,null,null,null,null,null,null,"Date"]
[{"$f":"SubawardNumber","v":0}]
[null,null,null,null,null,null,null,null,null,"POP Start Date",{"$f":"StartDate","v":"00:00:00"}]
[null,null,null,null,null,null,null,null,null,"POP End Date",{"$f":"EndDate","v":"00:00:00"}]
[null,null,null,null,null,null,null,null,null,"Approval\n(Cal OES ONLY)","Initials / Date\n(Program Rep)"]
["State\nGoals","Project\nNo.","Direct / Subaward","Project Title","Project Description","Funding\nSource","Solution\nArea","Total\nBudgeted\nCost","Previously Approved Amount","Amount \nThis Request","Total\nApproved","Remaining\nBalance","Percentage\nExpended","Column1","Column2","Column3","Column4","Column5","Column6","Column7","Column8","Column9","Column10"]
[0,0,null,0,0,0,0,{"$f":"SUM(RangeCost)","v":0},{"$f":"SUM(RangePrevious)","v":0},{"$f":"SUM(RangeThisRequest)","v":0},{"$f":"SUM(RangeApproved)","v":0},{"$f":"SUM(RangeBalance)","v":0},{"$f":"IFERROR(TotalApproved/TotalCost,0)","v":0}]
[0,0,null,0,0,0,0,0,0,0,0,0,0,0,0,0,0,0,0,0,0,0,0]
[null,null,null,null,null,null,null,null,0,null,{"$f":"J13+I13","v":0},{"$f":"H13-K13","v":0},{"$f":"IFERROR(K13/H13, 0)","v":0}]
[null,null,null,null,null,null,null,null,0,null,0,0,0]
[null,null,null,null,null,null,null,null,0,null,0,0,0]
[null,null,null,null,null,null,null,null,0,null,0,0,0]
[null,null,null,null,null,null,null,null,0,null,0,0,0]
[null,null,null,null,null,null,null,null,0,null,0,0,0]
[null,null,null,null,null,null,null,null,0,null,0,0,0]
[null,null,null,null,null,null,null,null,0,null,0,0,0]
[null,null,null,null,null,null,null,null,0,null,0,0,0]
[null,null,null,null,null,null,null,null,0,null,0,0,0]
[null,null,null,null,null,null,null,null,0,null,0,0,0]
[null,null,null,null,null,null,null,null,0,null,0,0,0]
[null,null,null,null,null,null,null,null,0,null,0,0,0]
[null,null,null,null,null,null,null,null,0,null,0,0,0]
[null,null,null,null,null,null,null,null,0,null,0,0,0]
[null,null,null,null,null,null,null,null,0,null,0,0,0]
[null,null,null,null,null,null,null,null,0,null,0,0,0]
[null,null,null,null,null,null,null,null,0,null,0,0,0]
[null,null,null,null,null,null,null,null,0,null,0,0,0]
[null,null,null,null,null,null,null,null,0,null,0,0,0]
[null,null,null,null,null,null,null,null,0,null,0,0,0]
[null,null,null,null,null,null,null,null,0,null,0,0,0]
[null,null,null,null,null,null,null,null,0,null,0,0,0]
[null,null,null,null,null,null,null,null,0,null,0,0,0]
[null,null,null,null,null,null,null,null,0,null,0,0,0]
[null,null,null,null,null,null,null,null,0,null,0,0,0]
[null,null,null,null,null,null,null,null,0,null,0,0,0]
[null,null,null,null,null,null,null,null,0,null,0,0,0]
[null,null,null,null,null,null,null,null,0,null,0,0,0]
[null,null,null,null,null,null,null,null,0,null,0,0,0]
[null,null,null,null,null,null,null,null,0,null,0,0,0]
[null,null,null,null,null,null,null,null,0,null,0,0,0]
[null,null,null,null,null,null,null,null,0,null,{"$f":"J45+I45","v":0},{"$f":"H45-K45","v":0},{"$f":"IFERROR(K45/H45, 0)","v":0}]
[null,null,null,null,null,null,null,null,0,null,0,0,0]
[null,null,null,null,null,null,null,null,0,null,0,0,0]
[null,null,null,null,null,null,null,null,0,null,0,0,0]
[null,null,null,null,null,null,null,null,0,null,0,0,0]
[null,null,null,null,null,null,null,null,0,null,0,0,0]
[null,null,null,null,null,null,null,null,0,null,0,0,0]
[null,null,null,null,null,null,null,null,0,null,0,0,0]
[null,null,null,null,null,null,null,null,0,null,0,0,0]
[null,null,null,null,null,null,null,null,0,null,0,0,0]
[null,null,null,null,null,null,null,null,0,null,0,0,0]
[null,null,null,null,null,null,null,null,0,null,0,0,0]
[null,null,null,null,null,null,null,null,0,null,0,0,0]
[null,null,null,null,null,null,null,null,0,null,0,0,0]
[null,null,null,null,null,null,null,null,0,null,0,0,0]
[null,null,null,null,null,null,null,null,0,null,0,0,0]
[null,null,null,null,null,null,null,null,0,null,0,0,0]
[null,null,null,null,null,null,null,null,0,null,0,0,0]
[null,null,null,null,null,null,null,null,0,null,0,0,0]
[null,null,null,null,null,null,null,null,0,null,0,0,0]
[null,null,null,null,null,null,null,null,0,null,0,0,0]
[null,null,null,null,null,null,null,null,0,null,0,0,0]
[null,null,null,null,null,null,null,null,0,null,0,0,0]
[null,null,null,null,null,null,null,null,0,null,0,0,0]
[null,null,null,null,null,null,null,null,0,null,0,0,0]
[null,null,null,null,null,null,null,null,0,null,0,0,0]
[null,null,null,null,null,null,null,null,0,null,0,0,0]
[null,null,null,null,null,null,null,null,0,null,0,0,0]
[null,null,null,null,null,null,null,null,0,null,0,0,0]
[null,null,null,null,null,null,null,null,0,null,0,0,0]
[null,null,null,null,null,null,null,null,0,null,0,0,0]
[null,null,null,null,null,null,null,null,0,null,0,0,0]
[null,null,null,null,null,null,null,null,0,null,{"$f":"J77+I77","v":0},{"$f":"H77-K77","v":0},{"$f":"IFERROR(K77/H77, 0)","v":0}]
[null,null,null,null,null,null,null,null,0,null,0,0,0]
[null,null,null,null,null,null,null,null,0,null,0,0,0]
[null,null,null,null,null,null,null,null,0,null,0,0,0]
[null,null,null,null,null,null,null,null,0,null,0,0,0]
[null,null,null,null,null,null,null,null,0,null,0,0,0]
[null,null,null,null,null,null,null,null,0,null,0,0,0]
[null,null,null,null,null,null,null,null,0,null,0,0,0]
[null,null,null,null,null,null,null,null,0,null,0,0,0]
[null,null,null,null,null,null,null,null,0,null,0,0,0]
[null,null,null,null,null,null,null,null,0,null,0,0,0]
[null,null,null,null,null,null,null,null,0,null,0,0,0]
[null,null,null,null,null,null,null,null,0,null,0,0,0]
[null,null,null,null,null,null,null,null,0,null,0,0,0]
[null,null,null,null,null,null,null,null,0,null,0,0,0]
[null,null,null,null,null,null,null,null,0,null,0,0,0]
[null,null,null,null,null,null,null,null,0,null,0,0,0]
[null,null,null,null,null,null,null,null,0,null,0,0,0]
[null,null,null,null,null,null,null,null,0,null,0,0,0]
[null,null,null,null,null,null,null,null,0,null,0,0,0]
[null,null,null,null,null,null,null,null,0,null,0,0,0]
[null,null,null,null,null,null,null,null,0,null,0,0,0]
[null,null,null,null,null,null,null,null,0,null,0,0,0]
[null,null,null,null,null,null,null,null,0,null,0,0,0]
[null,null,null,null,null,null,null,null,0,null,0,0,0]
[null,null,null,null,null,null,null,null,0,null,0,0,0]
[null,null,null,null,null,null,null,null,0,null,0,0,0]
[null,null,null,null,null,null,null,null,0,null,0,0,0]
[null,null,null,null,null,null,null,null,0,null,0,0,0]
[null,null,null,null,null,null,null,null,0,null,0,0,0]
[null,null,null,null,null,null,null,null,0,null,0,0,0]
[null,null,null,null,null,null,null,null,0,null,0,0,0]
[null,null,null,null,null,null,null,null,0,null,{"$f":"J109+I109","v":0},{"$f":"H109-K109","v":0},{"$f":"IFERROR(K109/H109, 0)","v":0}]
[null,null,null,null,null,null,null,null,0,null,0,0,0]
[null,null,null,null,null,null,null,null,0,null,0,0,0]
[null,null,null,null,null,null,null,null,0,null,0,0,0]
[null,null,null,null,null,null,null,null,0,null,0,0,0]
[null,null,null,null,null,null,null,null,0,null,0,0,0]
[null,null,null,null,null,null,null,null,0,null,0,0,0]
[null,null,null,null,null,null,null,null,0,null,0,0,0]
[null,null,null,null,null,null,null,null,0,null,0,0,0]
[null,null,null,null,null,null,null,null,0,null,0,0,0]
[null,null,null,null,null,null,null,null,0,null,0,0,0]
[null,null,null,null,null,null,null,null,0,null,0,0,0]
[null,null,null,null,null,null,null,null,0,null,0,0,0]
[null,null,null,null,null,null,null,null,0,null,0,0,0]
[null,null,null,null,null,null,null,null,0,null,0,0,0]
[null,null,null,null,null,null,null,null,0,null,0,0,0]
[null,null,null,null,null,null,null,null,0,null,0,0,0]
[null,null,null,null,null,null,null,null,0,null,0,0,0]
[null,null,null,null,null,null,null,null,0,null,0,0,0]
[null,null,null,null,null,null,null,null,0,null,0,0,0]
[null,null,null,null,null,null,null,null,0,null,0,0,0]
[null,null,null,null,null,null,null,null,0,null,0,0,0]
[null,null,null,null,null,null,null,null,0,null,0,0,0]
[null,null,null,null,null,null,null,null,0,null,0,0,0]
[null,null,null,null,null,null,null,null,0,null,0,0,0]
[null,null,null,null,null,null,null,null,0,null,0,0,0]
[null,null,null,null,null,null,null,null,0,null,0,0,0]
[null,null,null,null,null,null,null,null,0,null,0,0,0]
[null,null,null,null,null,null,null,null,0,null,0,0,0]
[null,null,null,null,null,null,null,null,0,null,0,0,0]
[null,null,null,null,null,null,null,null,0,null,0,0,0]
[null,null,null,null,null,null,null,null,0,null,0,0,0]
[null,null,null,null,null,null,null,null,0,null,{"$f":"J141+I141","v":0},{"$f":"H141-K141","v":0},{"$f":"IFERROR(K141/H141, 0)","v":0}]
[null,null,null,null,null,null,null,null,0,null,0,0,0]
[null,null,null,null,null,null,null,null,0,null,0,0,0]
[null,null,null,null,null,null,null,null,0,null,0,0,0]
[null,null,null,null,null,null,null,null,0,null,0,0,0]
[null,null,null,null,null,null,null,null,0,null,0,0,0]
[null,null,null,null,null,null,null,null,0,null,0,0,0]
[null,null,null,null,null,null,null,null,0,null,0,0,0]
[null,null,null,null,null,null,null,null,0,null,0,0,0]
[null,null,null,null,null,null,null,null,0,null,0,0,0]
[null,null,null,null,null,null,null,null,0,null,0,0,0]
[null,null,null,null,null,null,null,null,0,null,0,0,0]
[null,null,null,null,null,null,null,null,0,null,0,0,0]
[null,null,null,null,null,null,null,null,0,null,0,0,0]
[null,null,null,null,null,null,null,null,0,null,0,0,0]
[null,null,null,null,null,null,null,null,0,null,0,0,0]
[null,null,null,null,null,null,null,null,0,null,0,0,0]
[null,null,null,null,null,null,null,null,0,null,0,0,0]
[null,null,null,null,null,null,null,null,0,null,0,0,0]
[null,null,null,null,null,null,null,null,0,null,0,0,0]
[null,null,null,null,null,null,null,null,0,null,0,0,0]
[null,null,null,null,null,null,null,null,0,null,0,0,0]
[null,null,null,null,null,null,null,null,0,null,0,0,0]
[null,null,null,null,null,null,null,null,0,null,0,0,0]
[null,null,null,null,null,null,null,null,0,null,0,0,0]
[null,null,null,null,null,null,null,null,0,null,0,0,0]
[null,null,null,null,null,null,null,null,0,null,0,0,0]
[null,null,null,null,null,null,null,null,0,null,0,0,0]
[null,null,null,null,null,null,null,null,0,null,0,0,0]
[null,null,null,null,null,null,null,null,0,null,0,0,0]
[null,null,null,null,null,null,null,null,0,null,0,0,0]
[null,null,null,null,null,null,null,null,0,null,0,0,0]
[null,null,null,null,null,null,null,null,0,null,{"$f":"J173+I173","v":0},{"$f":"H173-K173","v":0},{"$f":"IFERROR(K173/H173, 0)","v":0}]
[null,null,null,null,null,null,null,null,0,null,0,0,0]
[null,null,null,null,null,null,null,null,0,null,0,0,0]
[null,null,null,null,null,null,null,null,0,null,0,0,0]
[null,null,null,null,null,null,null,null,0,null,0,0,0]
[null,null,null,null,null,null,null,null,0,null,0,0,0]
[null,null,null,null,null,null,null,null,0,null,0,0,0]
[null,null,null,null,null,null,null,null,0,null,0,0,0]
[null,null,null,null,null,null,null,null,0,null,0,0,0]
[null,null,null,null,null,null,null,null,0,null,0,0,0]
[null,null,null,null,null,null,null,null,0,null,0,0,0]
[null,null,null,null,null,null,null,null,0,null,0,0,0]
[null,null,null,null,null,null,null,null,0,null,0,0,0]
[null,null,null,null,null,null,null,null,0,null,0,0,0]
[null,null,null,null,null,null,null,null,0,null,0,0,0]
[null,null,null,null,null,null,null,null,0,null,0,0,0]
[null,null,null,null,null,null,null,null,0,null,0,0,0]
[null,null,null,null,null,null,null,null,0,null,0,0,0]
[null,null,null,null,null,null,null,null,0,null,0,0,0]
[null,null,null,null,null,null,null,null,0,null,0,0,0]
[null,null,null,null,null,null,null,null,0,null,0,0,0]
[null,null,null,null,null,null,null,null,0,null,0,0,0]
[null,null,null,null,null,null,null,null,0,null,0,0,0]
[null,null,null,null,null,null,null,null,0,null,0,0,0]
[null,null,null,null,null,null,null,null,0,null,0,0,0]
[null,null,null,null,null,null,null,null,0,null,0,0,0]
[null,null,null,null,null,null,null,null,0,null,0,0,0]
[null,null,null,null,null,null,null,null,0,null,0,0,0]
[null,null,null,null,null,null,null,null,0,null,0,0,0]
[null,null,null,null,null,null,null,null,0,null,0,0,0]

{"sheet":"Planning","index":5,"n_rows":200,"n_cols":22,"rows_kept":200,"cut":false,"hidden":false,"merged":[[8,0,8,7],[5,9,5,11],[6,9,6,11],[7,9,7,11],[5,0,5,7],[6,0,6,7],[7,0,7,7],[0,0,0,11],[3,9,3,11],[4,9,4,11],[3,0,3,7],[4,0,4,7],[1,0,1,11],[2,0,2,11]]}
["PLANNING"]
["NOTE:  Unauthorized alterations will delay the approval of this request."]
[]
[{"$f":"SubrecipientName","v":0},null,null,null,null,null,null,null,"Ledger Type"]
[{"$f":"FIPSNumber","v":0},null,null,null,null,null,null,null,"Date"]
[{"$f":"SubawardNumber","v":0}]
[]
[]
[null,null,null,null,null,null,null,null,"Approval\nCal OES ONLY","Initials / Date\n(Program Rep)"]
["Project\nNo.","Direct / Subaward","Planning Activity","Funding\nSource","Expenditure\nCategory","Final Product","Budgeted\nCost","Previously\nApproved\nAmount","Amount\nThis Request","Cash\nRequest #","Total\nApproved","Remaining\nBalance","Column1","Column2","Column3","Column4","Column5","Column6","Column7","Column8","Column9","Column10"]
[0,null,null,0,0,null,{"$f":"SUM(RangeCost)","v":0},{"$f":"SUM(RangePrevious)","v":0},{"$f":"SUM(RangeThisRequest)","v":0},null,{"$f":"SUM(RangeApproved)","v":0},{"$f":"SUM(RangeBalance)","v":0}]
[0,null,0,0,0,0,0,0,0,0,0,0,0,0,0,0,0,0,0,0,0,0]
[null,null,null,null,null,null,null,0,null,null,{"$f":"I13+H13","v":0},{"$f":"G13-K13","v":0}]
[null,null,null,null,null,null,null,0,null,null,0,0]
[null,null,null,null,null,null,null,0,null,null,0,0]
[null,null,null,null,null,null,null,0,null,null,0,0]
[null,null,null,null,null,null,null,0,null,null,0,0]
[null,null,null,null,null,null,null,0,null,null,0,0]
[null,null,null,null,null,null,null,0,null,null,0,0]
[null,null,null,null,null,null,null,0,null,null,0,0]
[null,null,null,null,null,null,null,0,null,null,0,0]
[null,null,null,null,null,null,null,0,null,null,0,0]
[null,null,null,null,null,null,null,0,null,null,0,0]
[null,null,null,null,null,null,null,0,null,null,0,0]
[null,null,null,null,null,null,null,0,null,null,0,0]
[null,null,null,null,null,null,null,0,null,null,0,0]
[null,null,null,null,null,null,null,0,null,null,0,0]
[null,null,null,null,null,null,null,0,null,null,0,0]
[null,null,null,null,null,null,null,0,null,null,0,0]
[null,null,null,null,null,null,null,0,null,null,0,0]
[null,null,null,null,null,null,null,0,null,null,0,0]
[null,null,null,null,null,null,null,0,null,null,0,0]
[null,null,null,null,null,null,null,0,null,null,0,0]
[null,null,null,null,null,null,null,0,null,null,0,0]
[null,null,null,null,null,null,null,0,null,null,0,0]
[null,null,null,null,null,null,null,0,null,null,0,0]
[null,null,null,null,null,null,null,0,null,null,0,0]
[null,null,null,null,null,null,null,0,null,null,0,0]
[null,null,null,null,null,null,null,0,null,null,0,0]
[null,null,null,null,null,null,null,0,null,null,0,0]
[null,null,null,null,null,null,null,0,null,null,0,0]
[null,null,null,null,null,null,null,0,null,null,0,0]
[null,null,null,null,null,null,null,0,null,null,0,0]
[null,null,null,null,null,null,null,0,null,null,0,0]
[null,null,null,null,null,null,null,0,null,null,{"$f":"I45+H45","v":0},{"$f":"G45-K45","v":0}]
[null,null,null,null,null,null,null,0,null,null,0,0]
[null,null,null,null,null,null,null,0,null,null,0,0]
[null,null,null,null,null,null,null,0,null,null,0,0]
[null,null,null,null,null,null,null,0,null,null,0,0]
[null,null,null,null,null,null,null,0,null,null,0,0]
[null,null,null,null,null,null,null,0,null,null,0,0]
[null,null,null,null,null,null,null,0,null,null,0,0]
[null,null,null,null,null,null,null,0,null,null,0,0]
[null,null,null,null,null,null,null,0,null,null,0,0]
[null,null,null,null,null,null,null,0,null,null,0,0]
[null,null,null,null,null,null,null,0,null,null,0,0]
[null,null,null,null,null,null,null,0,null,null,0,0]
[null,null,null,null,null,null,null,0,null,null,0,0]
[null,null,null,null,null,null,null,0,null,null,0,0]
[null,null,null,null,null,null,null,0,null,null,0,0]
[null,null,null,null,null,null,null,0,null,null,0,0]
[null,null,null,null,null,null,null,0,null,null,0,0]
[null,null,null,null,null,null,null,0,null,null,0,0]
[null,null,null,null,null,null,null,0,null,null,0,0]
[null,null,null,null,null,null,null,0,null,null,0,0]
[null,null,null,null,null,null,null,0,null,null,0,0]
[null,null,null,null,null,null,null,0,null,null,0,0]
[null,null,null,null,null,null,null,0,null,null,0,0]
[null,null,null,null,null,null,null,0,null,null,0,0]
[null,null,null,null,null,null,null,0,null,null,0,0]
[null,null,null,null,null,null,null,0,null,null,0,0]
[null,null,null,null,null,null,null,0,null,null,0,0]
[null,null,null,null,null,null,null,0,null,null,0,0]
[null,null,null,null,null,null,null,0,null,null,0,0]
[null,null,null,null,null,null,null,0,null,null,0,0]
[null,null,null,null,null,null,null,0,null,null,0,0]
[null,null,null,null,null,null,null,0,null,null,{"$f":"I77+H77","v":0},{"$f":"G77-K77","v":0}]
[null,null,null,null,null,null,null,0,null,null,0,0]
[null,null,null,null,null,null,null,0,null,null,0,0]
[null,null,null,null,null,null,null,0,null,null,0,0]
[null,null,null,null,null,null,null,0,null,null,0,0]
[null,null,null,null,null,null,null,0,null,null,0,0]
[null,null,null,null,null,null,null,0,null,null,0,0]
[null,null,null,null,null,null,null,0,null,null,0,0]
[null,null,null,null,null,null,null,0,null,null,0,0]
[null,null,null,null,null,null,null,0,null,null,0,0]
[null,null,null,null,null,null,null,0,null,null,0,0]
[null,null,null,null,null,null,null,0,null,null,0,0]
[null,null,null,null,null,null,null,0,null,null,0,0]
[null,null,null,null,null,null,null,0,null,null,0,0]
[null,null,null,null,null,null,null,0,null,null,0,0]
[null,null,null,null,null,null,null,0,null,null,0,0]
[null,null,null,null,null,null,null,0,null,null,0,0]
[null,null,null,null,null,null,null,0,null,null,0,0]
[null,null,null,null,null,null,null,0,null,null,0,0]
[null,null,null,null,null,null,null,0,null,null,0,0]
[null,null,null,null,null,null,null,0,null,null,0,0]
[null,null,null,null,null,null,null,0,null,null,0,0]
[null,null,null,null,null,null,null,0,null,null,0,0]
[null,null,null,null,null,null,null,0,null,null,0,0]
[null,null,null,null,null,null,null,0,null,null,0,0]
[null,null,null,null,null,null,null,0,null,null,0,0]
[null,null,null,null,null,null,null,0,null,null,0,0]
[null,null,null,null,null,null,null,0,null,null,0,0]
[null,null,null,null,null,null,null,0,null,null,0,0]
[null,null,null,null,null,null,null,0,null,null,0,0]
[null,null,null,null,null,null,null,0,null,null,0,0]
[null,null,null,null,null,null,null,0,null,null,0,0]
[null,null,null,null,null,null,null,0,null,null,{"$f":"I109+H109","v":0},{"$f":"G109-K109","v":0}]
[null,null,null,null,null,null,null,0,null,null,0,0]
[null,null,null,null,null,null,null,0,null,null,0,0]
[null,null,null,null,null,null,null,0,null,null,0,0]
[null,null,null,null,null,null,null,0,null,null,0,0]
[null,null,null,null,null,null,null,0,null,null,0,0]
[null,null,null,null,null,null,null,0,null,null,0,0]
[null,null,null,null,null,null,null,0,null,null,0,0]
[null,null,null,null,null,null,null,0,null,null,0,0]
[null,null,null,null,null,null,null,0,null,null,0,0]
[null,null,null,null,null,null,null,0,null,null,0,0]
[null,null,null,null,null,null,null,0,null,null,0,0]
[null,null,null,null,null,null,null,0,null,null,0,0]
[null,null,null,null,null,null,null,0,null,null,0,0]
[null,null,null,null,null,null,null,0,null,null,0,0]
[null,null,null,null,null,null,null,0,null,null,0,0]
[null,null,null,null,null,null,null,0,null,null,0,0]
[null,null,null,null,null,null,null,0,null,null,0,0]
[null,null,null,null,null,null,null,0,null,null,0,0]
[null,null,null,null,null,null,null,0,null,null,0,0]
[null,null,null,null,null,null,null,0,null,null,0,0]
[null,null,null,null,null,null,null,0,null,null,0,0]
[null,null,null,null,null,null,null,0,null,null,0,0]
[null,null,null,null,null,null,null,0,null,null,0,0]
[null,null,null,null,null,null,null,0,null,null,0,0]
[null,null,null,null,null,null,null,0,null,null,0,0]
[null,null,null,null,null,null,null,0,null,null,0,0]
[null,null,null,null,null,null,null,0,null,null,0,0]
[null,null,null,null,null,null,null,0,null,null,0,0]
[null,null,null,null,null,null,null,0,null,null,0,0]
[null,null,null,null,null,null,null,0,null,null,0,0]
[null,null,null,null,null,null,null,0,null,null,0,0]
[null,null,null,null,null,null,null,0,null,null,{"$f":"I141+H141","v":0},{"$f":"G141-K141","v":0}]
[null,null,null,null,null,null,null,0,null,null,0,0]
[null,null,null,null,null,null,null,0,null,null,0,0]
[null,null,null,null,null,null,null,0,null,null,0,0]
[null,null,null,null,null,null,null,0,null,null,0,0]
[null,null,null,null,null,null,null,0,null,null,0,0]
[null,null,null,null,null,null,null,0,null,null,0,0]
[null,null,null,null,null,null,null,0,null,null,0,0]
[null,null,null,null,null,null,null,0,null,null,0,0]
[null,null,null,null,null,null,null,0,null,null,0,0]
[null,null,null,null,null,null,null,0,null,null,0,0]
[null,null,null,null,null,null,null,0,null,null,0,0]
[null,null,null,null,null,null,null,0,null,null,0,0]
[null,null,null,null,null,null,null,0,null,null,0,0]
[null,null,null,null,null,null,null,0,null,null,0,0]
[null,null,null,null,null,null,null,0,null,null,0,0]
[null,null,null,null,null,null,null,0,null,null,0,0]
[null,null,null,null,null,null,null,0,null,null,0,0]
[null,null,null,null,null,null,null,0,null,null,0,0]
[null,null,null,null,null,null,null,0,null,null,0,0]
[null,null,null,null,null,null,null,0,null,null,0,0]
[null,null,null,null,null,null,null,0,null,null,0,0]
[null,null,null,null,null,null,null,0,null,null,0,0]
[null,null,null,null,null,null,null,0,null,null,0,0]
[null,null,null,null,null,null,null,0,null,null,0,0]
[null,null,null,null,null,null,null,0,null,null,0,0]
[null,null,null,null,null,null,null,0,null,null,0,0]
[null,null,null,null,null,null,null,0,null,null,0,0]
[null,null,null,null,null,null,null,0,null,null,0,0]
[null,null,null,null,null,null,null,0,null,null,0,0]
[null,null,null,null,null,null,null,0,null,null,0,0]
[null,null,null,null,null,null,null,0,null,null,0,0]
[null,null,null,null,null,null,null,0,null,null,{"$f":"I173+H173","v":0},{"$f":"G173-K173","v":0}]
[null,null,null,null,null,null,null,0,null,null,0,0]
[null,null,null,null,null,null,null,0,null,null,0,0]
[null,null,null,null,null,null,null,0,null,null,0,0]
[null,null,null,null,null,null,null,0,null,null,0,0]
[null,null,null,null,null,null,null,0,null,null,0,0]
[null,null,null,null,null,null,null,0,null,null,0,0]
[null,"Subaward",null,null,null,null,null,0,null,null,0,0]
[null,null,null,null,null,null,null,0,null,null,0,0]
[null,null,null,null,null,null,null,0,null,null,0,0]
[null,null,null,null,null,null,null,0,null,null,0,0]
[null,null,null,null,null,null,null,0,null,null,0,0]
[null,null,null,null,null,null,null,0,null,null,0,0]
[null,null,null,null,null,null,null,0,null,null,0,0]
[null,null,null,null,null,null,null,0,null,null,0,0]
[null,null,null,null,null,null,null,0,null,null,0,0]
[null,null,null,null,null,null,null,0,null,null,0,0]
[null,null,null,null,null,null,null,0,null,null,0,0]
[null,null,null,null,null,null,null,0,null,null,0,0]
[null,null,null,null,null,null,null,0,null,null,0,0]
[null,null,null,null,null,null,null,0,null,null,0,0]
[null,null,null,null,null,null,null,0,null,null,0,0]
[null,null,null,null,null,null,null,0,null,null,0,0]
[null,null,null,null,null,null,null,0,null,null,0,0]
[null,null,null,null,null,null,null,0,null,null,0,0]
[null,null,null,null,null,null,null,0,null,null,0,0]
[null,null,null,null,null,null,null,0,null,null,0,0]
[null,null,null,null,null,null,null,0,null,null,0,0]

{"sheet":"Organization","index":6,"n_rows":200,"n_cols":21,"rows_kept":200,"cut":false,"hidden":false,"merged":[[0,0,0,10],[3,8,3,10],[4,8,4,10],[5,8,5,10],[2,0,2,10],[1,0,1,11],[8,0,8,6],[6,8,6,10],[7,8,7,10],[3,0,3,6],[4,0,4,6],[5,0,5,6],[6,0,6,6],[7,0,7,6]]}
["ORGANIZATION"]
["NOTE:  Unauthorized alterations will delay the approval of this request."]
[]
[{"$f":"SubrecipientName","v":0},null,null,null,null,null,null,"Ledger Type"]
[{"$f":"FIPSNumber","v":0},null,null,null,null,null,null,"Date"]
[{"$f":"SubawardNumber","v":0}]
[]
[]
[null,null,null,null,null,null,null,"Approval\nCal OES ONLY","Date & Initials \n(Program Rep)"]
["Project\nNo.","Direct / Subaward","Organization","Funding\nSource","Expenditure\nCategory","Budgeted\nCost","Previously \nApproved\nAmount","Amount\nThis Request","Cash\nRequest #","Total\nApproved","Remaining\nBalance","Column1","Column2","Column3","Column4","Column5","Column6","Column7","Column8","Column9","Column10"]
[0,null,null,0,0,{"$f":"SUM(RangeCost)","v":0},{"$f":"SUM(RangePrevious)","v":0},{"$f":"SUM(RangeThisRequest)","v":0},null,{"$f":"SUM(RangeApproved)","v":0},{"$f":"SUM(RangeBalance)","v":0}]
[0,null,0,0,0,0,0,0,0,0,0,0,0,0,0,0,0,0,0,0,0]
[null,null,null,null,null,null,0,null,null,{"$f":"H13+G13","v":0},{"$f":"F13-J13","v":0}]
[null,null,null,null,null,null,0,null,null,0,0]
[null,null,null,null,null,null,0,null,null,0,0]
[null,null,null,null,null,null,0,null,null,0,0]
[null,null,null,null,null,null,0,null,null,0,0]
[null,null,null,null,null,null,0,null,null,0,0]
[null,null,null,null,null,null,0,null,null,0,0]
[null,null,null,null,null,null,0,null,null,0,0]
[null,null,null,null,null,null,0,null,null,0,0]
[null,null,null,null,null,null,0,null,null,0,0]
[null,null,null,null,null,null,0,null,null,0,0]
[null,null,null,null,null,null,0,null,null,0,0]
[null,null,null,null,null,null,0,null,null,0,0]
[null,null,null,null,null,null,0,null,null,0,0]
[null,null,null,null,null,null,0,null,null,0,0]
[null,null,null,null,null,null,0,null,null,0,0]
[null,null,null,null,null,null,0,null,null,0,0]
[null,null,null,null,null,null,0,null,null,0,0]
[null,null,null,null,null,null,0,null,null,0,0]
[null,null,null,null,null,null,0,null,null,0,0]
[null,null,null,null,null,null,0,null,null,0,0]
[null,null,null,null,null,null,0,null,null,0,0]
[null,null,null,null,null,null,0,null,null,0,0]
[null,null,null,null,null,null,0,null,null,0,0]
[null,null,null,null,null,null,0,null,null,0,0]
[null,null,null,null,null,null,0,null,null,0,0]
[null,null,null,null,null,null,0,null,null,0,0]
[null,null,null,null,null,null,0,null,null,0,0]
[null,null,null,null,null,null,0,null,null,0,0]
[null,null,null,null,null,null,0,null,null,0,0]
[null,null,null,null,null,null,0,null,null,0,0]
[null,null,null,null,null,null,0,null,null,0,0]
[null,null,null,null,null,null,0,null,null,{"$f":"H45+G45","v":0},{"$f":"F45-J45","v":0}]
[null,null,null,null,null,null,0,null,null,0,0]
[null,null,null,null,null,null,0,null,null,0,0]
[null,null,null,null,null,null,0,null,null,0,0]
[null,null,null,null,null,null,0,null,null,0,0]
[null,null,null,null,null,null,0,null,null,0,0]
[null,null,null,null,null,null,0,null,null,0,0]
[null,null,null,null,null,null,0,null,null,0,0]
[null,null,null,null,null,null,0,null,null,0,0]
[null,null,null,null,null,null,0,null,null,0,0]
[null,null,null,null,null,null,0,null,null,0,0]
[null,null,null,null,null,null,0,null,null,0,0]
[null,null,null,null,null,null,0,null,null,0,0]
[null,null,null,null,null,null,0,null,null,0,0]
[null,null,null,null,null,null,0,null,null,0,0]
[null,null,null,null,null,null,0,null,null,0,0]
[null,null,null,null,null,null,0,null,null,0,0]
[null,null,null,null,null,null,0,null,null,0,0]
[null,null,null,null,null,null,0,null,null,0,0]
[null,null,null,null,null,null,0,null,null,0,0]
[null,null,null,null,null,null,0,null,null,0,0]
[null,null,null,null,null,null,0,null,null,0,0]
[null,null,null,null,null,null,0,null,null,0,0]
[null,null,null,null,null,null,0,null,null,0,0]
[null,null,null,null,null,null,0,null,null,0,0]
[null,null,null,null,null,null,0,null,null,0,0]
[null,null,null,null,null,null,0,null,null,0,0]
[null,null,null,null,null,null,0,null,null,0,0]
[null,null,null,null,null,null,0,null,null,0,0]
[null,null,null,null,null,null,0,null,null,0,0]
[null,null,null,null,null,null,0,null,null,0,0]
[null,null,null,null,null,null,0,null,null,0,0]
[null,null,null,null,null,null,0,null,null,{"$f":"H77+G77","v":0},{"$f":"F77-J77","v":0}]
[null,null,null,null,null,null,0,null,null,0,0]
[null,null,null,null,null,null,0,null,null,0,0]
[null,null,null,null,null,null,0,null,null,0,0]
[null,null,null,null,null,null,0,null,null,0,0]
[null,null,null,null,null,null,0,null,null,0,0]
[null,null,null,null,null,null,0,null,null,0,0]
[null,null,null,null,null,null,0,null,null,0,0]
[null,null,null,null,null,null,0,null,null,0,0]
[null,null,null,null,null,null,0,null,null,0,0]
[null,null,null,null,null,null,0,null,null,0,0]
[null,null,null,null,null,null,0,null,null,0,0]
[null,null,null,null,null,null,0,null,null,0,0]
[null,null,null,null,null,null,0,null,null,0,0]
[null,null,null,null,null,null,0,null,null,0,0]
[null,null,null,null,null,null,0,null,null,0,0]
[null,null,null,null,null,null,0,null,null,0,0]
[null,null,null,null,null,null,0,null,null,0,0]
[null,null,null,null,null,null,0,null,null,0,0]
[null,null,null,null,null,null,0,null,null,0,0]
[null,null,null,null,null,null,0,null,null,0,0]
[null,null,null,null,null,null,0,null,null,0,0]
[null,null,null,null,null,null,0,null,null,0,0]
[null,null,null,null,null,null,0,null,null,0,0]
[null,null,null,null,null,null,0,null,null,0,0]
[null,null,null,null,null,null,0,null,null,0,0]
[null,null,null,null,null,null,0,null,null,0,0]
[null,null,null,null,null,null,0,null,null,0,0]
[null,null,null,null,null,null,0,null,null,0,0]
[null,null,null,null,null,null,0,null,null,0,0]
[null,null,null,null,null,null,0,null,null,0,0]
[null,null,null,null,null,null,0,null,null,0,0]
[null,null,null,null,null,null,0,null,null,{"$f":"H109+G109","v":0},{"$f":"F109-J109","v":0}]
[null,null,null,null,null,null,0,null,null,0,0]
[null,null,null,null,null,null,0,null,null,0,0]
[null,null,null,null,null,null,0,null,null,0,0]
[null,null,null,null,null,null,0,null,null,0,0]
[null,null,null,null,null,null,0,null,null,0,0]
[null,null,null,null,null,null,0,null,null,0,0]
[null,null,null,null,null,null,0,null,null,0,0]
[null,null,null,null,null,null,0,null,null,0,0]
[null,null,null,null,null,null,0,null,null,0,0]
[null,null,null,null,null,null,0,null,null,0,0]
[null,null,null,null,null,null,0,null,null,0,0]
[null,null,null,null,null,null,0,null,null,0,0]
[null,null,null,null,null,null,0,null,null,0,0]
[null,null,null,null,null,null,0,null,null,0,0]
[null,null,null,null,null,null,0,null,null,0,0]
[null,null,null,null,null,null,0,null,null,0,0]
[null,null,null,null,null,null,0,null,null,0,0]
[null,null,null,null,null,null,0,null,null,0,0]
[null,null,null,null,null,null,0,null,null,0,0]
[null,null,null,null,null,null,0,null,null,0,0]
[null,null,null,null,null,null,0,null,null,0,0]
[null,null,null,null,null,null,0,null,null,0,0]
[null,null,null,null,null,null,0,null,null,0,0]
[null,null,null,null,null,null,0,null,null,0,0]
[null,null,null,null,null,null,0,null,null,0,0]
[null,null,null,null,null,null,0,null,null,0,0]
[null,null,null,null,null,null,0,null,null,0,0]
[null,null,null,null,null,null,0,null,null,0,0]
[null,null,null,null,null,null,0,null,null,0,0]
[null,null,null,null,null,null,0,null,null,0,0]
[null,null,null,null,null,null,0,null,null,0,0]
[null,null,null,null,null,null,0,null,null,{"$f":"H141+G141","v":0},{"$f":"F141-J141","v":0}]
[null,null,null,null,null,null,0,null,null,0,0]
[null,null,null,null,null,null,0,null,null,0,0]
[null,null,null,null,null,null,0,null,null,0,0]
[null,null,null,null,null,null,0,null,null,0,0]
[null,null,null,null,null,null,0,null,null,0,0]
[null,null,null,null,null,null,0,null,null,0,0]
[null,null,null,null,null,null,0,null,null,0,0]
[null,null,null,null,null,null,0,null,null,0,0]
[null,null,null,null,null,null,0,null,null,0,0]
[null,null,null,null,null,null,0,null,null,0,0]
[null,null,null,null,null,null,0,null,null,0,0]
[null,null,null,null,null,null,0,null,null,0,0]
[null,null,null,null,null,null,0,null,null,0,0]
[null,null,null,null,null,null,0,null,null,0,0]
[null,null,null,null,null,null,0,null,null,0,0]
[null,null,null,null,null,null,0,null,null,0,0]
[null,null,null,null,null,null,0,null,null,0,0]
[null,null,null,null,null,null,0,null,null,0,0]
[null,null,null,null,null,null,0,null,null,0,0]
[null,null,null,null,null,null,0,null,null,0,0]
[null,null,null,null,null,null,0,null,null,0,0]
[null,null,null,null,null,null,0,null,null,0,0]
[null,null,null,null,null,null,0,null,null,0,0]
[null,null,null,null,null,null,0,null,null,0,0]
[null,null,null,null,null,null,0,null,null,0,0]
[null,null,null,null,null,null,0,null,null,0,0]
[null,null,null,null,null,null,0,null,null,0,0]
[null,null,null,null,null,null,0,null,null,0,0]
[null,null,null,null,null,null,0,null,null,0,0]
[null,null,null,null,null,null,0,null,null,0,0]
[null,null,null,null,null,null,0,null,null,0,0]
[null,null,null,null,null,null,0,null,null,{"$f":"H173+G173","v":0},{"$f":"F173-J173","v":0}]
[null,null,null,null,null,null,0,null,null,0,0]
[null,null,null,null,null,null,0,null,null,0,0]
[null,null,null,null,null,null,0,null,null,0,0]
[null,null,null,null,null,null,0,null,null,0,0]
[null,null,null,null,null,null,0,null,null,0,0]
[null,null,null,null,null,null,0,null,null,0,0]
[null,null,null,null,null,null,0,null,null,0,0]
[null,null,null,null,null,null,0,null,null,0,0]
[null,null,null,null,null,null,0,null,null,0,0]
[null,null,null,null,null,null,0,null,null,0,0]
[null,null,null,null,null,null,0,null,null,0,0]
[null,null,null,null,null,null,0,null,null,0,0]
[null,null,null,null,null,null,0,null,null,0,0]
[null,null,null,null,null,null,0,null,null,0,0]
[null,null,null,null,null,null,0,null,null,0,0]
[null,null,null,null,null,null,0,null,null,0,0]
[null,null,null,null,null,null,0,null,null,0,0]
[null,null,null,null,null,null,0,null,null,0,0]
[null,null,null,null,null,null,0,null,null,0,0]
[null,null,null,null,null,null,0,null,null,0,0]
[null,null,null,null,null,null,0,null,null,0,0]
[null,null,null,null,null,null,0,null,null,0,0]
[null,null,null,null,null,null,0,null,null,0,0]
[null,null,null,null,null,null,0,null,null,0,0]
[null,null,null,null,null,null,0,null,null,0,0]
[null,null,null,null,null,null,0,null,null,0,0]
[null,null,null,null,null,null,0,null,null,0,0]

{"sheet":"Equipment","index":7,"n_rows":201,"n_cols":26,"rows_kept":201,"cut":false,"hidden":false,"merged":[[8,0,8,11],[0,0,0,15],[2,0,2,15],[4,13,4,15],[1,0,1,15],[5,13,5,15],[3,0,3,11],[3,13,3,15],[4,0,4,11],[5,0,5,11],[6,0,6,11],[7,0,7,11],[6,13,6,15],[7,13,7,15]]}
["EQUIPMENT"]
["NOTE:  Unauthorized alterations will delay the approval of this request."]
[]
[{"$f":"SubrecipientName","v":0},null,null,null,null,null,null,null,null,null,null,null,"Ledger Type"]
[{"$f":"FIPSNumber","v":0},null,null,null,null,null,null,null,null,null,null,null,"Date"]
[{"$f":"SubawardNumber","v":0}]
[]
[]
[null,null,null,null,null,null,null,null,null,null,null,null,"Approval\n(Cal OES ONLY)","Initials / Date\n(Program Rep)"]
["Project\nNo.","Direct / Subaward","Equipment Description\n(include Quantity)","Funding\nSource","Invoice\nNumber","Vendor","ID Tag\nNumber","Condition &\nDisposition","Deployed\nLocation","Acquisition\nDate","Budgeted\nCost","Previously\nApproved\nAmount","Amount\nThis Request","Cash\nRequest #","Total\nApproved","Remaining\nBalance","Column1","Column2","Column3","Column4","Column5","Column6","Column7","Column8","Column9","Column10"]
[0,null,null,0,null,null,null,null,null,null,{"$f":"SUM(RangeCost)","v":0},{"$f":"SUM(RangePrevious)","v":0},{"$f":"SUM(RangeThisRequest)","v":0},null,{"$f":"SUM(RangeApproved)","v":0},{"$f":"SUM(RangeBalance)","v":0}]
[0,null,0,0,0,0,0,0,0,0,0,0,0,0,0,0,0,0,0,0,0,0,0,0,0,0]
[null,null,null,null,null,null,null,null,null,null,null,null,null,null,{"$f":"M13+L13","v":0},{"$f":"K13-O13","v":0}]
[null,null,null,null,null,null,null,null,null,null,null,null,null,null,0,0]
[null,null,null,null,null,null,null,null,null,null,null,0,null,null,0,0]
[null,null,null,null,null,null,null,null,null,null,null,0,null,null,0,0]
[null,null,null,null,null,null,null,null,null,null,null,0,null,null,0,0]
[null,null,null,null,null,null,null,null,null,null,null,0,null,null,0,0]
[null,null,null,null,null,null,null,null,null,null,null,0,null,null,0,0]
[null,null,null,null,null,null,null,null,null,null,null,0,null,null,0,0]
[null,null,null,null,null,null,null,null,null,null,null,0,null,null,0,0]
[null,null,null,null,null,null,null,null,null,null,null,0,null,null,0,0]
[null,null,null,null,null,null,null,null,null,null,null,0,null,null,0,0]
[null,null,null,null,null,null,null,null,null,null,null,0,null,null,0,0]
[null,null,null,null,null,null,null,null,null,null,null,0,null,null,0,0]
[null,null,null,null,null,null,null,null,null,null,null,0,null,null,0,0]
[null,null,null,null,null,null,null,null,null,null,null,0,null,null,0,0]
[null,null,null,null,null,null,null,null,null,null,null,0,null,null,0,0]
[null,null,null,null,null,null,null,null,null,null,null,0,null,null,0,0]
[null,null,null,null,null,null,null,null,null,null,null,0,null,null,0,0]
[null,null,null,null,null,null,null,null,null,null,null,0,null,null,0,0]
[null,null,null,null,null,null,null,null,null,null,null,0,null,null,0,0]
[null,null,null,null,null,null,null,null,null,null,null,0,null,null,0,0]
[null,null,null,null,null,null,null,null,null,null,null,0,null,null,0,0]
[null,null,null,null,null,null,null,null,null,null,null,0,null,null,0,0]
[null,null,null,null,null,null,null,null,null,null,null,0,null,null,0,0]
[null,null,null,null,null,null,null,null,null,null,null,0,null,null,0,0]
[null,null,null,null,null,null,null,null,null,null,null,0,null,null,0,0]
[null,null,null,null,null,null,null,null,null,null,null,0,null,null,0,0]
[null,null,null,null,null,null,null,null,null,null,null,0,null,null,0,0]
[null,null,null,null,null,null,null,null,null,null,null,0,null,null,0,0]
[null,null,null,null,null,null,null,null,null,null,null,0,null,null,0,0]
[null,null,null,null,null,null,null,null,null,null,null,0,null,null,0,0]
[null,null,null,null,null,null,null,null,null,null,null,0,null,null,0,0]
[null,null,null,null,null,null,null,null,null,null,null,0,null,null,{"$f":"M45+L45","v":0},{"$f":"K45-O45","v":0}]
[null,null,null,null,null,null,null,null,null,null,null,0,null,null,0,0]
[null,null,null,null,null,null,null,null,null,null,null,0,null,null,0,0]
[null,null,null,null,null,null,null,null,null,null,null,0,null,null,0,0]
[null,null,null,null,null,null,null,null,null,null,null,0,null,null,0,0]
[null,null,null,null,null,null,null,null,null,null,null,0,null,null,0,0]
[null,null,null,null,null,null,null,null,null,null,null,0,null,null,0,0]
[null,null,null,null,null,null,null,null,null,null,null,0,null,null,0,0]
[null,null,null,null,null,null,null,null,null,null,null,0,null,null,0,0]
[null,null,null,null,null,null,null,null,null,null,null,0,null,null,0,0]
[null,null,null,null,null,null,null,null,null,null,null,0,null,null,0,0]
[null,null,null,null,null,null,null,null,null,null,null,0,null,null,0,0]
[null,null,null,null,null,null,null,null,null,null,null,0,null,null,0,0]
[null,null,null,null,null,null,null,null,null,null,null,0,null,null,0,0]
[null,null,null,null,null,null,null,null,null,null,null,0,null,null,0,0]
[null,null,null,null,null,null,null,null,null,null,null,0,null,null,0,0]
[null,null,null,null,null,null,null,null,null,null,null,0,null,null,0,0]
[null,null,null,null,null,null,null,null,null,null,null,0,null,null,0,0]
[null,null,null,null,null,null,null,null,null,null,null,0,null,null,0,0]
[null,null,null,null,null,null,null,null,null,null,null,0,null,null,0,0]
[null,null,null,null,null,null,null,null,null,null,null,0,null,null,0,0]
[null,null,null,null,null,null,null,null,null,null,null,0,null,null,0,0]
[null,null,null,null,null,null,null,null,null,null,null,0,null,null,0,0]
[null,null,null,null,null,null,null,null,null,null,null,0,null,null,0,0]
[null,null,null,null,null,null,null,null,null,null,null,0,null,null,0,0]
[null,null,null,null,null,null,null,null,null,null,null,0,null,null,0,0]
[null,null,null,null,null,null,null,null,null,null,null,0,null,null,0,0]
[null,null,null,null,null,null,null,null,null,null,null,0,null,null,0,0]
[null,null,null,null,null,null,null,null,null,null,null,0,null,null,0,0]
[null,null,null,null,null,null,null,null,null,null,null,0,null,null,0,0]
[null,null,null,null,null,null,null,null,null,null,null,0,null,null,0,0]
[null,null,null,null,null,null,null,null,null,null,null,0,null,null,0,0]
[null,null,null,null,null,null,null,null,null,null,null,0,null,null,{"$f":"M77+L77","v":0},{"$f":"K77-O77","v":0}]
[null,null,null,null,null,null,null,null,null,null,null,0,null,null,0,0]
[null,null,null,null,null,null,null,null,null,null,null,0,null,null,0,0]
[null,null,null,null,null,null,null,null,null,null,null,0,null,null,0,0]
[null,null,null,null,null,null,null,null,null,null,null,0,null,null,0,0]
[null,null,null,null,null,null,null,null,null,null,null,0,null,null,0,0]
[null,null,null,null,null,null,null,null,null,null,null,0,null,null,0,0]
[null,null,null,null,null,null,null,null,null,null,null,0,null,null,0,0]
[null,null,null,null,null,null,null,null,null,null,null,0,null,null,0,0]
[null,null,null,null,null,null,null,null,null,null,null,0,null,null,0,0]
[null,null,null,null,null,null,null,null,null,null,null,0,null,null,0,0]
[null,null,null,null,null,null,null,null,null,null,null,0,null,null,0,0]
[null,null,null,null,null,null,null,null,null,null,null,0,null,null,0,0]
[null,null,null,null,null,null,null,null,null,null,null,0,null,null,0,0]
[null,null,null,null,null,null,null,null,null,null,null,0,null,null,0,0]
[null,null,null,null,null,null,null,null,null,null,null,0,null,null,0,0]
[null,null,null,null,null,null,null,null,null,null,null,0,null,null,0,0]
[null,null,null,null,null,null,null,null,null,null,null,0,null,null,0,0]
[null,null,null,null,null,null,null,null,null,null,null,0,null,null,0,0]
[null,null,null,null,null,null,null,null,null,null,null,0,null,null,0,0]
[null,null,null,null,null,null,null,null,null,null,null,0,null,null,0,0]
[null,null,null,null,null,null,null,null,null,null,null,0,null,null,0,0]
[null,null,null,null,null,null,null,null,null,null,null,0,null,null,0,0]
[null,null,null,null,null,null,null,null,null,null,null,0,null,null,0,0]
[null,null,null,null,null,null,null,null,null,null,null,0,null,null,0,0]
[null,null,null,null,null,null,null,null,null,null,null,0,null,null,0,0]
[null,null,null,null,null,null,null,null,null,null,null,0,null,null,0,0]
[null,null,null,null,null,null,null,null,null,null,null,0,null,null,0,0]
[null,null,null,null,null,null,null,null,null,null,null,0,null,null,0,0]
[null,null,null,null,null,null,null,null,null,null,null,0,null,null,0,0]
[null,null,null,null,null,null,null,null,null,null,null,0,null,null,0,0]
[null,null,null,null,null,null,null,null,null,null,null,0,null,null,0,0]
[null,null,null,null,null,null,null,null,null,null,null,0,null,null,{"$f":"M109+L109","v":0},{"$f":"K109-O109","v":0}]
[null,null,null,null,null,null,null,null,null,null,null,0,null,null,0,0]
[null,null,null,null,null,null,null,null,null,null,null,0,null,null,0,0]
[null,null,null,null,null,null,null,null,null,null,null,0,null,null,0,0]
[null,null,null,null,null,null,null,null,null,null,null,0,null,null,0,0]
[null,null,null,null,null,null,null,null,null,null,null,0,null,null,0,0]
[null,null,null,null,null,null,null,null,null,null,null,0,null,null,0,0]
[null,null,null,null,null,null,null,null,null,null,null,0,null,null,0,0]
[null,null,null,null,null,null,null,null,null,null,null,0,null,null,0,0]
[null,null,null,null,null,null,null,null,null,null,null,0,null,null,0,0]
[null,null,null,null,null,null,null,null,null,null,null,0,null,null,0,0]
[null,null,null,null,null,null,null,null,null,null,null,0,null,null,0,0]
[null,null,null,null,null,null,null,null,null,null,null,0,null,null,0,0]
[null,null,null,null,null,null,null,null,null,null,null,0,null,null,0,0]
[null,null,null,null,null,null,null,null,null,null,null,0,null,null,0,0]
[null,null,null,null,null,null,null,null,null,null,null,0,null,null,0,0]
[null,null,null,null,null,null,null,null,null,null,null,0,null,null,0,0]
[null,null,null,null,null,null,null,null,null,null,null,0,null,null,0,0]
[null,null,null,null,null,null,null,null,null,null,null,0,null,null,0,0]
[null,null,null,null,null,null,null,null,null,null,null,0,null,null,0,0]
[null,null,null,null,null,null,null,null,null,null,null,0,null,null,0,0]
[null,null,null,null,null,null,null,null,null,null,null,0,null,null,0,0]
[null,null,null,null,null,null,null,null,null,null,null,0,null,null,0,0]
[null,null,null,null,null,null,null,null,null,null,null,0,null,null,0,0]
[null,null,null,null,null,null,null,null,null,null,null,0,null,null,0,0]
[null,null,null,null,null,null,null,null,null,null,null,0,null,null,0,0]
[null,null,null,null,null,null,null,null,null,null,null,0,null,null,0,0]
[null,null,null,null,null,null,null,null,null,null,null,0,null,null,0,0]
[null,null,null,null,null,null,null,null,null,null,null,0,null,null,0,0]
[null,null,null,null,null,null,null,null,null,null,null,0,null,null,0,0]
[null,null,null,null,null,null,null,null,null,null,null,0,null,null,0,0]
[null,null,null,null,null,null,null,null,null,null,null,0,null,null,0,0]
[null,null,null,null,null,null,null,null,null,null,null,0,null,null,{"$f":"M141+L141","v":0},{"$f":"K141-O141","v":0}]
[null,null,null,null,null,null,null,null,null,null,null,0,null,null,0,0]
[null,null,null,null,null,null,null,null,null,null,null,0,null,null,0,0]
[null,null,null,null,null,null,null,null,null,null,null,0,null,null,0,0]
[null,null,null,null,null,null,null,null,null,null,null,0,null,null,0,0]
[null,null,null,null,null,null,null,null,null,null,null,0,null,null,0,0]
[null,null,null,null,null,null,null,null,null,null,null,0,null,null,0,0]
[null,null,null,null,null,null,null,null,null,null,null,0,null,null,0,0]
[null,null,null,null,null,null,null,null,null,null,null,0,null,null,0,0]
[null,null,null,null,null,null,null,null,null,null,null,0,null,null,0,0]
[null,null,null,null,null,null,null,null,null,null,null,0,null,null,0,0]
[null,null,null,null,null,null,null,null,null,null,null,0,null,null,0,0]
[null,null,null,null,null,null,null,null,null,null,null,0,null,null,0,0]
[null,null,null,null,null,null,null,null,null,null,null,0,null,null,0,0]
[null,null,null,null,null,null,null,null,null,null,null,0,null,null,0,0]
[null,null,null,null,null,null,null,null,null,null,null,0,null,null,0,0]
[null,null,null,null,null,null,null,null,null,null,null,0,null,null,0,0]
[null,null,null,null,null,null,null,null,null,null,null,0,null,null,0,0]
[null,null,null,null,null,null,null,null,null,null,null,0,null,null,0,0]
[null,null,null,null,null,null,null,null,null,null,null,0,null,null,0,0]
[null,null,null,null,null,null,null,null,null,null,null,0,null,null,0,0]
[null,null,null,null,null,null,null,null,null,null,null,0,null,null,0,0]
[null,null,null,null,null,null,null,null,null,null,null,0,null,null,0,0]
[null,null,null,null,null,null,null,null,null,null,null,0,null,null,0,0]
[null,null,null,null,null,null,null,null,null,null,null,0,null,null,0,0]
[null,null,null,null,null,null,null,null,null,null,null,0,null,null,0,0]
[null,null,null,null,null,null,null,null,null,null,null,0,null,null,0,0]
[null,null,null,null,null,null,null,null,null,null,null,0,null,null,0,0]
[null,null,null,null,null,null,null,null,null,null,null,0,null,null,0,0]
[null,null,null,null,null,null,null,null,null,null,null,0,null,null,0,0]
[null,null,null,null,null,null,null,null,null,null,null,0,null,null,0,0]
[null,null,null,null,null,null,null,null,null,null,null,0,null,null,0,0]
[null,null,null,null,null,null,null,null,null,null,null,0,null,null,{"$f":"M173+L173","v":0},{"$f":"K173-O173","v":0}]
[null,null,null,null,null,null,null,null,null,null,null,0,null,null,0,0]
[null,null,null,null,null,null,null,null,null,null,null,0,null,null,0,0]
[null,null,null,null,null,null,null,null,null,null,null,0,null,null,0,0]
[null,null,null,null,null,null,null,null,null,null,null,0,null,null,0,0]
[null,null,null,null,null,null,null,null,null,null,null,0,null,null,0,0]
[null,null,null,null,null,null,null,null,null,null,null,0,null,null,0,0]
[null,null,null,null,null,null,null,null,null,null,null,0,null,null,0,0]
[null,null,null,null,null,null,null,null,null,null,null,0,null,null,0,0]
[null,null,null,null,null,null,null,null,null,null,null,0,null,null,0,0]
[null,null,null,null,null,null,null,null,null,null,null,0,null,null,0,0]
[null,null,null,null,null,null,null,null,null,null,null,0,null,null,0,0]
[null,null,null,null,null,null,null,null,null,null,null,0,null,null,0,0]
[null,null,null,null,null,null,null,null,null,null,null,0,null,null,0,0]
[null,null,null,null,null,null,null,null,null,null,null,0,null,null,0,0]
[null,null,null,null,null,null,null,null,null,null,null,0,null,null,0,0]
[null,null,null,null,null,null,null,null,null,null,null,0,null,null,0,0]
[null,null,null,null,null,null,null,null,null,null,null,0,null,null,0,0]
[null,null,null,null,null,null,null,null,null,null,null,0,null,null,0,0]
[null,null,null,null,null,null,null,null,null,null,null,0,null,null,0,0]
[null,null,null,null,null,null,null,null,null,null,null,0,null,null,0,0]
[null,null,null,null,null,null,null,null,null,null,null,0,null,null,0,0]
[null,null,null,null,null,null,null,null,null,null,null,0,null,null,0,0]
[null,null,null,null,null,null,null,null,null,null,null,0,null,null,0,0]
[null,null,null,null,null,null,null,null,null,null,null,0,null,null,0,0]
[null,null,null,null,null,null,null,null,null,null,null,0,null,null,0,0]
[null,null,null,null,null,null,null,null,null,null,null,0,null,null,0,0]
[null,null,null,null,null,null,null,null,null,null,null,0,null,null,0,0]
[null,null,null,null,null,null,null,null,null,null,null,0,null,null,0,0]

{"sheet":"Training","index":8,"n_rows":202,"n_cols":24,"rows_kept":202,"cut":false,"hidden":false,"merged":[[0,0,0,13],[2,0,2,13],[3,11,3,13],[8,0,8,9],[3,0,3,9],[4,0,4,9],[5,0,5,9],[7,0,7,9],[5,11,5,13],[6,11,6,13],[7,11,7,13],[4,11,4,13],[1,0,1,13],[6,0,6,9]]}
["TRAINING"]
["NOTE:  Unauthorized alterations will delay the approval of this request."]
[]
[{"$f":"SubrecipientName","v":0},null,null,null,null,null,null,null,null,null,"Ledger Type"]
[{"$f":"FIPSNumber","v":0},null,null,null,null,null,null,null,null,null,"Date"]
[{"$f":"SubawardNumber","v":0}]
[]
[]
[null,null,null,null,null,null,null,null,null,null,"Approval\nCal OES ONLY","Date & Initials \n(Program Rep)"]
["Project\nNo.","Direct / Subaward","Course Name","Funding\nSource","Expenditure\nCategory","Feedback\nNumber","Total # of\nTrainees","Identified\nHost ","Budgeted\nCost","Previously\nApproved\nAmount","Amount\nThis Request","Cash\nRequest #","Total\nApproved","Remaining\nBalance","Column1","Column2","Column3","Column4","Column5","Column6","Column7","Column8","Column9","Column10"]
[0,null,null,0,0,null,null,null,{"$f":"SUM(RangeCost)","v":0},{"$f":"SUM(RangePrevious)","v":0},{"$f":"SUM(RangeThisRequest)","v":0},null,{"$f":"SUM(RangeApproved)","v":0},{"$f":"SUM(RangeBalance)","v":0}]
[0,null,0,0,0,0,"00:00:00",0,0,0,0,0,0,0,0,0,0,0,0,0,0,0,0,0]
[null,null,null,null,null,null,null,null,null,null,null,null,{"$f":"K13+J13","v":0},{"$f":"I13-M13","v":0}]
[null,null,null,null,null,null,null,null,null,null,null,null,0,0]
[null,null,null,null,null,null,null,null,null,null,null,null,0,0]
[null,null,null,null,null,null,null,null,null,null,null,null,0,0]
[null,null,null,null,null,null,null,null,null,null,null,null,0,0]
[null,null,null,null,null,null,null,null,null,null,null,null,0,0]
[null,null,null,null,null,null,null,null,null,null,null,null,0,0]
[null,null,null,null,null,null,null,null,null,null,null,null,0,0]
[null,null,null,null,null,null,null,null,null,null,null,null,0,0]
[null,null,null,null,null,null,null,null,null,0,null,null,0,0]
[null,null,null,null,null,null,null,null,null,0,null,null,0,0]
[null,null,null,null,null,null,null,null,null,0,null,null,0,0]
[null,null,null,null,null,null,null,null,null,0,null,null,0,0]
[null,null,null,null,null,null,null,null,null,0,null,null,0,0]
[null,null,null,null,null,null,null,null,null,0,null,null,0,0]
[null,null,null,null,null,null,null,null,null,0,null,null,0,0]
[null,null,null,null,null,null,null,null,null,0,null,null,0,0]
[null,null,null,null,null,null,null,null,null,0,null,null,0,0]
[null,null,null,null,null,null,null,null,null,0,null,null,0,0]
[null,null,null,null,null,null,null,null,null,0,null,null,0,0]
[null,null,null,null,null,null,null,null,null,0,null,null,0,0]
[null,null,null,null,null,null,null,null,null,0,null,null,0,0]
[null,null,null,null,null,null,null,null,null,0,null,null,0,0]
[null,null,null,null,null,null,null,null,null,0,null,null,0,0]
[null,null,null,null,null,null,null,null,null,0,null,null,0,0]
[null,null,null,null,null,null,null,null,null,0,null,null,0,0]
[null,null,null,null,null,null,null,null,null,0,null,null,0,0]
[null,null,null,null,null,null,null,null,null,0,null,null,0,0]
[null,null,null,null,null,null,null,null,null,0,null,null,0,0]
[null,null,null,null,null,null,null,null,null,0,null,null,0,0]
[null,null,null,null,null,null,null,null,null,0,null,null,0,0]
[null,null,null,null,null,null,null,null,null,0,null,null,0,0]
[null,null,null,null,null,null,null,null,null,0,null,null,{"$f":"K45+J45","v":0},{"$f":"I45-M45","v":0}]
[null,null,null,null,null,null,null,null,null,0,null,null,0,0]
[null,null,null,null,null,null,null,null,null,0,null,null,0,0]
[null,null,null,null,null,null,null,null,null,0,null,null,0,0]
[null,null,null,null,null,null,null,null,null,0,null,null,0,0]
[null,null,null,null,null,null,null,null,null,0,null,null,0,0]
[null,null,null,null,null,null,null,null,null,0,null,null,0,0]
[null,null,null,null,null,null,null,null,null,0,null,null,0,0]
[null,null,null,null,null,null,null,null,null,0,null,null,0,0]
[null,null,null,null,null,null,null,null,null,0,null,null,0,0]
[null,null,null,null,null,null,null,null,null,0,null,null,0,0]
[null,null,null,null,null,null,null,null,null,0,null,null,0,0]
[null,null,null,null,null,null,null,null,null,0,null,null,0,0]
[null,null,null,null,null,null,null,null,null,0,null,null,0,0]
[null,null,null,null,null,null,null,null,null,0,null,null,0,0]
[null,null,null,null,null,null,null,null,null,0,null,null,0,0]
[null,null,null,null,null,null,null,null,null,0,null,null,0,0]
[null,null,null,null,null,null,null,null,null,0,null,null,0,0]
[null,null,null,null,null,null,null,null,null,0,null,null,0,0]
[null,null,null,null,null,null,null,null,null,0,null,null,0,0]
[null,null,null,null,null,null,null,null,null,0,null,null,0,0]
[null,null,null,null,null,null,null,null,null,0,null,null,0,0]
[null,null,null,null,null,null,null,null,null,0,null,null,0,0]
[null,null,null,null,null,null,null,null,null,0,null,null,0,0]
[null,null,null,null,null,null,null,null,null,0,null,null,0,0]
[null,null,null,null,null,null,null,null,null,0,null,null,0,0]
[null,null,null,null,null,null,null,null,null,0,null,null,0,0]
[null,null,null,null,null,null,null,null,null,0,null,null,0,0]
[null,null,null,null,null,null,null,null,null,0,null,null,0,0]
[null,null,null,null,null,null,null,null,null,0,null,null,0,0]
[null,null,null,null,null,null,null,null,null,0,null,null,0,0]
[null,null,null,null,null,null,null,null,null,0,null,null,0,0]
[null,null,null,null,null,null,null,null,null,0,null,null,{"$f":"K77+J77","v":0},{"$f":"I77-M77","v":0}]
[null,null,null,null,null,null,null,null,null,0,null,null,0,0]
[null,null,null,null,null,null,null,null,null,0,null,null,0,0]
[null,null,null,null,null,null,null,null,null,0,null,null,0,0]
[null,null,null,null,null,null,null,null,null,0,null,null,0,0]
[null,null,null,null,null,null,null,null,null,0,null,null,0,0]
[null,null,null,null,null,null,null,null,null,0,null,null,0,0]
[null,null,null,null,null,null,null,null,null,0,null,null,0,0]
[null,null,null,null,null,null,null,null,null,0,null,null,0,0]
[null,null,null,null,null,null,null,null,null,0,null,null,0,0]
[null,null,null,null,null,null,null,null,null,0,null,null,0,0]
[null,null,null,null,null,null,null,null,null,0,null,null,0,0]
[null,null,null,null,null,null,null,null,null,0,null,null,0,0]
[null,null,null,null,null,null,null,null,null,0,null,null,0,0]
[null,null,null,null,null,null,null,null,null,0,null,null,0,0]
[null,null,null,null,null,null,null,null,null,0,null,null,0,0]
[null,null,null,null,null,null,null,null,null,0,null,null,0,0]
[null,null,null,null,null,null,null,null,null,0,null,null,0,0]
[null,null,null,null,null,null,null,null,null,0,null,null,0,0]
[null,null,null,null,null,null,null,null,null,0,null,null,0,0]
[null,null,null,null,null,null,null,null,null,0,null,null,0,0]
[null,null,null,null,null,null,null,null,null,0,null,null,0,0]
[null,null,null,null,null,null,null,null,null,0,null,null,0,0]
[null,null,null,null,null,null,null,null,null,0,null,null,0,0]
[null,null,null,null,null,null,null,null,null,0,null,null,0,0]
[null,null,null,null,null,null,null,null,null,0,null,null,0,0]
[null,null,null,null,null,null,null,null,null,0,null,null,0,0]
[null,null,null,null,null,null,null,null,null,0,null,null,0,0]
[null,null,null,null,null,null,null,null,null,0,null,null,0,0]
[null,null,null,null,null,null,null,null,null,0,null,null,0,0]
[null,null,null,null,null,null,null,null,null,0,null,null,0,0]
[null,null,null,null,null,null,null,null,null,0,null,null,0,0]
[null,null,null,null,null,null,null,null,null,0,null,null,{"$f":"K109+J109","v":0},{"$f":"I109-M109","v":0}]
[null,null,null,null,null,null,null,null,null,0,null,null,0,0]
[null,null,null,null,null,null,null,null,null,0,null,null,0,0]
[null,null,null,null,null,null,null,null,null,0,null,null,0,0]
[null,null,null,null,null,null,null,null,null,0,null,null,0,0]
[null,null,null,null,null,null,null,null,null,0,null,null,0,0]
[null,null,null,null,null,null,null,null,null,0,null,null,0,0]
[null,null,null,null,null,null,null,null,null,0,null,null,0,0]
[null,null,null,null,null,null,null,null,null,0,null,null,0,0]
[null,null,null,null,null,null,null,null,null,0,null,null,0,0]
[null,null,null,null,null,null,null,null,null,0,null,null,0,0]
[null,null,null,null,null,null,null,null,null,0,null,null,0,0]
[null,null,null,null,null,null,null,null,null,0,null,null,0,0]
[null,null,null,null,null,null,null,null,null,0,null,null,0,0]
[null,null,null,null,null,null,null,null,null,0,null,null,0,0]
[null,null,null,null,null,null,null,null,null,0,null,null,0,0]
[null,null,null,null,null,null,null,null,null,0,null,null,0,0]
[null,null,null,null,null,null,null,null,null,0,null,null,0,0]
[null,null,null,null,null,null,null,null,null,0,null,null,0,0]
[null,null,null,null,null,null,null,null,null,0,null,null,0,0]
[null,null,null,null,null,null,null,null,null,0,null,null,0,0]
[null,null,null,null,null,null,null,null,null,0,null,null,0,0]
[null,null,null,null,null,null,null,null,null,0,null,null,0,0]
[null,null,null,null,null,null,null,null,null,0,null,null,0,0]
[null,null,null,null,null,null,null,null,null,0,null,null,0,0]
[null,null,null,null,null,null,null,null,null,0,null,null,0,0]
[null,null,null,null,null,null,null,null,null,0,null,null,0,0]
[null,null,null,null,null,null,null,null,null,0,null,null,0,0]
[null,null,null,null,null,null,null,null,null,0,null,null,0,0]
[null,null,null,null,null,null,null,null,null,0,null,null,0,0]
[null,null,null,null,null,null,null,null,null,0,null,null,0,0]
[null,null,null,null,null,null,null,null,null,0,null,null,0,0]
[null,null,null,null,null,null,null,null,null,0,null,null,{"$f":"K141+J141","v":0},{"$f":"I141-M141","v":0}]
[null,null,null,null,null,null,null,null,null,0,null,null,0,0]
[null,null,null,null,null,null,null,null,null,0,null,null,0,0]
[null,null,null,null,null,null,null,null,null,0,null,null,0,0]
[null,null,null,null,null,null,null,null,null,0,null,null,0,0]
[null,null,null,null,null,null,null,null,null,0,null,null,0,0]
[null,null,null,null,null,null,null,null,null,0,null,null,0,0]
[null,null,null,null,null,null,null,null,null,0,null,null,0,0]
[null,null,null,null,null,null,null,null,null,0,null,null,0,0]
[null,null,null,null,null,null,null,null,null,0,null,null,0,0]
[null,null,null,null,null,null,null,null,null,0,null,null,0,0]
[null,null,null,null,null,null,null,null,null,0,null,null,0,0]
[null,null,null,null,null,null,null,null,null,0,null,null,0,0]
[null,null,null,null,null,null,null,null,null,0,null,null,0,0]
[null,null,null,null,null,null,null,null,null,0,null,null,0,0]
[null,null,null,null,null,null,null,null,null,0,null,null,0,0]
[null,null,null,null,null,null,null,null,null,0,null,null,0,0]
[null,null,null,null,null,null,null,null,null,0,null,null,0,0]
[null,null,null,null,null,null,null,null,null,0,null,null,0,0]
[null,null,null,null,null,null,null,null,null,0,null,null,0,0]
[null,null,null,null,null,null,null,null,null,0,null,null,0,0]
[null,null,null,null,null,null,null,null,null,0,null,null,0,0]
[null,null,null,null,null,null,null,null,null,0,null,null,0,0]
[null,null,null,null,null,null,null,null,null,0,null,null,0,0]
[null,null,null,null,null,null,null,null,null,0,null,null,0,0]
[null,null,null,null,null,null,null,null,null,0,null,null,0,0]
[null,null,null,null,null,null,null,null,null,0,null,null,0,0]
[null,null,null,null,null,null,null,null,null,0,null,null,0,0]
[null,null,null,null,null,null,null,null,null,0,null,null,0,0]
[null,null,null,null,null,null,null,null,null,0,null,null,0,0]
[null,null,null,null,null,null,null,null,null,0,null,null,0,0]
[null,null,null,null,null,null,null,null,null,0,null,null,0,0]
[null,null,null,null,null,null,null,null,null,0,null,null,{"$f":"K173+J173","v":0},{"$f":"I173-M173","v":0}]
[null,null,null,null,null,null,null,null,null,0,null,null,0,0]
[null,null,null,null,null,null,null,null,null,0,null,null,0,0]
[null,null,null,null,null,null,null,null,null,0,null,null,0,0]
[null,null,null,null,null,null,null,null,null,0,null,null,0,0]
[null,null,null,null,null,null,null,null,null,0,null,null,0,0]
[null,null,null,null,null,null,null,null,null,0,null,null,0,0]
[null,null,null,null,null,null,null,null,null,0,null,null,0,0]
[null,null,null,null,null,null,null,null,null,0,null,null,0,0]
[null,null,null,null,null,null,null,null,null,0,null,null,0,0]
[null,null,null,null,null,null,null,null,null,0,null,null,0,0]
[null,null,null,null,null,null,null,null,null,0,null,null,0,0]
[null,null,null,null,null,null,null,null,null,0,null,null,0,0]
[null,null,null,null,null,null,null,null,null,0,null,null,0,0]
[null,null,null,null,null,null,null,null,null,0,null,null,0,0]
[null,null,null,null,null,null,null,null,null,0,null,null,0,0]
[null,null,null,null,null,null,null,null,null,0,null,null,0,0]
[null,null,null,null,null,null,null,null,null,0,null,null,0,0]
[null,null,null,null,null,null,null,null,null,0,null,null,0,0]
[null,null,null,null,null,null,null,null,null,0,null,null,0,0]
[null,null,null,null,null,null,null,null,null,0,null,null,0,0]
[null,null,null,null,null,null,null,null,null,0,null,null,0,0]
[null,null,null,null,null,null,null,null,null,0,null,null,0,0]
[null,null,null,null,null,null,null,null,null,0,null,null,0,0]
[null,null,null,null,null,null,null,null,null,0,null,null,0,0]
[null,null,null,null,null,null,null,null,null,0,null,null,0,0]
[null,null,null,null,null,null,null,null,null,0,null,null,0,0]
[null,null,null,null,null,null,null,null,null,0,null,null,0,0]
[null,null,null,null,null,null,null,null,null,0,null,null,0,0]
[null,null,null,null,null,null,null,null,null,0,null,null,0,0]

{"sheet":"Exercise","index":9,"n_rows":202,"n_cols":24,"rows_kept":202,"cut":false,"hidden":true,"merged":[[0,0,0,13],[3,0,3,13],[4,0,4,9],[4,11,4,13],[1,0,1,13],[2,0,2,13],[9,0,9,9],[7,11,7,13],[8,11,8,13],[5,11,5,13],[6,11,6,13],[5,0,5,9],[6,0,6,9],[7,0,7,9],[8,0,8,9]]}
["EXERCISE"]
["Warning!  Decimal usage is not allowed.  Round amounts DOWN to the nearest dollar."]
["Alterations to this document may result in delayed application approval, modification requests, or cash requests.\nSubrecipients may be asked to revise and/or re-submit any altered Financial Management Forms Workbook."]
[]
[{"$f":"SubrecipientName","v":0},null,null,null,null,null,null,null,null,null,"Ledger Type"]
[{"$f":"FIPSNumber","v":0},null,null,null,null,null,null,null,null,null,"Date"]
[{"$f":"SubawardNumber","v":0}]
[]
[]
[null,null,null,null,null,null,null,null,null,null,"Approval\nCal OES ONLY","Date & Initials\n(Program Rep)"]
["Project\nNo.","Exercise\nTitle","Funding\nSource","Expenditure\nCategory","Date of\nExercise","Date AAR\nEntered into HSEEP","Exercise\nType","Identified\nHost","Budgeted\nCost","Previously\nApproved\nAmount","Amount\nThis Request","Cash\nRequest #","Total\nApproved","Remaining\nBalance","Column1","Column2","Column3","Column4","Column5","Column6","Column7","Column8","Column9","Column10"]
[0,null,null,null,null,null,null,null,null,null,null,null,{"$f":"SUM(RangeApproved)","v":0},{"$f":"SUM(RangeBalance)","v":0}]
[0,null,null,null,null,null,null,null,null,null,null,null,0,0]
[null,null,null,null,null,null,null,null,null,null,null,null,{"$f":"K14+J14","v":0},{"$f":"I14-M14","v":0}]
[null,null,null,null,null,null,null,null,null,null,null,null,0,0]
[null,null,null,null,null,null,null,null,null,null,null,null,0,0]
[null,null,null,null,null,null,null,null,null,null,null,null,0,0]
[null,null,null,null,null,null,null,null,null,null,null,null,0,0]
[null,null,null,null,null,null,null,null,null,null,null,null,0,0]
[null,null,null,null,null,null,null,null,null,null,null,null,0,0]
[null,null,null,null,null,null,null,null,null,null,null,null,0,0]
[null,null,null,null,null,null,null,null,null,null,null,null,0,0]
[null,null,null,null,null,null,null,null,null,null,null,null,{"$f":"K23+J23","v":0},{"$f":"I23-M23","v":0}]
[null,null,null,null,null,null,null,null,null,null,null,null,0,0]
[null,null,null,null,null,null,null,null,null,null,null,null,0,0]
[null,null,null,null,null,null,null,null,null,null,null,null,0,0]
[null,null,null,null,null,null,null,null,null,null,null,null,0,0]
[null,null,null,null,null,null,null,null,null,null,null,null,0,0]
[null,null,null,null,null,null,null,null,null,null,null,null,0,0]
[null,null,null,null,null,null,null,null,null,null,null,null,0,0]
[null,null,null,null,null,null,null,null,null,null,null,null,0,0]
[null,null,null,null,null,null,null,null,null,null,null,null,0,0]
[null,null,null,null,null,null,null,null,null,null,null,null,0,0]
[null,null,null,null,null,null,null,null,null,null,null,null,0,0]
[null,null,null,null,null,null,null,null,null,null,null,null,0,0]
[null,null,null,null,null,null,null,null,null,null,null,null,0,0]
[null,null,null,null,null,null,null,null,null,null,null,null,0,0]
[null,null,null,null,null,null,null,null,null,null,null,null,0,0]
[null,null,null,null,null,null,null,null,null,null,null,null,0,0]
[null,null,null,null,null,null,null,null,null,null,null,null,0,0]
[null,null,null,null,null,null,null,null,null,null,null,null,0,0]
[null,null,null,null,null,null,null,null,null,null,null,null,0,0]
[null,null,null,null,null,null,null,null,null,null,null,null,0,0]
[null,null,null,null,null,null,null,null,null,null,null,null,0,0]
[null,null,null,null,null,null,null,null,null,null,null,null,0,0]
[null,null,null,null,null,null,null,null,null,null,null,null,{"$f":"K46+J46","v":0},{"$f":"I46-M46","v":0}]
[null,null,null,null,null,null,null,null,null,null,null,null,0,0]
[null,null,null,null,null,null,null,null,null,null,null,null,0,0]
[null,null,null,null,null,null,null,null,null,null,null,null,0,0]
[null,null,null,null,null,null,null,null,null,null,null,null,0,0]
[null,null,null,null,null,null,null,null,null,null,null,null,0,0]
[null,null,null,null,null,null,null,null,null,null,null,null,0,0]
[null,null,null,null,null,null,null,null,null,null,null,null,0,0]
[null,null,null,null,null,null,null,null,null,null,null,null,0,0]
[null,null,null,null,null,null,null,null,null,null,null,null,0,0]
[null,null,null,null,null,null,null,null,null,null,null,null,0,0]
[null,null,null,null,null,null,null,null,null,null,null,null,0,0]
[null,null,null,null,null,null,null,null,null,null,null,null,0,0]
[null,null,null,null,null,null,null,null,null,null,null,null,0,0]
[null,null,null,null,null,null,null,null,null,null,null,null,0,0]
[null,null,null,null,null,null,null,null,null,null,null,null,0,0]
[null,null,null,null,null,null,null,null,null,null,null,null,0,0]
[null,null,null,null,null,null,null,null,null,null,null,null,0,0]
[null,null,null,null,null,null,null,null,null,null,null,null,0,0]
[null,null,null,null,null,null,null,null,null,null,null,null,0,0]
[null,null,null,null,null,null,null,null,null,null,null,null,0,0]
[null,null,null,null,null,null,null,null,null,null,null,null,0,0]
[null,null,null,null,null,null,null,null,null,null,null,null,0,0]
[null,null,null,null,null,null,null,null,null,null,null,null,0,0]
[null,null,null,null,null,null,null,null,null,null,null,null,0,0]
[null,null,null,null,null,null,null,null,null,null,null,null,0,0]
[null,null,null,null,null,null,null,null,null,null,null,null,0,0]
[null,null,null,null,null,null,null,null,null,null,null,null,0,0]
[null,null,null,null,null,null,null,null,null,null,null,null,0,0]
[null,null,null,null,null,null,null,null,null,null,null,null,0,0]
[null,null,null,null,null,null,null,null,null,null,null,null,0,0]
[null,null,null,null,null,null,null,null,null,null,null,null,0,0]
[null,null,null,null,null,null,null,null,null,null,null,null,{"$f":"K78+J78","v":0},{"$f":"I78-M78","v":0}]
[null,null,null,null,null,null,null,null,null,null,null,null,0,0]
[null,null,null,null,null,null,null,null,null,null,null,null,0,0]
[null,null,null,null,null,null,null,null,null,null,null,null,0,0]
[null,null,null,null,null,null,null,null,null,null,null,null,0,0]
[null,null,null,null,null,null,null,null,null,null,null,null,0,0]
[null,null,null,null,null,null,null,null,null,null,null,null,0,0]
[null,null,null,null,null,null,null,null,null,null,null,null,0,0]
[null,null,null,null,null,null,null,null,null,null,null,null,0,0]
[null,null,null,null,null,null,null,null,null,null,null,null,0,0]
[null,null,null,null,null,null,null,null,null,null,null,null,0,0]
[null,null,null,null,null,null,null,null,null,null,null,null,0,0]
[null,null,null,null,null,null,null,null,null,null,null,null,0,0]
[null,null,null,null,null,null,null,null,null,null,null,null,0,0]
[null,null,null,null,null,null,null,null,null,null,null,null,0,0]
[null,null,null,null,null,null,null,null,null,null,null,null,0,0]
[null,null,null,null,null,null,null,null,null,null,null,null,0,0]
[null,null,null,null,null,null,null,null,null,null,null,null,0,0]
[null,null,null,null,null,null,null,null,null,null,null,null,0,0]
[null,null,null,null,null,null,null,null,null,null,null,null,0,0]
[null,null,null,null,null,null,null,null,null,null,null,null,0,0]
[null,null,null,null,null,null,null,null,null,null,null,null,0,0]
[null,null,null,null,null,null,null,null,null,null,null,null,0,0]
[null,null,null,null,null,null,null,null,null,null,null,null,0,0]
[null,null,null,null,null,null,null,null,null,null,null,null,0,0]
[null,null,null,null,null,null,null,null,null,null,null,null,0,0]
[null,null,null,null,null,null,null,null,null,null,null,null,0,0]
[null,null,null,null,null,null,null,null,null,null,null,null,0,0]
[null,null,null,null,null,null,null,null,null,null,null,null,0,0]
[null,null,null,null,null,null,null,null,null,null,null,null,0,0]
[null,null,null,null,null,null,null,null,null,null,null,null,0,0]
[null,null,null,null,null,null,null,null,null,null,null,null,0,0]
[null,null,null,null,null,null,null,null,null,null,null,null,{"$f":"K110+J110","v":0},{"$f":"I110-M110","v":0}]
[null,null,null,null,null,null,null,null,null,null,null,null,0,0]
[null,null,null,null,null,null,null,null,null,null,null,null,0,0]
[null,null,null,null,null,null,null,null,null,null,null,null,0,0]
[null,null,null,null,null,null,null,null,null,null,null,null,0,0]
[null,null,null,null,null,null,null,null,null,null,null,null,0,0]
[null,null,null,null,null,null,null,null,null,null,null,null,0,0]
[null,null,null,null,null,null,null,null,null,null,null,null,0,0]
[null,null,null,null,null,null,null,null,null,null,null,null,0,0]
[null,null,null,null,null,null,null,null,null,null,null,null,0,0]
[null,null,null,null,null,null,null,null,null,null,null,null,0,0]
[null,null,null,null,null,null,null,null,null,null,null,null,0,0]
[null,null,null,null,null,null,null,null,null,null,null,null,0,0]
[null,null,null,null,null,null,null,null,null,null,null,null,0,0]
[null,null,null,null,null,null,null,null,null,null,null,null,0,0]
[null,null,null,null,null,null,null,null,null,null,null,null,0,0]
[null,null,null,null,null,null,null,null,null,null,null,null,0,0]
[null,null,null,null,null,null,null,null,null,null,null,null,0,0]
[null,null,null,null,null,null,null,null,null,null,null,null,0,0]
[null,null,null,null,null,null,null,null,null,null,null,null,0,0]
[null,null,null,null,null,null,null,null,null,null,null,null,0,0]
[null,null,null,null,null,null,null,null,null,null,null,null,0,0]
[null,null,null,null,null,null,null,null,null,null,null,null,0,0]
[null,null,null,null,null,null,null,null,null,null,null,null,0,0]
[null,null,null,null,null,null,null,null,null,null,null,null,0,0]
[null,null,null,null,null,null,null,null,null,null,null,null,0,0]
[null,null,null,null,null,null,null,null,null,null,null,null,0,0]
[null,null,null,null,null,null,null,null,null,null,null,null,0,0]
[null,null,null,null,null,null,null,null,null,null,null,null,0,0]
[null,null,null,null,null,null,null,null,null,null,null,null,0,0]
[null,null,null,null,null,null,null,null,null,null,null,null,0,0]
[null,null,null,null,null,null,null,null,null,null,null,null,0,0]
[null,null,null,null,null,null,null,null,null,null,null,null,{"$f":"K142+J142","v":0},{"$f":"I142-M142","v":0}]
[null,null,null,null,null,null,null,null,null,null,null,null,0,0]
[null,null,null,null,null,null,null,null,null,null,null,null,0,0]
[null,null,null,null,null,null,null,null,null,null,null,null,0,0]
[null,null,null,null,null,null,null,null,null,null,null,null,0,0]
[null,null,null,null,null,null,null,null,null,null,null,null,0,0]
[null,null,null,null,null,null,null,null,null,null,null,null,0,0]
[null,null,null,null,null,null,null,null,null,null,null,null,0,0]
[null,null,null,null,null,null,null,null,null,null,null,null,0,0]
[null,null,null,null,null,null,null,null,null,null,null,null,0,0]
[null,null,null,null,null,null,null,null,null,null,null,null,0,0]
[null,null,null,null,null,null,null,null,null,null,null,null,0,0]
[null,null,null,null,null,null,null,null,null,null,null,null,0,0]
[null,null,null,null,null,null,null,null,null,null,null,null,0,0]
[null,null,null,null,null,null,null,null,null,null,null,null,0,0]
[null,null,null,null,null,null,null,null,null,null,null,null,0,0]
[null,null,null,null,null,null,null,null,null,null,null,null,0,0]
[null,null,null,null,null,null,null,null,null,null,null,null,0,0]
[null,null,null,null,null,null,null,null,null,null,null,null,0,0]
[null,null,null,null,null,null,null,null,null,null,null,null,0,0]
[null,null,null,null,null,null,null,null,null,null,null,null,0,0]
[null,null,null,null,null,null,null,null,null,null,null,null,0,0]
[null,null,null,null,null,null,null,null,null,null,null,null,0,0]
[null,null,null,null,null,null,null,null,null,null,null,null,0,0]
[null,null,null,null,null,null,null,null,null,null,null,null,0,0]
[null,null,null,null,null,null,null,null,null,null,null,null,0,0]
[null,null,null,null,null,null,null,null,null,null,null,null,0,0]
[null,null,null,null,null,null,null,null,null,null,null,null,0,0]
[null,null,null,null,null,null,null,null,null,null,null,null,0,0]
[null,null,null,null,null,null,null,null,null,null,null,null,0,0]
[null,null,null,null,null,null,null,null,null,null,null,null,0,0]
[null,null,null,null,null,null,null,null,null,null,null,null,0,0]
[null,null,null,null,null,null,null,null,null,null,null,null,{"$f":"K174+J174","v":0},{"$f":"I174-M174","v":0}]
[null,null,null,null,null,null,null,null,null,null,null,null,0,0]
[null,null,null,null,null,null,null,null,null,null,null,null,0,0]
[null,null,null,null,null,null,null,null,null,null,null,null,0,0]
[null,null,null,null,null,null,null,null,null,null,null,null,{"$f":"K178+J178","v":0},{"$f":"I178-M178","v":0}]
[null,null,null,null,null,null,null,null,null,null,null,null,0,0]
[null,null,null,null,null,null,null,null,null,null,null,null,0,0]
[null,null,null,null,null,null,null,null,null,null,null,null,0,0]
[null,null,null,null,null,null,null,null,null,null,null,null,0,0]
[null,null,null,null,null,null,null,null,null,null,null,null,0,0]
[null,null,null,null,null,null,null,null,null,null,null,null,0,0]
[null,null,null,null,null,null,null,null,null,null,null,null,0,0]
[null,null,null,null,null,null,null,null,null,null,null,null,0,0]
[null,null,null,null,null,null,null,null,null,null,null,null,0,0]
[null,null,null,null,null,null,null,null,null,null,null,null,0,0]
[null,null,null,null,null,null,null,null,null,null,null,null,0,0]
[null,null,null,null,null,null,null,null,null,null,null,null,0,0]
[null,null,null,null,null,null,null,null,null,null,null,null,0,0]
[null,null,null,null,null,null,null,null,null,null,null,null,0,0]
[null,null,null,null,null,null,null,null,null,null,null,null,0,0]
[null,null,null,null,null,null,null,null,null,null,null,null,0,0]
[null,null,null,null,null,null,null,null,null,null,null,null,0,0]
[null,null,null,null,null,null,null,null,null,null,null,null,0,0]
[null,null,null,null,null,null,null,null,null,null,null,null,0,0]
[null,null,null,null,null,null,null,null,null,null,null,null,0,0]
[null,null,null,null,null,null,null,null,null,null,null,null,0,0]
[null,null,null,null,null,null,null,null,null,null,null,null,0,0]
[null,null,null,null,null,null,null,null,null,null,null,null,0,0]
[null,null,null,null,null,null,null,null,null,null,null,null,0,0]

{"sheet":"M&A","index":10,"n_rows":197,"n_cols":21,"rows_kept":197,"cut":false,"hidden":false,"merged":[[0,0,0,10],[3,8,3,10],[2,0,2,10],[3,0,3,6],[1,0,1,10],[7,0,7,6],[8,0,8,6],[4,8,4,10],[5,8,5,10],[4,0,4,6],[5,0,5,6],[6,0,6,6],[6,8,6,10],[7,8,7,10]]}
["M&A"]
["NOTE:  Unauthorized alterations will delay the approval of this request."]
[]
[{"$f":"SubrecipientName","v":0},null,null,null,null,null,null,"Ledger Type"]
[{"$f":"FIPSNumber","v":0},null,null,null,null,null,null,"Date"]
[{"$f":"SubawardNumber","v":0}]
[]
[]
[null,null,null,null,null,null,null,"Approval\n(Cal OES ONLY)","Initials / Date\n(Program Rep)"]
["Project\nNo.","Direct / Subaward","Activity","Funding\nSource","Expenditure\nCategory","Budgeted\nCost","Previously\nApproved\nAmount","Amount\nThis Request","Cash\nRequest #","Total\nApproved","Remaining\nBalance","Column1","Column2","Column3","Column4","Column5","Column6","Column7","Column8","Column9","Column10"]
[0,null,null,0,0,{"$f":"SUM(RangeCost)","v":0},{"$f":"SUM(RangePrevious)","v":0},{"$f":"SUM(RangeThisRequest)","v":0},null,{"$f":"SUM(RangeApproved)","v":0},{"$f":"SUM(RangeBalance)","v":0}]
[0,null,0,0,0,0,0,0,0,0,0,0,0,0,0,0,0,0,0,0,0]
[null,null,null,null,null,null,null,null,null,{"$f":"H13+G13","v":0},{"$f":"F13-J13","v":0}]
[null,null,null,null,null,null,null,null,null,0,0]
[null,null,null,null,null,null,null,null,null,0,0]
[null,null,null,null,null,null,null,null,null,0,0]
[null,null,null,null,null,null,null,null,null,0,0]
[null,null,null,null,null,null,null,null,null,0,0]
[null,null,null,null,null,null,null,null,null,0,0]
[null,null,null,null,null,null,null,null,null,0,0]
[null,null,null,null,null,null,null,null,null,0,0]
[null,null,null,null,null,null,null,null,null,0,0]
[null,null,null,null,null,null,null,null,null,0,0]
[null,null,null,null,null,null,null,null,null,0,0]
[null,null,null,null,null,null,null,null,null,0,0]
[null,null,null,null,null,null,null,null,null,0,0]
[null,null,null,null,null,null,null,null,null,0,0]
[null,null,null,null,null,null,null,null,null,0,0]
[null,null,null,null,null,null,null,null,null,0,0]
[null,null,null,null,null,null,null,null,null,0,0]
[null,null,null,null,null,null,null,null,null,0,0]
[null,null,null,null,null,null,null,null,null,0,0]
[null,null,null,null,null,null,null,null,null,0,0]
[null,null,null,null,null,null,null,null,null,0,0]
[null,null,null,null,null,null,null,null,null,0,0]
[null,null,null,null,null,null,null,null,null,0,0]
[null,null,null,null,null,null,null,null,null,0,0]
[null,null,null,null,null,null,null,null,null,0,0]
[null,null,null,null,null,null,null,null,null,0,0]
[null,null,null,null,null,null,null,null,null,0,0]
[null,null,null,null,null,null,null,null,null,0,0]
[null,null,null,null,null,null,null,null,null,0,0]
[null,null,null,null,null,null,null,null,null,0,0]
[null,null,null,null,null,null,null,null,null,0,0]
[null,null,null,null,null,null,null,null,null,{"$f":"H45+G45","v":0},{"$f":"F45-J45","v":0}]
[null,null,null,null,null,null,null,null,null,0,0]
[null,null,null,null,null,null,null,null,null,0,0]
[null,null,null,null,null,null,null,null,null,0,0]
[null,null,null,null,null,null,null,null,null,0,0]
[null,null,null,null,null,null,null,null,null,0,0]
[null,null,null,null,null,null,null,null,null,0,0]
[null,null,null,null,null,null,null,null,null,0,0]
[null,null,null,null,null,null,null,null,null,0,0]
[null,null,null,null,null,null,null,null,null,0,0]
[null,null,null,null,null,null,null,null,null,0,0]
[null,null,null,null,null,null,null,null,null,0,0]
[null,null,null,null,null,null,null,null,null,0,0]
[null,null,null,null,null,null,null,null,null,0,0]
[null,null,null,null,null,null,null,null,null,0,0]
[null,null,null,null,null,null,null,null,null,0,0]
[null,null,null,null,null,null,null,null,null,0,0]
[null,null,null,null,null,null,null,null,null,0,0]
[null,null,null,null,null,null,null,null,null,0,0]
[null,null,null,null,null,null,null,null,null,0,0]
[null,null,null,null,null,null,null,null,null,0,0]
[null,null,null,null,null,null,null,null,null,0,0]
[null,null,null,null,null,null,null,null,null,0,0]
[null,null,null,null,null,null,null,null,null,0,0]
[null,null,null,null,null,null,null,null,null,0,0]
[null,null,null,null,null,null,null,null,null,0,0]
[null,null,null,null,null,null,null,null,null,0,0]
[null,null,null,null,null,null,null,null,null,0,0]
[null,null,null,null,null,null,null,null,null,0,0]
[null,null,null,null,null,null,null,null,null,0,0]
[null,null,null,null,null,null,null,null,null,0,0]
[null,null,null,null,null,null,null,null,null,0,0]
[null,null,null,null,null,null,null,null,null,{"$f":"H77+G77","v":0},{"$f":"F77-J77","v":0}]
[null,null,null,null,null,null,null,null,null,0,0]
[null,null,null,null,null,null,null,null,null,0,0]
[null,null,null,null,null,null,null,null,null,0,0]
[null,null,null,null,null,null,null,null,null,0,0]
[null,null,null,null,null,null,null,null,null,0,0]
[null,null,null,null,null,null,null,null,null,0,0]
[null,null,null,null,null,null,null,null,null,0,0]
[null,null,null,null,null,null,null,null,null,0,0]
[null,null,null,null,null,null,null,null,null,0,0]
[null,null,null,null,null,null,null,null,null,0,0]
[null,null,null,null,null,null,null,null,null,0,0]
[null,null,null,null,null,null,null,null,null,0,0]
[null,null,null,null,null,null,null,null,null,0,0]
[null,null,null,null,null,null,null,null,null,0,0]
[null,null,null,null,null,null,null,null,null,0,0]
[null,null,null,null,null,null,null,null,null,0,0]
[null,null,null,null,null,null,null,null,null,0,0]
[null,null,null,null,null,null,null,null,null,0,0]
[null,null,null,null,null,null,null,null,null,0,0]
[null,null,null,null,null,null,null,null,null,0,0]
[null,null,null,null,null,null,null,null,null,0,0]
[null,null,null,null,null,null,null,null,null,0,0]
[null,null,null,null,null,null,null,null,null,0,0]
[null,null,null,null,null,null,null,null,null,0,0]
[null,null,null,null,null,null,null,null,null,0,0]
[null,null,null,null,null,null,null,null,null,0,0]
[null,null,null,null,null,null,null,null,null,0,0]
[null,null,null,null,null,null,null,null,null,0,0]
[null,null,null,null,null,null,null,null,null,0,0]
[null,null,null,null,null,null,null,null,null,0,0]
[null,null,null,null,null,null,null,null,null,0,0]
[null,null,null,null,null,null,null,null,null,{"$f":"H109+G109","v":0},{"$f":"F109-J109","v":0}]
[null,null,null,null,null,null,null,null,null,0,0]
[null,null,null,null,null,null,null,null,null,0,0]
[null,null,null,null,null,null,null,null,null,0,0]
[null,null,null,null,null,null,null,null,null,0,0]
[null,null,null,null,null,null,null,null,null,0,0]
[null,null,null,null,null,null,null,null,null,0,0]
[null,null,null,null,null,null,null,null,null,0,0]
[null,null,null,null,null,null,null,null,null,0,0]
[null,null,null,null,null,null,null,null,null,0,0]
[null,null,null,null,null,null,null,null,null,0,0]
[null,null,null,null,null,null,null,null,null,0,0]
[null,null,null,null,null,null,null,null,null,0,0]
[null,null,null,null,null,null,null,null,null,0,0]
[null,null,null,null,null,null,null,null,null,0,0]
[null,null,null,null,null,null,null,null,null,0,0]
[null,null,null,null,null,null,null,null,null,0,0]
[null,null,null,null,null,null,null,null,null,0,0]
[null,null,null,null,null,null,null,null,null,0,0]
[null,null,null,null,null,null,null,null,null,0,0]
[null,null,null,null,null,null,null,null,null,0,0]
[null,null,null,null,null,null,null,null,null,0,0]
[null,null,null,null,null,null,null,null,null,0,0]
[null,null,null,null,null,null,null,null,null,0,0]
[null,null,null,null,null,null,null,null,null,0,0]
[null,null,null,null,null,null,null,null,null,0,0]
[null,null,null,null,null,null,null,null,null,0,0]
[null,null,null,null,null,null,null,null,null,0,0]
[null,null,null,null,null,null,null,null,null,0,0]
[null,null,null,null,null,null,null,null,null,0,0]
[null,null,null,null,null,null,null,null,null,0,0]
[null,null,null,null,null,null,null,null,null,0,0]
[null,null,null,null,null,null,null,null,null,{"$f":"H141+G141","v":0},{"$f":"F141-J141","v":0}]
[null,null,null,null,null,null,null,null,null,0,0]
[null,null,null,null,null,null,null,null,null,0,0]
[null,null,null,null,null,null,null,null,null,0,0]
[null,null,null,null,null,null,null,null,null,0,0]
[null,null,null,null,null,null,null,null,null,0,0]
[null,null,null,null,null,null,null,null,null,0,0]
[null,null,null,null,null,null,null,null,null,0,0]
[null,null,null,null,null,null,null,null,null,0,0]
[null,null,null,null,null,null,null,null,null,0,0]
[null,null,null,null,null,null,null,null,null,0,0]
[null,null,null,null,null,null,null,null,null,0,0]
[null,null,null,null,null,null,null,null,null,0,0]
[null,null,null,null,null,null,null,null,null,0,0]
[null,null,null,null,null,null,null,null,null,0,0]
[null,null,null,null,null,null,null,null,null,0,0]
[null,null,null,null,null,null,null,null,null,0,0]
[null,null,null,null,null,null,null,null,null,0,0]
[null,null,null,null,null,null,null,null,null,0,0]
[null,null,null,null,null,null,null,null,null,0,0]
[null,null,null,null,null,null,null,null,null,0,0]
[null,null,null,null,null,null,null,null,null,0,0]
[null,null,null,null,null,null,null,null,null,0,0]
[null,null,null,null,null,null,null,null,null,0,0]
[null,null,null,null,null,null,null,null,null,0,0]
[null,null,null,null,null,null,null,null,null,0,0]
[null,null,null,null,null,null,null,null,null,0,0]
[null,null,null,null,null,null,null,null,null,0,0]
[null,null,null,null,null,null,null,null,null,0,0]
[null,null,null,null,null,null,null,null,null,0,0]
[null,null,null,null,null,null,null,null,null,0,0]
[null,null,null,null,null,null,null,null,null,0,0]
[null,null,null,null,null,null,null,null,null,{"$f":"H173+G173","v":0},{"$f":"F173-J173","v":0}]
[null,null,null,null,null,null,null,null,null,0,0]
[null,null,null,null,null,null,null,null,null,0,0]
[null,null,null,null,null,null,null,null,null,0,0]
[null,null,null,null,null,null,null,null,null,0,0]
[null,null,null,null,null,null,null,null,null,0,0]
[null,null,null,null,null,null,null,null,null,0,0]
[null,null,null,null,null,null,null,null,null,0,0]
[null,null,null,null,null,null,null,null,null,0,0]
[null,null,null,null,null,null,null,null,null,0,0]
[null,null,null,null,null,null,null,null,null,0,0]
[null,null,null,null,null,null,null,null,null,0,0]
[null,null,null,null,null,null,null,null,null,0,0]
[null,null,null,null,null,null,null,null,null,0,0]
[null,null,null,null,null,null,null,null,null,0,0]
[null,null,null,null,null,null,null,null,null,0,0]
[null,null,null,null,null,null,null,null,null,0,0]
[null,null,null,null,null,null,null,null,null,0,0]
[null,null,null,null,null,null,null,null,null,0,0]
[null,null,null,null,null,null,null,null,null,0,0]
[null,null,null,null,null,null,null,null,null,0,0]
[null,null,null,null,null,null,null,null,null,0,0]
[null,null,null,null,null,null,null,null,null,0,0]
[null,null,null,null,null,null,null,null,null,0,0]
[null,null,null,null,null,null,null,null,null,0,0]

{"sheet":"Consultant-Contractor","index":11,"n_rows":180,"n_cols":23,"rows_kept":180,"cut":false,"hidden":false,"merged":[[8,0,8,8],[0,0,0,12],[3,10,3,12],[4,10,4,12],[2,0,2,12],[3,0,3,8],[4,0,4,8],[5,10,5,12],[6,10,6,12],[7,10,7,12],[5,0,5,8],[6,0,6,8],[7,0,7,8],[1,0,1,12]]}
["CONSULTANT / CONTRACTOR"]
["NOTE:  Unauthorized alterations will delay the approval of this request."]
[]
[{"$f":"SubrecipientName","v":0},null,null,null,null,null,null,null,null,"Ledger Type"]
[{"$f":"FIPSNumber","v":0},null,null,null,null,null,null,null,null,"Date"]
[{"$f":"SubawardNumber","v":0}]
[]
[]
[null,null,null,null,null,null,null,null,null,"Approval\nCal OES ONLY","Date & Initials\n(Program Rep)"]
["Project\nNo.","Direct / Subaward","Consulting Firm /\nConsultant Name","Project /\nDescription of Services","Deliverable","Solution\nArea","Period of\nExpenditure","Fee for\nDeliverable","Total Salary & Benefits Charged for this Reporting Period","Hourly Billing Rate","Total Project\nHours","Cash Request #","Total Cost Charged to Grant","Column1","Column2","Column3","Column4","Column5","Column6","Column7","Column8","Column9","Column10"]
[0,null,null,null,null,0,null,{"$f":"SUM(RangeFee)","v":0},{"$f":"SUM(RangeSalary)","v":0},null,{"$f":"SUM(RangeHours)","v":0},null,{"$f":"SUM(RangeCost)","v":0}]
[0,0,0,0,0,0,0,0,0,0,0,0,0,0,0,0,0,0,0,0,0,0,0]
[]
[]
[]
[]
[]
[]
[]
[]
[]
[]
[]
[]
[]
[]
[]
[]
[]
[]
[]
[]
[]
[]
[]
[]
[]
[]
[]
[]
[]
[]
[]
[]
[]
[]
[]
[]
[]
[]
[]
[]
[]
[]
[]
[]
[]
[]
[]
[]
[]
[]
[]
[]
[]
[]
[]
[]
[]
[]
[]
[]
[]
[]
[]
[]
[]
[]
[]
[]
[]
[]
[]
[]
[]
[]
[]
[]
[]
[]
[]
[]
[]
[]
[]
[]
[]
[]
[]
[]
[]
[]
[]
[]
[]
[]
[]
[]
[]
[]
[]
[]
[]
[]
[]
[]
[]
[]
[]
[]
[]
[]
[]
[]
[]
[]
[]
[]
[]
[]
[]
[]
[]
[]
[]
[]
[]
[]
[]
[]
[]
[]
[]
[]
[]
[]
[]
[]
[]
[]
[]
[]
[]
[]
[]
[]
[]
[]
[]
[]
[]
[]
[]
[]
[]
[]
[]
[]
[]
[]
[]
[]
[]
[]
[]
[]
[]
[]
[]
[null,null,null,null,null,null,null,null,null,null,null,null,0]

{"sheet":"Auth. Agent","index":12,"n_rows":31,"n_cols":12,"rows_kept":31,"cut":false,"hidden":false,"merged":[[35,0,35,13],[28,0,29,5],[28,6,29,6],[28,7,29,9],[28,10,29,10],[28,11,29,13],[30,0,30,5],[30,7,30,9],[30,11,30,13],[19,0,21,13],[22,0,27,13],[10,0,10,13],[11,0,11,6],[11,7,11,9],[11,11,11,13],[12,0,12,6],[12,7,12,9],[12,11,12,13],[13,0,13,13],[15,0,16,13],[17,0,17,13],[18,0,18,13],[9,0,9,6],[9,7,9,9],[9,11,9,13],[0,0,0,13],[3,0,3,13],[6,0,6,13],[7,0,7,13],[8,0,8,1],[8,2,8,4],[8,7,8,9],[8,11,8,13],[5,0,5,13],[2,0,2,13],[4,0,4,13],[1,0,1,13],[36,0,36,13],[37,0,37,13],[38,0,38,13],[39,0,39,13],[40,0,40,13]]}
["AUTHORIZED AGENT"]
["NOTE:  Unauthorized alterations will delay the approval of this request."]
[]
["Supporting Information for Advance, Reimbursement, or Modification Request of State Funds\nThis claim is for costs incurred within the grant performance period."]
[]
[{"$f":"SubrecipientName","v":0}]
[{"$f":"FIPSNumber","v":0}]
[{"$f":"SubawardNumber","v":0}]
["This request is for a/an:",null,null,null,null,null,null,{"$f":"StartDate","v":"00:00:00"},null,null,"through",{"$f":"EndDate","v":"00:00:00"}]
[null,null,null,null,null,null,null,"(Beginning Performance Period Date)",null,null,null,"(Ending Performance Period Date)"]
[]
[]
[null,null,null,null,null,null,null,"(Cash or Modification Request Number)",null,null,null,"(Amount This Request)"]
[]
["Under Penalty of Perjury I certify that:"]
["I am the duly authorized officer of the claimant herein. This claim is true, correct, and all expenditures were made in accordance with applicable laws, rules, regulations and grant conditions and assurances."]
[]
[]
["Statement of Certification - Authorized Agent"]
["By signing this report, I certify to the best of my knowledge and belief that the report is true, complete, and accurate, and the expenditures, disbursements and cash receipts are for the purposes and objectives set forth in the terms and conditions of the Federal award. I am aware that any false, fictitious, or fraudulent information, or the omission of any material fact, may subject me to criminal, civil or administrative penalties for fraud, false statements, false claims or otherwise. (U.S. Code Title 18, Section 1001 and Title 31, Sections 3729–3730 and 3801–3812)."]
[]
[]
[]
[]
[]
[]
[]
[]
[]
[]
["Printed Name and Title ",null,null,null,null,null,null,"Signature of Authorized Agent",null,null,null,"Date"]